Department Family,Entity,Date,Expense Type,Expense Area,Supplier,Transaction Number,Amount,Description
MINISTRY OF JUSTICE,LAA,15/Jan/2014 ,265000-IT & Telecommunications,VA403-IDP - Infrastructure,CAPGEMINI UK PLC,1017812,"6,597.58",VAT on 7105 - CCN103 - Resolver Group Costs - May - July contract number COM-09-456
MINISTRY OF JUSTICE,LAA,15/Jan/2014 ,265000-IT & Telecommunications,VA403-IDP - Infrastructure,CAPGEMINI UK PLC,1017812,"12,074.74",VAT on 7105 - CCN103 - Resolver Group Costs - May - July contract number COM-09-456
MINISTRY OF JUSTICE,LAA,15/Jan/2014 ,265000-IT & Telecommunications,VA403-IDP - Infrastructure,CAPGEMINI UK PLC,1017812,"21,611.70",VAT on CCMS Application Support  - Oct 13 to Mar 14  contract number COM-09-456
MINISTRY OF JUSTICE,LAA,15/Jan/2014 ,265000-IT & Telecommunications,VA403-IDP - Infrastructure,CAPGEMINI UK PLC,1017812,"32,987.90",7105 - CCN103 - Resolver Group Costs - May - July contract number COM-09-456
MINISTRY OF JUSTICE,LAA,15/Jan/2014 ,265000-IT & Telecommunications,VA403-IDP - Infrastructure,CAPGEMINI UK PLC,1017812,"60,373.70",7105 - CCN103 - Resolver Group Costs - May - July contract number COM-09-456
MINISTRY OF JUSTICE,LAA,15/Jan/2014 ,265000-IT & Telecommunications,VA403-IDP - Infrastructure,CAPGEMINI UK PLC,1017812,"108,058.50",CCMS Application Support  - Oct 13 to Mar 14  contract number COM-09-456
MINISTRY OF JUSTICE,LAA,29/Jan/2014 ,265000-IT & Telecommunications,VA403-IDP - Infrastructure,NORTHGATE INFORMATION SOLUTIONS UK LTD,1018065,731.50,"CAT2055 COM-09-503		Network Connection per month - Line 2 - Sep 13 to Mar 14"
MINISTRY OF JUSTICE,LAA,15/Jan/2014 ,265000-IT & Telecommunications,VA403-IDP - Infrastructure,NORTHGATE INFORMATION SOLUTIONS UK LTD,1017870,"6,500.00","VAT on CAT2055 COM-09-503		Central Postal Hub 01/10/13 to 31/04/14 6X32500.00"
MINISTRY OF JUSTICE,LAA,29/Jan/2014 ,265000-IT & Telecommunications,VA403-IDP - Infrastructure,NORTHGATE INFORMATION SOLUTIONS UK LTD,1018065,"26,984.42","CAT2055 COM-09-503		Managed Service per month - Line 1 - Sep13 to Mar 14"
MINISTRY OF JUSTICE,LAA,15/Jan/2014 ,265000-IT & Telecommunications,VA403-IDP - Infrastructure,NORTHGATE INFORMATION SOLUTIONS UK LTD,1017870,"32,500.00","CAT2055 COM-09-503		Central Postal Hub 01/10/13 to 31/04/14 6X32500.00"
MINISTRY OF JUSTICE,LAA,22/Jan/2014 ,221000-Property Rent and Rates,VA396-Property Costs,LONDON & SCOTTISH PROPERTY MANAGEMENT LTD,1017964,"-3,525.00",Property costs. Credited out as paid to wrong Business Entity Code
MINISTRY OF JUSTICE,LAA,22/Jan/2014 ,222002-Other Property Costs,VA396-Property Costs,LONDON & SCOTTISH PROPERTY MANAGEMENT LTD,1017964,"-2,026.90",Property costs. Credited out as paid to wrong Business Entity Code
MINISTRY OF JUSTICE,LAA,22/Jan/2014 ,222002-Other Property Costs,VA396-Property Costs,LONDON & SCOTTISH PROPERTY MANAGEMENT LTD,1017964,"2,026.90",Property costs
MINISTRY OF JUSTICE,LAA,22/Jan/2014 ,222002-Other Property Costs,VA396-Property Costs,LONDON & SCOTTISH PROPERTY MANAGEMENT LTD,1017964,"2,026.90",VAT Grnd Flr Leeds:Service Charge 25/12/13 to 24/03/14
MINISTRY OF JUSTICE,LAA,22/Jan/2014 ,221000-Property Rent and Rates,VA396-Property Costs,LONDON & SCOTTISH PROPERTY MANAGEMENT LTD,1017964,"3,525.00",Property costs
MINISTRY OF JUSTICE,LAA,22/Jan/2014 ,221000-Property Rent and Rates,VA396-Property Costs,LONDON & SCOTTISH PROPERTY MANAGEMENT LTD,1017964,"3,525.00",VAT Grnd Flr Leeds: Rent 25/12/13 to 24/03/14 
MINISTRY OF JUSTICE,LAA,22/Jan/2014 ,222002-Other Property Costs,VA396-Property Costs,LONDON & SCOTTISH PROPERTY MANAGEMENT LTD,1017964,"5,632.73",1st Floor Leeds S/Charge 25/12/13 to 24/03/14 
MINISTRY OF JUSTICE,LAA,22/Jan/2014 ,221000-Property Rent and Rates,VA396-Property Costs,LONDON & SCOTTISH PROPERTY MANAGEMENT LTD,1017964,"9,600.00",1st Floor Leeds Rent 25/12/13 to 24/03/14 
MINISTRY OF JUSTICE,LAA,22/Jan/2014 ,222002-Other Property Costs,VA396-Property Costs,LONDON & SCOTTISH PROPERTY MANAGEMENT LTD,1017964,"10,134.51",Grnd Flr Leeds:Service Charge 25/12/13 to 24/03/14 
MINISTRY OF JUSTICE,LAA,22/Jan/2014 ,221000-Property Rent and Rates,VA396-Property Costs,LONDON & SCOTTISH PROPERTY MANAGEMENT LTD,1017964,"17,625.00",Grnd Flr Leeds: Rent 25/12/13 to 24/03/14 
MINISTRY OF JUSTICE,LAA,22/Jan/2014 ,222002-Other Property Costs,VA396-Property Costs,LONDON & SCOTTISH PROPERTY MANAGEMENT LTD,1017964,"28,163.67",Service Chrg
MINISTRY OF JUSTICE,LAA,22/Jan/2014 ,221000-Property Rent and Rates,VA396-Property Costs,LONDON & SCOTTISH PROPERTY MANAGEMENT LTD,1017964,"48,000.00",Rent
MINISTRY OF JUSTICE,LAA,15/Jan/2014 ,221000-Property Rent and Rates,VA396-Property Costs,UNEX INVESTMENT TRUST LTD,1017895,"8,735.00",VAT on Rent 25 Dec 2013 to 24/03/14
MINISTRY OF JUSTICE,LAA,15/Jan/2014 ,221000-Property Rent and Rates,VA396-Property Costs,UNEX INVESTMENT TRUST LTD,1017895,"43,675.00",Rent 25 Dec 2013 to 24/03/14
MINISTRY OF JUSTICE,LAA,29/Jan/2014 ,223000-Other Expenditure,VA395-National Courts Team,ROSSENDALES LTD,1018079,"6,656.35",Collections (Service Delivery) costs for CCMT covering April 2013 to March 2014
MINISTRY OF JUSTICE,LAA,29/Jan/2014 ,223000-Other Expenditure,VA395-National Courts Team,ROSSENDALES LTD,1018079,"30,137.50",Enforcement costs for CCMT covering April 2013 to March 2014
MINISTRY OF JUSTICE,LAA,29/Jan/2014 ,223000-Other Expenditure,VA395-National Courts Team,ROSSENDALES LTD,1018079,"33,239.00",Enforcement costs for CCMT covering April 2013 to March 2014
MINISTRY OF JUSTICE,LAA,29/Jan/2014 ,223000-Other Expenditure,VA395-National Courts Team,ROSSENDALES LTD,1018079,"63,535.00",Collections (Service Delivery) costs for CCMT covering April 2013 to March 2014
MINISTRY OF JUSTICE,LAA,22/Jan/2014 ,265000-IT & Telecommunications,VA294-ISD,BRAMBLE.CC LTD,1017920,"14,325.82",VAT on Annual Renewal Toplevel Fee . 22nd Dec 13 to 30 Sept 14
MINISTRY OF JUSTICE,LAA,22/Jan/2014 ,265000-IT & Telecommunications,VA294-ISD,BRAMBLE.CC LTD,1017920,"71,629.09",Annual Renewal Toplevel Fee . 22nd Dec 13 to 30 Sept 14
MINISTRY OF JUSTICE,LAA,29/Jan/2014 ,Civil Representation,LEGAL AID FUND - Programme Costs,ABID MAHMOOD,133182400,"25,314.85",Civil Representation: Legal Aid Payments
MINISTRY OF JUSTICE,LAA,15/Jan/2014 ,Civil Representation,LEGAL AID FUND - Programme Costs,AITKEN ASSOCIATES,133027519,"28,219.88",Civil Representation: Legal Aid Payments
MINISTRY OF JUSTICE,LAA,22/Jan/2014 ,Civil Representation,LEGAL AID FUND - Programme Costs,ALISTAIR G PERKINS,133026594,"33,878.60",Civil Representation: Legal Aid Payments
MINISTRY OF JUSTICE,LAA,15/Jan/2014 ,Civil Representation,LEGAL AID FUND - Programme Costs,AMANDA J MEUSZ,132634638,"30,785.03",Civil Representation: Legal Aid Payments
MINISTRY OF JUSTICE,LAA,08/Jan/2014 ,Civil Representation,LEGAL AID FUND - Programme Costs,ANDREW R LOVERIDGE,132828286,"32,270.28",Civil Representation: Legal Aid Payments
MINISTRY OF JUSTICE,LAA,15/Jan/2014 ,Civil Representation,LEGAL AID FUND - Programme Costs,ANTHONY COLLINS LLP,133022017,"26,240.83",Civil Representation: Legal Aid Payments
MINISTRY OF JUSTICE,LAA,22/Jan/2014 ,Civil Representation,LEGAL AID FUND - Programme Costs,ANTHONY P HAYDEN,133134071,"36,864.00",Civil Representation: Legal Aid Payments
MINISTRY OF JUSTICE,LAA,22/Jan/2014 ,Civil Representation,LEGAL AID FUND - Programme Costs,ASHTON KCJ,133147829,"31,463.68",Civil Representation: Legal Aid Payments
MINISTRY OF JUSTICE,LAA,29/Jan/2014 ,Civil Representation,LEGAL AID FUND - Programme Costs,ATKINS HOPE LLP,133223738,"29,263.44",Civil Representation: Legal Aid Payments
MINISTRY OF JUSTICE,LAA,29/Jan/2014 ,Civil Representation,LEGAL AID FUND - Programme Costs,ATKINS HOPE LLP,133218111,"33,412.34",Civil Representation: Legal Aid Payments
MINISTRY OF JUSTICE,LAA,08/Jan/2014 ,Civil Representation,LEGAL AID FUND - Programme Costs,ATKINS HOPE LLP,132805124,"35,014.85",Civil Representation: Legal Aid Payments
MINISTRY OF JUSTICE,LAA,08/Jan/2014 ,Civil Representation,LEGAL AID FUND - Programme Costs,BASTIAN LLOYD MORRIS SOLICITOR ADVOCATES,132824506,"28,415.32",Civil Representation: Legal Aid Payments
MINISTRY OF JUSTICE,LAA,08/Jan/2014 ,Civil Representation,LEGAL AID FUND - Programme Costs,BASTIAN LLOYD MORRIS SOLICITOR ADVOCATES,132824683,"31,986.25",Civil Representation: Legal Aid Payments
MINISTRY OF JUSTICE,LAA,22/Jan/2014 ,Civil Representation,LEGAL AID FUND - Programme Costs,BLACKFORDS LLP,132676674,"95,810.67",Civil Representation: Legal Aid Payments
MINISTRY OF JUSTICE,LAA,29/Jan/2014 ,Civil Representation,LEGAL AID FUND - Programme Costs,BOSLEY & CO,133178192,"29,334.06",Civil Representation: Legal Aid Payments
MINISTRY OF JUSTICE,LAA,29/Jan/2014 ,Civil Representation,LEGAL AID FUND - Programme Costs,BRENDAN FLEMING SOLICITORS,133249553,"26,208.16",Civil Representation: Legal Aid Payments
MINISTRY OF JUSTICE,LAA,22/Jan/2014 ,Civil Representation,LEGAL AID FUND - Programme Costs,BRENDAN FLEMING SOLICITORS,133068441,"57,121.20",Civil Representation: Legal Aid Payments
MINISTRY OF JUSTICE,LAA,08/Jan/2014 ,Civil Representation,LEGAL AID FUND - Programme Costs,BRIGHT & SONS,132772957,"25,340.56",Civil Representation: Legal Aid Payments
MINISTRY OF JUSTICE,LAA,29/Jan/2014 ,Civil Representation,LEGAL AID FUND - Programme Costs,BROOMHEAD & SAUL,133194238,"38,050.55",Civil Representation: Legal Aid Payments
MINISTRY OF JUSTICE,LAA,15/Jan/2014 ,Civil Representation,LEGAL AID FUND - Programme Costs,BTMK LLP,132938423,"30,071.59",Civil Representation: Legal Aid Payments
MINISTRY OF JUSTICE,LAA,15/Jan/2014 ,Civil Representation,LEGAL AID FUND - Programme Costs,BURGESS & CO SOLICITORS,132999376,"30,398.15",Civil Representation: Legal Aid Payments
MINISTRY OF JUSTICE,LAA,09/Jan/2014 ,Civil Representation,LEGAL AID FUND - Programme Costs,CHAMBERLINS,127534046,"29,782.80",Civil Representation: Legal Aid Payments
MINISTRY OF JUSTICE,LAA,09/Jan/2014 ,Civil Representation,LEGAL AID FUND - Programme Costs,CHAMBERLINS,132914988,"29,782.80",Civil Representation: Legal Aid Payments
MINISTRY OF JUSTICE,LAA,29/Jan/2014 ,Civil Representation,LEGAL AID FUND - Programme Costs,CHILD LAW PARTNERSHIP LTD,133182267,"95,297.82",Civil Representation: Legal Aid Payments
MINISTRY OF JUSTICE,LAA,22/Jan/2014 ,Civil Representation,LEGAL AID FUND - Programme Costs,CHIVERS WALSH FAMILY LAW,133130622,"56,805.10",Civil Representation: Legal Aid Payments
MINISTRY OF JUSTICE,LAA,15/Jan/2014 ,Civil Representation,LEGAL AID FUND - Programme Costs,CHRIS MITROPOULOS,133028111,"25,389.35",Civil Representation: Legal Aid Payments
MINISTRY OF JUSTICE,LAA,08/Jan/2014 ,Civil Representation,LEGAL AID FUND - Programme Costs,CLAIRE L M WILLS-GOLDINGHAM,132887663,"25,411.98",Civil Representation: Legal Aid Payments
MINISTRY OF JUSTICE,LAA,22/Jan/2014 ,Civil Representation,LEGAL AID FUND - Programme Costs,CLARE L.GARNHAM,132705630,"55,440.00",Civil Representation: Legal Aid Payments
MINISTRY OF JUSTICE,LAA,22/Jan/2014 ,Civil Representation,LEGAL AID FUND - Programme Costs,COLLINS SOLICITORS,133068444,"29,224.80",Civil Representation: Legal Aid Payments
MINISTRY OF JUSTICE,LAA,22/Jan/2014 ,Civil Representation,LEGAL AID FUND - Programme Costs,COVENT GARDEN FAMILY LAW,133096883,"28,240.70",Civil Representation: Legal Aid Payments
MINISTRY OF JUSTICE,LAA,15/Jan/2014 ,Civil Representation,LEGAL AID FUND - Programme Costs,CREIGHTON & PARTNERS,132998285,"25,016.55",Civil Representation: Legal Aid Payments
MINISTRY OF JUSTICE,LAA,22/Jan/2014 ,Civil Representation,LEGAL AID FUND - Programme Costs,DAFYDD GRIFFITHS,133155856,"28,776.00",Civil Representation: Legal Aid Payments
MINISTRY OF JUSTICE,LAA,22/Jan/2014 ,Civil Representation,LEGAL AID FUND - Programme Costs,DAISY HUGHES,133155198,"25,170.00",Civil Representation: Legal Aid Payments
MINISTRY OF JUSTICE,LAA,15/Jan/2014 ,Civil Representation,LEGAL AID FUND - Programme Costs,DAN SQUIRES,132962532,"33,264.29",Civil Representation: Legal Aid Payments
MINISTRY OF JUSTICE,LAA,22/Jan/2014 ,Civil Representation,LEGAL AID FUND - Programme Costs,DAVID E ABBERTON,133067670,"26,843.40",Civil Representation: Legal Aid Payments
MINISTRY OF JUSTICE,LAA,29/Jan/2014 ,Civil Representation,LEGAL AID FUND - Programme Costs,DORIAN S DAY,133200872,"35,419.19",Civil Representation: Legal Aid Payments
MINISTRY OF JUSTICE,LAA,29/Jan/2014 ,Civil Representation,LEGAL AID FUND - Programme Costs,DORIAN S DAY,133255536,"49,062.00",Civil Representation: Legal Aid Payments
MINISTRY OF JUSTICE,LAA,15/Jan/2014 ,Civil Representation,LEGAL AID FUND - Programme Costs,DOUSHKA KRISH,132995737,"31,355.64",Civil Representation: Legal Aid Payments
MINISTRY OF JUSTICE,LAA,22/Jan/2014 ,Civil Representation,LEGAL AID FUND - Programme Costs,EDWARD J GRIEVES,133092272,"31,007.93",Civil Representation: Legal Aid Payments
MINISTRY OF JUSTICE,LAA,29/Jan/2014 ,Civil Representation,LEGAL AID FUND - Programme Costs,EDWARD OLIVER & BELLIS,132504819,"30,481.97",Civil Representation: Legal Aid Payments
MINISTRY OF JUSTICE,LAA,08/Jan/2014 ,Civil Representation,LEGAL AID FUND - Programme Costs,EDWARDS DUTHIE,131371022,"25,499.52",Civil Representation: Legal Aid Payments
MINISTRY OF JUSTICE,LAA,08/Jan/2014 ,Civil Representation,LEGAL AID FUND - Programme Costs,FAHRI JACOB,132861368,"26,329.56",Civil Representation: Legal Aid Payments
MINISTRY OF JUSTICE,LAA,15/Jan/2014 ,Civil Representation,LEGAL AID FUND - Programme Costs,FISHER JONES GREENWOOD LLP,132843630,"25,050.65",Civil Representation: Legal Aid Payments
MINISTRY OF JUSTICE,LAA,22/Jan/2014 ,Civil Representation,LEGAL AID FUND - Programme Costs,FRANCES M T OLDHAM,132705626,"33,264.00",Civil Representation: Legal Aid Payments
MINISTRY OF JUSTICE,LAA,29/Jan/2014 ,Civil Representation,LEGAL AID FUND - Programme Costs,FRANK T FEEHAN QC,133289019,"56,220.00",Civil Representation: Legal Aid Payments
MINISTRY OF JUSTICE,LAA,29/Jan/2014 ,Civil Representation,LEGAL AID FUND - Programme Costs,FRENCH & CO,133174472,"25,713.36",Civil Representation: Legal Aid Payments
MINISTRY OF JUSTICE,LAA,15/Jan/2014 ,Civil Representation,LEGAL AID FUND - Programme Costs,GEMMA FARRINGTON,132997348,"43,517.88",Civil Representation: Legal Aid Payments
MINISTRY OF JUSTICE,LAA,22/Jan/2014 ,Civil Representation,LEGAL AID FUND - Programme Costs,GLAISYERS LLP,133043914,"25,062.12",Civil Representation: Legal Aid Payments
MINISTRY OF JUSTICE,LAA,15/Jan/2014 ,Civil Representation,LEGAL AID FUND - Programme Costs,GLAISYERS LLP,132883528,"39,176.22",Civil Representation: Legal Aid Payments
MINISTRY OF JUSTICE,LAA,15/Jan/2014 ,Civil Representation,LEGAL AID FUND - Programme Costs,GREENS SOLICITORS LLP,132935559,"29,679.67",Civil Representation: Legal Aid Payments
MINISTRY OF JUSTICE,LAA,22/Jan/2014 ,Civil Representation,LEGAL AID FUND - Programme Costs,HAINS & LEWIS LTD,132866184,"29,876.19",Civil Representation: Legal Aid Payments
MINISTRY OF JUSTICE,LAA,29/Jan/2014 ,Civil Representation,LEGAL AID FUND - Programme Costs,HARNEY & WELLS,133198263,"27,041.19",Civil Representation: Legal Aid Payments
MINISTRY OF JUSTICE,LAA,29/Jan/2014 ,Civil Representation,LEGAL AID FUND - Programme Costs,HARRIS TEMPERLEY LLP,133222641,"28,313.69",Civil Representation: Legal Aid Payments
MINISTRY OF JUSTICE,LAA,15/Jan/2014 ,Civil Representation,LEGAL AID FUND - Programme Costs,HARRIS TEMPERLEY LLP,132999683,"29,000.73",Civil Representation: Legal Aid Payments
MINISTRY OF JUSTICE,LAA,08/Jan/2014 ,Civil Representation,LEGAL AID FUND - Programme Costs,HOGANS,132828058,"29,394.13",Civil Representation: Legal Aid Payments
MINISTRY OF JUSTICE,LAA,15/Jan/2014 ,Civil Representation,LEGAL AID FUND - Programme Costs,HOPKIN MURRAY BESKINE LTD,132962773,"25,557.09",Civil Representation: Legal Aid Payments
MINISTRY OF JUSTICE,LAA,15/Jan/2014 ,Civil Representation,LEGAL AID FUND - Programme Costs,HURLOWS FAMILY LAW PRACTICE SOLICITORS,131536759,"25,015.48",Civil Representation: Legal Aid Payments
MINISTRY OF JUSTICE,LAA,22/Jan/2014 ,Civil Representation,LEGAL AID FUND - Programme Costs,I B B SOLICITORS,133116139,"25,429.62",Civil Representation: Legal Aid Payments
MINISTRY OF JUSTICE,LAA,22/Jan/2014 ,Civil Representation,LEGAL AID FUND - Programme Costs,IAN J C PEDDIE QC,133116199,"41,580.00",Civil Representation: Legal Aid Payments
MINISTRY OF JUSTICE,LAA,15/Jan/2014 ,Civil Representation,LEGAL AID FUND - Programme Costs,IRWIN MITCHELL LLP INC:ALEXANDER HARRIS,133021866,"25,570.65",Civil Representation: Legal Aid Payments
MINISTRY OF JUSTICE,LAA,29/Jan/2014 ,Civil Representation,LEGAL AID FUND - Programme Costs,JANE CROSS QC,133176610,"50,868.00",Civil Representation: Legal Aid Payments
MINISTRY OF JUSTICE,LAA,22/Jan/2014 ,Civil Representation,LEGAL AID FUND - Programme Costs,JANET C BAZLEY QC,133075143,"46,912.82",Civil Representation: Legal Aid Payments
MINISTRY OF JUSTICE,LAA,15/Jan/2014 ,Civil Representation,LEGAL AID FUND - Programme Costs,JANET E REANEY,132792608,"55,710.00",Civil Representation: Legal Aid Payments
MINISTRY OF JUSTICE,LAA,22/Jan/2014 ,Civil Representation,LEGAL AID FUND - Programme Costs,JOANNE ASTBURY,133130911,"53,856.00",Civil Representation: Legal Aid Payments
MINISTRY OF JUSTICE,LAA,15/Jan/2014 ,Civil Representation,LEGAL AID FUND - Programme Costs,JOHN BARKERS,132869170,"36,959.86",Civil Representation: Legal Aid Payments
MINISTRY OF JUSTICE,LAA,22/Jan/2014 ,Civil Representation,LEGAL AID FUND - Programme Costs,JOHN KER-REID,133050646,"28,146.00",Civil Representation: Legal Aid Payments
MINISTRY OF JUSTICE,LAA,22/Jan/2014 ,Civil Representation,LEGAL AID FUND - Programme Costs,JOHN KER-REID,133152983,"30,472.20",Civil Representation: Legal Aid Payments
MINISTRY OF JUSTICE,LAA,22/Jan/2014 ,Civil Representation,LEGAL AID FUND - Programme Costs,JONATHAN M WILKINSON,133052596,"32,679.84",Civil Representation: Legal Aid Payments
MINISTRY OF JUSTICE,LAA,09/Jan/2014 ,Civil Representation,LEGAL AID FUND - Programme Costs,JULIA H BEER,132920752,"36,000.00",Civil Representation: Legal Aid Payments
MINISTRY OF JUSTICE,LAA,22/Jan/2014 ,Civil Representation,LEGAL AID FUND - Programme Costs,JULIA M NELSON,132582899,"25,820.68",Civil Representation: Legal Aid Payments
MINISTRY OF JUSTICE,LAA,29/Jan/2014 ,Civil Representation,LEGAL AID FUND - Programme Costs,KAREN J MCLAUGHLIN,133178255,"38,724.00",Civil Representation: Legal Aid Payments
MINISTRY OF JUSTICE,LAA,08/Jan/2014 ,Civil Representation,LEGAL AID FUND - Programme Costs,KARL J ROWLEY,132868510,"25,077.60",Civil Representation: Legal Aid Payments
MINISTRY OF JUSTICE,LAA,22/Jan/2014 ,Civil Representation,LEGAL AID FUND - Programme Costs,KHF SOLICITORS LTD,132774521,"32,006.80",Civil Representation: Legal Aid Payments
MINISTRY OF JUSTICE,LAA,08/Jan/2014 ,Civil Representation,LEGAL AID FUND - Programme Costs,LAWRENCE & CO,132828985,"25,217.80",Civil Representation: Legal Aid Payments
MINISTRY OF JUSTICE,LAA,15/Jan/2014 ,Civil Representation,LEGAL AID FUND - Programme Costs,LEIGH DAY & CO,132464646,"40,838.09",Civil Representation: Legal Aid Payments
MINISTRY OF JUSTICE,LAA,15/Jan/2014 ,Civil Representation,LEGAL AID FUND - Programme Costs,LEIGH DAY & CO,132340740,"54,641.91",Civil Representation: Legal Aid Payments
MINISTRY OF JUSTICE,LAA,22/Jan/2014 ,Civil Representation,LEGAL AID FUND - Programme Costs,LOCK & MARLBOROUGH,133154886,"38,880.72",Civil Representation: Legal Aid Payments
MINISTRY OF JUSTICE,LAA,22/Jan/2014 ,Civil Representation,LEGAL AID FUND - Programme Costs,LORRAINE CAVANAGH,133134072,"30,432.00",Civil Representation: Legal Aid Payments
MINISTRY OF JUSTICE,LAA,09/Jan/2014 ,Civil Representation,LEGAL AID FUND - Programme Costs,MAKIN DIXON,132920737,"39,317.51",Civil Representation: Legal Aid Payments
MINISTRY OF JUSTICE,LAA,29/Jan/2014 ,Civil Representation,LEGAL AID FUND - Programme Costs,MARSDEN RAWSTHORN SOLICITORS LTD,133149332,"27,686.04",Civil Representation: Legal Aid Payments
MINISTRY OF JUSTICE,LAA,22/Jan/2014 ,Civil Representation,LEGAL AID FUND - Programme Costs,MICHELMORES,133114426,"25,961.50",Civil Representation: Legal Aid Payments
MINISTRY OF JUSTICE,LAA,22/Jan/2014 ,Civil Representation,LEGAL AID FUND - Programme Costs,MORGAN BROWN & CAHILL,133070544,"47,824.00",Civil Representation: Legal Aid Payments
MINISTRY OF JUSTICE,LAA,29/Jan/2014 ,Civil Representation,LEGAL AID FUND - Programme Costs,MOSS AND COLEMAN,133288136,"27,402.44",Civil Representation: Legal Aid Payments
MINISTRY OF JUSTICE,LAA,22/Jan/2014 ,Civil Representation,LEGAL AID FUND - Programme Costs,MUSTOE SHORTER,132056464,"27,569.87",Civil Representation: Legal Aid Payments
MINISTRY OF JUSTICE,LAA,31/Jan/2014 ,Civil Representation,LEGAL AID FUND - Programme Costs,NEIL GRIFFIN & CO,133309142,"36,499.78",Civil Representation: Legal Aid Payments
MINISTRY OF JUSTICE,LAA,22/Jan/2014 ,Civil Representation,LEGAL AID FUND - Programme Costs,PD LAW LTD,133045693,"32,237.95",Civil Representation: Legal Aid Payments
MINISTRY OF JUSTICE,LAA,22/Jan/2014 ,Civil Representation,LEGAL AID FUND - Programme Costs,PD LAW LTD,133131955,"52,479.16",Civil Representation: Legal Aid Payments
MINISTRY OF JUSTICE,LAA,15/Jan/2014 ,Civil Representation,LEGAL AID FUND - Programme Costs,PEARSONS,133029975,"26,327.74",Civil Representation: Legal Aid Payments
MINISTRY OF JUSTICE,LAA,08/Jan/2014 ,Civil Representation,LEGAL AID FUND - Programme Costs,PEARSONS SOLICITORS,132897006,"28,858.45",Civil Representation: Legal Aid Payments
MINISTRY OF JUSTICE,LAA,29/Jan/2014 ,Civil Representation,LEGAL AID FUND - Programme Costs,PEGGY EKELEDO,133285549,"25,950.00",Civil Representation: Legal Aid Payments
MINISTRY OF JUSTICE,LAA,08/Jan/2014 ,Civil Representation,LEGAL AID FUND - Programme Costs,PETER EDWARDS LAW LTD,132789363,"26,023.41",Civil Representation: Legal Aid Payments
MINISTRY OF JUSTICE,LAA,29/Jan/2014 ,Civil Representation,LEGAL AID FUND - Programme Costs,PETER EDWARDS LAW LTD,133282461,"29,654.47",Civil Representation: Legal Aid Payments
MINISTRY OF JUSTICE,LAA,29/Jan/2014 ,Civil Representation,LEGAL AID FUND - Programme Costs,PHILCOX GRAY & CO,133220819,"31,387.43",Civil Representation: Legal Aid Payments
MINISTRY OF JUSTICE,LAA,29/Jan/2014 ,Civil Representation,LEGAL AID FUND - Programme Costs,PS LAW LLP,133282694,"25,882.97",Civil Representation: Legal Aid Payments
MINISTRY OF JUSTICE,LAA,15/Jan/2014 ,Civil Representation,LEGAL AID FUND - Programme Costs,RAIT & CO,132960565,"33,404.37",Civil Representation: Legal Aid Payments
MINISTRY OF JUSTICE,LAA,22/Jan/2014 ,Civil Representation,LEGAL AID FUND - Programme Costs,ROBERTSONS,132422509,"29,820.98",Civil Representation: Legal Aid Payments
MINISTRY OF JUSTICE,LAA,15/Jan/2014 ,Civil Representation,LEGAL AID FUND - Programme Costs,ROOTES & ALLIOTT,132997344,"40,435.61",Civil Representation: Legal Aid Payments
MINISTRY OF JUSTICE,LAA,15/Jan/2014 ,Civil Representation,LEGAL AID FUND - Programme Costs,SALLY F BRADLEY QC,132934230,"28,933.20",Civil Representation: Legal Aid Payments
MINISTRY OF JUSTICE,LAA,22/Jan/2014 ,Civil Representation,LEGAL AID FUND - Programme Costs,SARAH L SINGLETON,133131119,"81,360.00",Civil Representation: Legal Aid Payments
MINISTRY OF JUSTICE,LAA,15/Jan/2014 ,Civil Representation,LEGAL AID FUND - Programme Costs,SOUTHERNS,132792595,"35,921.56",Civil Representation: Legal Aid Payments
MINISTRY OF JUSTICE,LAA,22/Jan/2014 ,Civil Representation,LEGAL AID FUND - Programme Costs,SUSAN D PYLE,133075132,"54,955.57",Civil Representation: Legal Aid Payments
MINISTRY OF JUSTICE,LAA,29/Jan/2014 ,Civil Representation,LEGAL AID FUND - Programme Costs,SUSAN E GLANVILLE,132724157,"25,093.75",Civil Representation: Legal Aid Payments
MINISTRY OF JUSTICE,LAA,29/Jan/2014 ,Civil Representation,LEGAL AID FUND - Programme Costs,SWITALSKI'S LLP,133180661,"25,610.81",Civil Representation: Legal Aid Payments
MINISTRY OF JUSTICE,LAA,09/Jan/2014 ,Civil Representation,LEGAL AID FUND - Programme Costs,SWITALSKI'S LLP,132610626,"35,763.15",Civil Representation: Legal Aid Payments
MINISTRY OF JUSTICE,LAA,08/Jan/2014 ,Civil Representation,LEGAL AID FUND - Programme Costs,T V  EDWARDS LLP,132829010,"26,207.72",Civil Representation: Legal Aid Payments
MINISTRY OF JUSTICE,LAA,29/Jan/2014 ,Civil Representation,LEGAL AID FUND - Programme Costs,TAMMI E BANNON,133254276,"31,784.40",Civil Representation: Legal Aid Payments
MINISTRY OF JUSTICE,LAA,15/Jan/2014 ,Civil Representation,LEGAL AID FUND - Programme Costs,THE FAMILY LAW CO BY HARTNELL CHANOT,132934617,"40,774.23",Civil Representation: Legal Aid Payments
MINISTRY OF JUSTICE,LAA,15/Jan/2014 ,Civil Representation,LEGAL AID FUND - Programme Costs,THE FAMILY LAW CO BY HARTNELL CHANOT,133004126,"42,382.86",Civil Representation: Legal Aid Payments
MINISTRY OF JUSTICE,LAA,15/Jan/2014 ,Civil Representation,LEGAL AID FUND - Programme Costs,THE FAMILY LAW CO BY HARTNELL CHANOT,132917716,"54,395.45",Civil Representation: Legal Aid Payments
MINISTRY OF JUSTICE,LAA,15/Jan/2014 ,Civil Representation,LEGAL AID FUND - Programme Costs,THERESA PEPPER,133029059,"26,730.00",Civil Representation: Legal Aid Payments
MINISTRY OF JUSTICE,LAA,15/Jan/2014 ,Civil Representation,LEGAL AID FUND - Programme Costs,THOMPSON & CO,132943438,"26,542.39",Civil Representation: Legal Aid Payments
MINISTRY OF JUSTICE,LAA,22/Jan/2014 ,Civil Representation,LEGAL AID FUND - Programme Costs,THOMPSON & CO,133156831,"32,749.55",Civil Representation: Legal Aid Payments
MINISTRY OF JUSTICE,LAA,22/Jan/2014 ,Civil Representation,LEGAL AID FUND - Programme Costs,THOMPSON & CO,133155245,"32,855.21",Civil Representation: Legal Aid Payments
MINISTRY OF JUSTICE,LAA,22/Jan/2014 ,Civil Representation,LEGAL AID FUND - Programme Costs,WILLISCROFT & CO SOLICITORS,132705614,"62,438.06",Civil Representation: Legal Aid Payments
MINISTRY OF JUSTICE,LAA,29/Jan/2014 ,Crime Higher,LEGAL AID FUND - Programme Costs,A A MIRSONS SOLICITORS LTD,133189852,"25,247.80",Crime Higher: Legal Aid Payments
MINISTRY OF JUSTICE,LAA,29/Jan/2014 ,Crime Higher,LEGAL AID FUND - Programme Costs,A B SOLICITORS,133213393,"32,509.10",Crime Higher: Legal Aid Payments
MINISTRY OF JUSTICE,LAA,08/Jan/2014 ,Crime Higher,LEGAL AID FUND - Programme Costs,ABR SOLICITORS,132564640,"58,208.27",Crime Higher: Legal Aid Payments
MINISTRY OF JUSTICE,LAA,08/Jan/2014 ,Crime Higher,LEGAL AID FUND - Programme Costs,ABV SOLICITORS,132879659,"26,920.16",Crime Higher: Legal Aid Payments
MINISTRY OF JUSTICE,LAA,15/Jan/2014 ,Crime Higher,LEGAL AID FUND - Programme Costs,ABV SOLICITORS,132967453,"115,052.57",Crime Higher: Legal Aid Payments
MINISTRY OF JUSTICE,LAA,15/Jan/2014 ,Crime Higher,LEGAL AID FUND - Programme Costs,ACA LAW LTD,133013010,"47,099.27",Crime Higher: Legal Aid Payments
MINISTRY OF JUSTICE,LAA,15/Jan/2014 ,Crime Higher,LEGAL AID FUND - Programme Costs,ACHILLEA & CO-ADVOCATE,132978696,"30,964.43",Crime Higher: Legal Aid Payments
MINISTRY OF JUSTICE,LAA,08/Jan/2014 ,Crime Higher,LEGAL AID FUND - Programme Costs,ALEXANDER CAMERON QC,132783097,"61,823.34",Crime Higher: Legal Aid Payments
MINISTRY OF JUSTICE,LAA,15/Jan/2014 ,Crime Higher,LEGAL AID FUND - Programme Costs,ALEXANDER SOLICITORS LTD,133040907,"37,905.32",Crime Higher: Legal Aid Payments
MINISTRY OF JUSTICE,LAA,15/Jan/2014 ,Crime Higher,LEGAL AID FUND - Programme Costs,ALISTAIR N MACDONALD QC,133013595,"31,712.05",Crime Higher: Legal Aid Payments
MINISTRY OF JUSTICE,LAA,22/Jan/2014 ,Crime Higher,LEGAL AID FUND - Programme Costs,AMANDA O'MARA,133064303,"25,471.20",Crime Higher: Legal Aid Payments
MINISTRY OF JUSTICE,LAA,08/Jan/2014 ,Crime Higher,LEGAL AID FUND - Programme Costs,AMBER SOLICITORS LLP,132820342,"45,876.74",Crime Higher: Legal Aid Payments
MINISTRY OF JUSTICE,LAA,08/Jan/2014 ,Crime Higher,LEGAL AID FUND - Programme Costs,ANDREW J JEBB,132807654,"26,367.60",Crime Higher: Legal Aid Payments
MINISTRY OF JUSTICE,LAA,08/Jan/2014 ,Crime Higher,LEGAL AID FUND - Programme Costs,ASHCOTT SOLICITORS LTD,132820161,"27,636.74",Crime Higher: Legal Aid Payments
MINISTRY OF JUSTICE,LAA,29/Jan/2014 ,Crime Higher,LEGAL AID FUND - Programme Costs,ASHMANS SOLICITORS,133166975,"39,088.50",Crime Higher: Legal Aid Payments
MINISTRY OF JUSTICE,LAA,09/Jan/2014 ,Crime Higher,LEGAL AID FUND - Programme Costs,BARK & CO,132906996,"39,013.92",Crime Higher: Legal Aid Payments
MINISTRY OF JUSTICE,LAA,22/Jan/2014 ,Crime Higher,LEGAL AID FUND - Programme Costs,BENJAMIN A O AINA QC,133143454,"45,159.34",Crime Higher: Legal Aid Payments
MINISTRY OF JUSTICE,LAA,29/Jan/2014 ,Crime Higher,LEGAL AID FUND - Programme Costs,BENN MAGUIRE,133257006,"27,693.71",Crime Higher: Legal Aid Payments
MINISTRY OF JUSTICE,LAA,08/Jan/2014 ,Crime Higher,LEGAL AID FUND - Programme Costs,BERNARD RICHMOND QC,132879758,"25,284.44",Crime Higher: Legal Aid Payments
MINISTRY OF JUSTICE,LAA,09/Jan/2014 ,Crime Higher,LEGAL AID FUND - Programme Costs,BERRY & BERRY LLP,132930149,"43,258.01",Crime Higher: Legal Aid Payments
MINISTRY OF JUSTICE,LAA,15/Jan/2014 ,Crime Higher,LEGAL AID FUND - Programme Costs,BESWICKS SOLICITORS LLP,132955106,"29,741.64",Crime Higher: Legal Aid Payments
MINISTRY OF JUSTICE,LAA,08/Jan/2014 ,Crime Higher,LEGAL AID FUND - Programme Costs,BIRCHALL BLACKBURN SOLICITORS,132879459,"25,535.95",Crime Higher: Legal Aid Payments
MINISTRY OF JUSTICE,LAA,29/Jan/2014 ,Crime Higher,LEGAL AID FUND - Programme Costs,BIRDS SOLICITORS LTD,133189600,"54,739.85",Crime Higher: Legal Aid Payments
MINISTRY OF JUSTICE,LAA,08/Jan/2014 ,Crime Higher,LEGAL AID FUND - Programme Costs,BIRDS SOLICITORS LTD [ADVOCATE],132838770,"30,026.14",Crime Higher: Legal Aid Payments
MINISTRY OF JUSTICE,LAA,29/Jan/2014 ,Crime Higher,LEGAL AID FUND - Programme Costs,BIRNBERG PEIRCE & PARTNERS,133175097,"123,520.92",Crime Higher: Legal Aid Payments
MINISTRY OF JUSTICE,LAA,08/Jan/2014 ,Crime Higher,LEGAL AID FUND - Programme Costs,BISHOP & LIGHT SOLICITORS,132781918,"26,036.74",Crime Higher: Legal Aid Payments
MINISTRY OF JUSTICE,LAA,29/Jan/2014 ,Crime Higher,LEGAL AID FUND - Programme Costs,BJ & CO SOLICITORS LTD,133212703,"44,659.13",Crime Higher: Legal Aid Payments
MINISTRY OF JUSTICE,LAA,08/Jan/2014 ,Crime Higher,LEGAL AID FUND - Programme Costs,BLACKFORDS LLP,132798048,"54,497.60",Crime Higher: Legal Aid Payments
MINISTRY OF JUSTICE,LAA,29/Jan/2014 ,Crime Higher,LEGAL AID FUND - Programme Costs,BOND JOSEPH,133167581,"38,820.52",Crime Higher: Legal Aid Payments
MINISTRY OF JUSTICE,LAA,08/Jan/2014 ,Crime Higher,LEGAL AID FUND - Programme Costs,BOOTHROYDS,132820253,"30,807.80",Crime Higher: Legal Aid Payments
MINISTRY OF JUSTICE,LAA,29/Jan/2014 ,Crime Higher,LEGAL AID FUND - Programme Costs,BRYAN R COX QC,133167234,"25,471.20",Crime Higher: Legal Aid Payments
MINISTRY OF JUSTICE,LAA,09/Jan/2014 ,Crime Higher,LEGAL AID FUND - Programme Costs,BUKI DUNBAR,132930727,"26,293.69",Crime Higher: Legal Aid Payments
MINISTRY OF JUSTICE,LAA,29/Jan/2014 ,Crime Higher,LEGAL AID FUND - Programme Costs,BURROWS BUSSIN,133287014,"26,138.47",Crime Higher: Legal Aid Payments
MINISTRY OF JUSTICE,LAA,29/Jan/2014 ,Crime Higher,LEGAL AID FUND - Programme Costs,BURROWS BUSSIN,133216692,"32,049.60",Crime Higher: Legal Aid Payments
MINISTRY OF JUSTICE,LAA,29/Jan/2014 ,Crime Higher,LEGAL AID FUND - Programme Costs,BURROWS BUSSIN,133216689,"49,624.88",Crime Higher: Legal Aid Payments
MINISTRY OF JUSTICE,LAA,22/Jan/2014 ,Crime Higher,LEGAL AID FUND - Programme Costs,BURTON COPELAND LLP,133128096,"40,717.99",Crime Higher: Legal Aid Payments
MINISTRY OF JUSTICE,LAA,22/Jan/2014 ,Crime Higher,LEGAL AID FUND - Programme Costs,BUXTON RYAN & CO [ADVOCATE],133063542,"33,262.49",Crime Higher: Legal Aid Payments
MINISTRY OF JUSTICE,LAA,22/Jan/2014 ,Crime Higher,LEGAL AID FUND - Programme Costs,BYRNE & PARTNERS LLP,133094120,"30,422.67",Crime Higher: Legal Aid Payments
MINISTRY OF JUSTICE,LAA,22/Jan/2014 ,Crime Higher,LEGAL AID FUND - Programme Costs,CALE SOLICITORS,133107000,"101,012.59",Crime Higher: Legal Aid Payments
MINISTRY OF JUSTICE,LAA,29/Jan/2014 ,Crime Higher,LEGAL AID FUND - Programme Costs,CANTARIS LOCKE SOLICITORS,133213784,"95,769.88",Crime Higher: Legal Aid Payments
MINISTRY OF JUSTICE,LAA,22/Jan/2014 ,Crime Higher,LEGAL AID FUND - Programme Costs,CARR & CO,133107574,"64,262.32",Crime Higher: Legal Aid Payments
MINISTRY OF JUSTICE,LAA,22/Jan/2014 ,Crime Higher,LEGAL AID FUND - Programme Costs,CARTER MOORE SOLICITORS LTD,133142884,"71,004.01",Crime Higher: Legal Aid Payments
MINISTRY OF JUSTICE,LAA,29/Jan/2014 ,Crime Higher,LEGAL AID FUND - Programme Costs,CARTER MOORE SOLICITORS LTD-ADVOCATE,133190471,"27,349.81",Crime Higher: Legal Aid Payments
MINISTRY OF JUSTICE,LAA,29/Jan/2014 ,Crime Higher,LEGAL AID FUND - Programme Costs,CARTER OSBORNE & CO,133232987,"28,544.59",Crime Higher: Legal Aid Payments
MINISTRY OF JUSTICE,LAA,22/Jan/2014 ,Crime Higher,LEGAL AID FUND - Programme Costs,CARTER OSBORNE & CO,133143017,"36,655.56",Crime Higher: Legal Aid Payments
MINISTRY OF JUSTICE,LAA,15/Jan/2014 ,Crime Higher,LEGAL AID FUND - Programme Costs,CARTWRIGHT KING,133015648,"54,497.60",Crime Higher: Legal Aid Payments
MINISTRY OF JUSTICE,LAA,15/Jan/2014 ,Crime Higher,LEGAL AID FUND - Programme Costs,CARTWRIGHT KING SOLICITORS,133039236,"32,113.52",Crime Higher: Legal Aid Payments
MINISTRY OF JUSTICE,LAA,29/Jan/2014 ,Crime Higher,LEGAL AID FUND - Programme Costs,CARTWRIGHT KING SOLICITORS,133189839,"38,964.64",Crime Higher: Legal Aid Payments
MINISTRY OF JUSTICE,LAA,15/Jan/2014 ,Crime Higher,LEGAL AID FUND - Programme Costs,CARTWRIGHT KING SOLICITORS,133040570,"43,799.76",Crime Higher: Legal Aid Payments
MINISTRY OF JUSTICE,LAA,29/Jan/2014 ,Crime Higher,LEGAL AID FUND - Programme Costs,CHARLES I SHERRARD,133271440,"42,047.64",Crime Higher: Legal Aid Payments
MINISTRY OF JUSTICE,LAA,09/Jan/2014 ,Crime Higher,LEGAL AID FUND - Programme Costs,CHARLES SIMMONS,132906124,"39,506.72",Crime Higher: Legal Aid Payments
MINISTRY OF JUSTICE,LAA,22/Jan/2014 ,Crime Higher,LEGAL AID FUND - Programme Costs,CHARLES SIMMONS,133141172,"43,147.32",Crime Higher: Legal Aid Payments
MINISTRY OF JUSTICE,LAA,09/Jan/2014 ,Crime Higher,LEGAL AID FUND - Programme Costs,CHOPRA & GILL SOLICITORS,132931528,"30,585.24",Crime Higher: Legal Aid Payments
MINISTRY OF JUSTICE,LAA,22/Jan/2014 ,Crime Higher,LEGAL AID FUND - Programme Costs,CHRISTOPHER J DONNELLAN,133107932,"28,955.36",Crime Higher: Legal Aid Payments
MINISTRY OF JUSTICE,LAA,15/Jan/2014 ,Crime Higher,LEGAL AID FUND - Programme Costs,CHRISTOPHER M HENLEY,132978065,"30,212.28",Crime Higher: Legal Aid Payments
MINISTRY OF JUSTICE,LAA,08/Jan/2014 ,Crime Higher,LEGAL AID FUND - Programme Costs,CHUDI GRANT,132840214,"32,553.34",Crime Higher: Legal Aid Payments
MINISTRY OF JUSTICE,LAA,08/Jan/2014 ,Crime Higher,LEGAL AID FUND - Programme Costs,CJH GREENHILL COOPER SOLICITORS,132879696,"35,122.01",Crime Higher: Legal Aid Payments
MINISTRY OF JUSTICE,LAA,15/Jan/2014 ,Crime Higher,LEGAL AID FUND - Programme Costs,CLIVE SHEPHERD & CO LLP,133039170,"28,967.10",Crime Higher: Legal Aid Payments
MINISTRY OF JUSTICE,LAA,22/Jan/2014 ,Crime Higher,LEGAL AID FUND - Programme Costs,COBLEYS LLP,133047511,"54,216.83",Crime Higher: Legal Aid Payments
MINISTRY OF JUSTICE,LAA,15/Jan/2014 ,Crime Higher,LEGAL AID FUND - Programme Costs,COHEN CRAMER,133012887,"64,516.02",Crime Higher: Legal Aid Payments
MINISTRY OF JUSTICE,LAA,08/Jan/2014 ,Crime Higher,LEGAL AID FUND - Programme Costs,COSTLEY & PARTNERS,132782470,"25,500.94",Crime Higher: Legal Aid Payments
MINISTRY OF JUSTICE,LAA,09/Jan/2014 ,Crime Higher,LEGAL AID FUND - Programme Costs,CRIMINAL DEFENCE SOLICITORS,132931274,"40,824.00",Crime Higher: Legal Aid Payments
MINISTRY OF JUSTICE,LAA,29/Jan/2014 ,Crime Higher,LEGAL AID FUND - Programme Costs,D B LAW,133233061,"27,660.74",Crime Higher: Legal Aid Payments
MINISTRY OF JUSTICE,LAA,15/Jan/2014 ,Crime Higher,LEGAL AID FUND - Programme Costs,DAFNA M SPIRO,132978702,"55,650.48",Crime Higher: Legal Aid Payments
MINISTRY OF JUSTICE,LAA,29/Jan/2014 ,Crime Higher,LEGAL AID FUND - Programme Costs,DANIEL JANNER QC,133222759,"69,179.40",Crime Higher: Legal Aid Payments
MINISTRY OF JUSTICE,LAA,29/Jan/2014 ,Crime Higher,LEGAL AID FUND - Programme Costs,DARRON WHITEHEAD,133271299,"29,640.02",Crime Higher: Legal Aid Payments
MINISTRY OF JUSTICE,LAA,08/Jan/2014 ,Crime Higher,LEGAL AID FUND - Programme Costs,DASS SOLICITORS,132798556,"31,469.94",Crime Higher: Legal Aid Payments
MINISTRY OF JUSTICE,LAA,29/Jan/2014 ,Crime Higher,LEGAL AID FUND - Programme Costs,DASS SOLICITORS,133220450,"39,852.90",Crime Higher: Legal Aid Payments
MINISTRY OF JUSTICE,LAA,08/Jan/2014 ,Crime Higher,LEGAL AID FUND - Programme Costs,DASS SOLICITORS,132838601,"48,852.68",Crime Higher: Legal Aid Payments
MINISTRY OF JUSTICE,LAA,29/Jan/2014 ,Crime Higher,LEGAL AID FUND - Programme Costs,DAVID B JOSSE QC,133271173,"27,020.40",Crime Higher: Legal Aid Payments
MINISTRY OF JUSTICE,LAA,29/Jan/2014 ,Crime Higher,LEGAL AID FUND - Programme Costs,DAVID J WHITTAKER,133284555,"48,288.19",Crime Higher: Legal Aid Payments
MINISTRY OF JUSTICE,LAA,29/Jan/2014 ,Crime Higher,LEGAL AID FUND - Programme Costs,DAVID N BENTLEY,133271380,"36,784.76",Crime Higher: Legal Aid Payments
MINISTRY OF JUSTICE,LAA,08/Jan/2014 ,Crime Higher,LEGAL AID FUND - Programme Costs,DAVID PHILLIPS & PARTNERS,132820591,"34,407.89",Crime Higher: Legal Aid Payments
MINISTRY OF JUSTICE,LAA,09/Jan/2014 ,Crime Higher,LEGAL AID FUND - Programme Costs,DAVID S HISLOP Q.C.,132907782,"25,935.58",Crime Higher: Legal Aid Payments
MINISTRY OF JUSTICE,LAA,22/Jan/2014 ,Crime Higher,LEGAL AID FUND - Programme Costs,DAVID S MYERSON QC,133142618,"39,666.91",Crime Higher: Legal Aid Payments
MINISTRY OF JUSTICE,LAA,08/Jan/2014 ,Crime Higher,LEGAL AID FUND - Programme Costs,DAVID T HOWKER QC,132879612,"54,123.77",Crime Higher: Legal Aid Payments
MINISTRY OF JUSTICE,LAA,29/Jan/2014 ,Crime Higher,LEGAL AID FUND - Programme Costs,DDE LAW LTD,133190086,"43,799.76",Crime Higher: Legal Aid Payments
MINISTRY OF JUSTICE,LAA,29/Jan/2014 ,Crime Higher,LEGAL AID FUND - Programme Costs,DON SOLICITORS,133189877,"38,476.98",Crime Higher: Legal Aid Payments
MINISTRY OF JUSTICE,LAA,09/Jan/2014 ,Crime Higher,LEGAL AID FUND - Programme Costs,DUNCAN LEWIS,132820426,"27,878.26",Crime Higher: Legal Aid Payments
MINISTRY OF JUSTICE,LAA,29/Jan/2014 ,Crime Higher,LEGAL AID FUND - Programme Costs,DUNCAN LEWIS,133189479,"30,248.20",Crime Higher: Legal Aid Payments
MINISTRY OF JUSTICE,LAA,09/Jan/2014 ,Crime Higher,LEGAL AID FUND - Programme Costs,DUNCAN LEWIS,132781673,"31,703.16",Crime Higher: Legal Aid Payments
MINISTRY OF JUSTICE,LAA,22/Jan/2014 ,Crime Higher,LEGAL AID FUND - Programme Costs,EBR ATTRIDGE,133092073,"32,564.13",Crime Higher: Legal Aid Payments
MINISTRY OF JUSTICE,LAA,22/Jan/2014 ,Crime Higher,LEGAL AID FUND - Programme Costs,EBR ATTRIDGE,133143975,"34,800.00",Crime Higher: Legal Aid Payments
MINISTRY OF JUSTICE,LAA,29/Jan/2014 ,Crime Higher,LEGAL AID FUND - Programme Costs,EBR ATTRIDGE,133167455,"35,965.43",Crime Higher: Legal Aid Payments
MINISTRY OF JUSTICE,LAA,22/Jan/2014 ,Crime Higher,LEGAL AID FUND - Programme Costs,EBR ATTRIDGE,133143867,"43,147.32",Crime Higher: Legal Aid Payments
MINISTRY OF JUSTICE,LAA,15/Jan/2014 ,Crime Higher,LEGAL AID FUND - Programme Costs,EBR ATTRIDGE,132979001,"71,569.40",Crime Higher: Legal Aid Payments
MINISTRY OF JUSTICE,LAA,22/Jan/2014 ,Crime Higher,LEGAL AID FUND - Programme Costs,EBR ATTRIDGE,133143973,"86,686.92",Crime Higher: Legal Aid Payments
MINISTRY OF JUSTICE,LAA,22/Jan/2014 ,Crime Higher,LEGAL AID FUND - Programme Costs,EBR ATTRIDGE,133143952,"88,434.89",Crime Higher: Legal Aid Payments
MINISTRY OF JUSTICE,LAA,08/Jan/2014 ,Crime Higher,LEGAL AID FUND - Programme Costs,EBR ATTRIDGE-ADVOCATE,132880200,"28,612.43",Crime Higher: Legal Aid Payments
MINISTRY OF JUSTICE,LAA,29/Jan/2014 ,Crime Higher,LEGAL AID FUND - Programme Costs,EKWALL S TIWANA,133271206,"25,467.00",Crime Higher: Legal Aid Payments
MINISTRY OF JUSTICE,LAA,15/Jan/2014 ,Crime Higher,LEGAL AID FUND - Programme Costs,ELITE SOLICITORS,133014789,"27,189.06",Crime Higher: Legal Aid Payments
MINISTRY OF JUSTICE,LAA,22/Jan/2014 ,Crime Higher,LEGAL AID FUND - Programme Costs,ERIC A ELLIOTT,133086769,"39,920.00",Crime Higher: Legal Aid Payments
MINISTRY OF JUSTICE,LAA,22/Jan/2014 ,Crime Higher,LEGAL AID FUND - Programme Costs,EVANS BISSETT SOLICITORS,133106594,"71,647.56",Crime Higher: Legal Aid Payments
MINISTRY OF JUSTICE,LAA,08/Jan/2014 ,Crime Higher,LEGAL AID FUND - Programme Costs,FARADAYS SOLICITORS LTD,132879486,"30,043.02",Crime Higher: Legal Aid Payments
MINISTRY OF JUSTICE,LAA,15/Jan/2014 ,Crime Higher,LEGAL AID FUND - Programme Costs,FARADAYS SOLICITORS LTD,133014609,"68,112.17",Crime Higher: Legal Aid Payments
MINISTRY OF JUSTICE,LAA,08/Jan/2014 ,Crime Higher,LEGAL AID FUND - Programme Costs,FIRST DEFENCE SOLICITORS LTD - ADVOCATE,132880048,"28,238.52",Crime Higher: Legal Aid Payments
MINISTRY OF JUSTICE,LAA,22/Jan/2014 ,Crime Higher,LEGAL AID FUND - Programme Costs,FMW LAW LTD,133087772,"38,744.72",Crime Higher: Legal Aid Payments
MINISTRY OF JUSTICE,LAA,08/Jan/2014 ,Crime Higher,LEGAL AID FUND - Programme Costs,FORBES SOLICITORS,132781948,"53,304.95",Crime Higher: Legal Aid Payments
MINISTRY OF JUSTICE,LAA,08/Jan/2014 ,Crime Higher,LEGAL AID FUND - Programme Costs,FORBES SOLICITORS,132889986,"64,098.24",Crime Higher: Legal Aid Payments
MINISTRY OF JUSTICE,LAA,29/Jan/2014 ,Crime Higher,LEGAL AID FUND - Programme Costs,FRAME SMITH SOLICITORS,133232730,"40,559.66",Crime Higher: Legal Aid Payments
MINISTRY OF JUSTICE,LAA,15/Jan/2014 ,Crime Higher,LEGAL AID FUND - Programme Costs,FRANCIS G H D FITZGIBBON Q.C.,133040814,"51,293.64",Crime Higher: Legal Aid Payments
MINISTRY OF JUSTICE,LAA,15/Jan/2014 ,Crime Higher,LEGAL AID FUND - Programme Costs,FRISBY & CO,133014499,"65,397.12",Crime Higher: Legal Aid Payments
MINISTRY OF JUSTICE,LAA,29/Jan/2014 ,Crime Higher,LEGAL AID FUND - Programme Costs,FRISBY & CO,133280941,"66,325.20",Crime Higher: Legal Aid Payments
MINISTRY OF JUSTICE,LAA,09/Jan/2014 ,Crime Higher,LEGAL AID FUND - Programme Costs,FUNNELL & PERRING,132907022,"64,673.88",Crime Higher: Legal Aid Payments
MINISTRY OF JUSTICE,LAA,15/Jan/2014 ,Crime Higher,LEGAL AID FUND - Programme Costs,G T STEWART SOLICITORS,132977750,"111,108.90",Crime Higher: Legal Aid Payments
MINISTRY OF JUSTICE,LAA,09/Jan/2014 ,Crime Higher,LEGAL AID FUND - Programme Costs,G T STEWART SOLICITORS [ADVOCATE],132930695,"31,552.43",Crime Higher: Legal Aid Payments
MINISTRY OF JUSTICE,LAA,09/Jan/2014 ,Crime Higher,LEGAL AID FUND - Programme Costs,G T STEWART SOLICITORS [ADVOCATE],132930709,"44,799.68",Crime Higher: Legal Aid Payments
MINISTRY OF JUSTICE,LAA,22/Jan/2014 ,Crime Higher,LEGAL AID FUND - Programme Costs,G WILLIAM LOWE QC,133144013,"35,229.22",Crime Higher: Legal Aid Payments
MINISTRY OF JUSTICE,LAA,22/Jan/2014 ,Crime Higher,LEGAL AID FUND - Programme Costs,GEORGE A CARTER-STEPHENSON Q.C.,133151050,"61,425.44",Crime Higher: Legal Aid Payments
MINISTRY OF JUSTICE,LAA,15/Jan/2014 ,Crime Higher,LEGAL AID FUND - Programme Costs,GLANVILLE ROBINSON LTD,132955931,"31,115.58",Crime Higher: Legal Aid Payments
MINISTRY OF JUSTICE,LAA,22/Jan/2014 ,Crime Higher,LEGAL AID FUND - Programme Costs,GOLDKORNS,133107741,"39,300.62",Crime Higher: Legal Aid Payments
MINISTRY OF JUSTICE,LAA,22/Jan/2014 ,Crime Higher,LEGAL AID FUND - Programme Costs,GRAHAM J CAMPBELL,133142071,"36,555.22",Crime Higher: Legal Aid Payments
MINISTRY OF JUSTICE,LAA,29/Jan/2014 ,Crime Higher,LEGAL AID FUND - Programme Costs,GUNEY CLARK & RYAN LTD CO,133212360,"39,010.92",Crime Higher: Legal Aid Payments
MINISTRY OF JUSTICE,LAA,08/Jan/2014 ,Crime Higher,LEGAL AID FUND - Programme Costs,GURNEY HARDEN,132880933,"54,497.60",Crime Higher: Legal Aid Payments
MINISTRY OF JUSTICE,LAA,29/Jan/2014 ,Crime Higher,LEGAL AID FUND - Programme Costs,HARBANS SINGH & CO,133167006,"29,879.98",Crime Higher: Legal Aid Payments
MINISTRY OF JUSTICE,LAA,15/Jan/2014 ,Crime Higher,LEGAL AID FUND - Programme Costs,HARRIS SOLICITORS,133039260,"61,231.19",Crime Higher: Legal Aid Payments
MINISTRY OF JUSTICE,LAA,29/Jan/2014 ,Crime Higher,LEGAL AID FUND - Programme Costs,HARRY BOODHOO & CO,133273031,"56,801.04",Crime Higher: Legal Aid Payments
MINISTRY OF JUSTICE,LAA,15/Jan/2014 ,Crime Higher,LEGAL AID FUND - Programme Costs,HAYES LAW (CRIMINAL) LLP,133014949,"54,050.70",Crime Higher: Legal Aid Payments
MINISTRY OF JUSTICE,LAA,22/Jan/2014 ,Crime Higher,LEGAL AID FUND - Programme Costs,HEALEY KENYON MCATEER SOLICITORS,133143880,"39,590.44",Crime Higher: Legal Aid Payments
MINISTRY OF JUSTICE,LAA,09/Jan/2014 ,Crime Higher,LEGAL AID FUND - Programme Costs,HENRY MILNER & CO,132930930,"32,750.52",Crime Higher: Legal Aid Payments
MINISTRY OF JUSTICE,LAA,22/Jan/2014 ,Crime Higher,LEGAL AID FUND - Programme Costs,HENRY'S SOLICITORS LTD,133143009,"28,560.08",Crime Higher: Legal Aid Payments
MINISTRY OF JUSTICE,LAA,29/Jan/2014 ,Crime Higher,LEGAL AID FUND - Programme Costs,HICKMAN & ROSE,133190235,"54,497.60",Crime Higher: Legal Aid Payments
MINISTRY OF JUSTICE,LAA,15/Jan/2014 ,Crime Higher,LEGAL AID FUND - Programme Costs,HINE SOLICITORS,132954153,"34,249.70",Crime Higher: Legal Aid Payments
MINISTRY OF JUSTICE,LAA,29/Jan/2014 ,Crime Higher,LEGAL AID FUND - Programme Costs,HODGE JONES & ALLEN LLP,133272317,"47,099.27",Crime Higher: Legal Aid Payments
MINISTRY OF JUSTICE,LAA,29/Jan/2014 ,Crime Higher,LEGAL AID FUND - Programme Costs,HODGSON COULTHARD & CO,133286201,"60,663.48",Crime Higher: Legal Aid Payments
MINISTRY OF JUSTICE,LAA,29/Jan/2014 ,Crime Higher,LEGAL AID FUND - Programme Costs,HOLLINGSWORTH EDWARDS SOLICITORS,133166358,"32,509.10",Crime Higher: Legal Aid Payments
MINISTRY OF JUSTICE,LAA,15/Jan/2014 ,Crime Higher,LEGAL AID FUND - Programme Costs,HUSSAIN SOLICITORS LTD [ADVOCATE],133040157,"27,017.26",Crime Higher: Legal Aid Payments
MINISTRY OF JUSTICE,LAA,29/Jan/2014 ,Crime Higher,LEGAL AID FUND - Programme Costs,I B B SOLICITORS,133272059,"51,384.55",Crime Higher: Legal Aid Payments
MINISTRY OF JUSTICE,LAA,09/Jan/2014 ,Crime Higher,LEGAL AID FUND - Programme Costs,IAN D LAWRIE,132906952,"35,537.90",Crime Higher: Legal Aid Payments
MINISTRY OF JUSTICE,LAA,22/Jan/2014 ,Crime Higher,LEGAL AID FUND - Programme Costs,ICAH D E PEART QC,133142311,"30,057.00",Crime Higher: Legal Aid Payments
MINISTRY OF JUSTICE,LAA,22/Jan/2014 ,Crime Higher,LEGAL AID FUND - Programme Costs,IMRAN KHAN & PARTNERS,133142758,"54,497.60",Crime Higher: Legal Aid Payments
MINISTRY OF JUSTICE,LAA,22/Jan/2014 ,Crime Higher,LEGAL AID FUND - Programme Costs,J D SPICER ZEB,133129960,"26,749.36",Crime Higher: Legal Aid Payments
MINISTRY OF JUSTICE,LAA,15/Jan/2014 ,Crime Higher,LEGAL AID FUND - Programme Costs,J KEVIN MCCARTNEY,133040253,"39,624.22",Crime Higher: Legal Aid Payments
MINISTRY OF JUSTICE,LAA,09/Jan/2014 ,Crime Higher,LEGAL AID FUND - Programme Costs,J. R. JONES SOLICITORS,132907901,"46,053.62",Crime Higher: Legal Aid Payments
MINISTRY OF JUSTICE,LAA,15/Jan/2014 ,Crime Higher,LEGAL AID FUND - Programme Costs,JAMES L BOURNE-ARTON,132978252,"25,846.87",Crime Higher: Legal Aid Payments
MINISTRY OF JUSTICE,LAA,08/Jan/2014 ,Crime Higher,LEGAL AID FUND - Programme Costs,JAMES P DUNSTAN 1053V,132797875,"42,898.94",Crime Higher: Legal Aid Payments
MINISTRY OF JUSTICE,LAA,29/Jan/2014 ,Crime Higher,LEGAL AID FUND - Programme Costs,JASON A SUGARMAN,133280862,"57,999.59",Crime Higher: Legal Aid Payments
MINISTRY OF JUSTICE,LAA,15/Jan/2014 ,Crime Higher,LEGAL AID FUND - Programme Costs,JASON CROSS,132978675,"27,465.79",Crime Higher: Legal Aid Payments
MINISTRY OF JUSTICE,LAA,22/Jan/2014 ,Crime Higher,LEGAL AID FUND - Programme Costs,JEROME LYNCH QC,133142493,"28,955.36",Crime Higher: Legal Aid Payments
MINISTRY OF JUSTICE,LAA,29/Jan/2014 ,Crime Higher,LEGAL AID FUND - Programme Costs,JFH LAW,133271913,"49,899.38",Crime Higher: Legal Aid Payments
MINISTRY OF JUSTICE,LAA,08/Jan/2014 ,Crime Higher,LEGAL AID FUND - Programme Costs,JOHN DELANEY & CO SOLICITORS,132797264,"34,966.99",Crime Higher: Legal Aid Payments
MINISTRY OF JUSTICE,LAA,29/Jan/2014 ,Crime Higher,LEGAL AID FUND - Programme Costs,JOHN PRICE Q.C.,133271540,"34,303.93",Crime Higher: Legal Aid Payments
MINISTRY OF JUSTICE,LAA,15/Jan/2014 ,Crime Higher,LEGAL AID FUND - Programme Costs,JONATHAN L ROSEN,132978415,"26,694.19",Crime Higher: Legal Aid Payments
MINISTRY OF JUSTICE,LAA,15/Jan/2014 ,Crime Higher,LEGAL AID FUND - Programme Costs,JOSEPH HILL & CO,132977725,"61,107.85",Crime Higher: Legal Aid Payments
MINISTRY OF JUSTICE,LAA,29/Jan/2014 ,Crime Higher,LEGAL AID FUND - Programme Costs,JOSEPH J B L GIRET,133271234,"32,557.67",Crime Higher: Legal Aid Payments
MINISTRY OF JUSTICE,LAA,08/Jan/2014 ,Crime Higher,LEGAL AID FUND - Programme Costs,JVA LAW,132839897,"98,602.86",Crime Higher: Legal Aid Payments
MINISTRY OF JUSTICE,LAA,15/Jan/2014 ,Crime Higher,LEGAL AID FUND - Programme Costs,KAIM TODNER SOLICITORS LIMITED,133015359,"47,231.45",Crime Higher: Legal Aid Payments
MINISTRY OF JUSTICE,LAA,09/Jan/2014 ,Crime Higher,LEGAL AID FUND - Programme Costs,KANGS SOLICITORS,132916248,"40,546.37",Crime Higher: Legal Aid Payments
MINISTRY OF JUSTICE,LAA,29/Jan/2014 ,Crime Higher,LEGAL AID FUND - Programme Costs,KANGS SOLICITORS,133223986,"94,860.13",Crime Higher: Legal Aid Payments
MINISTRY OF JUSTICE,LAA,29/Jan/2014 ,Crime Higher,LEGAL AID FUND - Programme Costs,KANGS SOLICITORS-ADVOCATE,133197507,"29,923.43",Crime Higher: Legal Aid Payments
MINISTRY OF JUSTICE,LAA,29/Jan/2014 ,Crime Higher,LEGAL AID FUND - Programme Costs,KBS SOLICITORS,133232820,"98,602.86",Crime Higher: Legal Aid Payments
MINISTRY OF JUSTICE,LAA,22/Jan/2014 ,Crime Higher,LEGAL AID FUND - Programme Costs,KBS SOLICITORS [ADVOCATE],133063020,"42,339.84",Crime Higher: Legal Aid Payments
MINISTRY OF JUSTICE,LAA,29/Jan/2014 ,Crime Higher,LEGAL AID FUND - Programme Costs,KENNETH M BARROW & CO,133281120,"53,130.02",Crime Higher: Legal Aid Payments
MINISTRY OF JUSTICE,LAA,22/Jan/2014 ,Crime Higher,LEGAL AID FUND - Programme Costs,KEVIN J HEGARTY Q.C.,133142515,"42,580.13",Crime Higher: Legal Aid Payments
MINISTRY OF JUSTICE,LAA,22/Jan/2014 ,Crime Higher,LEGAL AID FUND - Programme Costs,KIM HOLLIS,133143181,"37,640.44",Crime Higher: Legal Aid Payments
MINISTRY OF JUSTICE,LAA,09/Jan/2014 ,Crime Higher,LEGAL AID FUND - Programme Costs,KYLE LEGAL PRACTICE,132906772,"36,406.42",Crime Higher: Legal Aid Payments
MINISTRY OF JUSTICE,LAA,22/Jan/2014 ,Crime Higher,LEGAL AID FUND - Programme Costs,LAWTONS SOLICITORS LTD,133108017,"116,008.49",Crime Higher: Legal Aid Payments
MINISTRY OF JUSTICE,LAA,29/Jan/2014 ,Crime Higher,LEGAL AID FUND - Programme Costs,LEONARD SMITH Q.C.,133168093,"25,374.16",Crime Higher: Legal Aid Payments
MINISTRY OF JUSTICE,LAA,22/Jan/2014 ,Crime Higher,LEGAL AID FUND - Programme Costs,LEWIS HYMANSON SMALL LLP,133107869,"64,262.32",Crime Higher: Legal Aid Payments
MINISTRY OF JUSTICE,LAA,22/Jan/2014 ,Crime Higher,LEGAL AID FUND - Programme Costs,LINKS LEGAL,133143894,"30,043.02",Crime Higher: Legal Aid Payments
MINISTRY OF JUSTICE,LAA,22/Jan/2014 ,Crime Higher,LEGAL AID FUND - Programme Costs,LISA M WILDING,133129726,"48,181.20",Crime Higher: Legal Aid Payments
MINISTRY OF JUSTICE,LAA,15/Jan/2014 ,Crime Higher,LEGAL AID FUND - Programme Costs,LLM SOLICITORS (LONDON) LTD,132977809,"97,593.35",Crime Higher: Legal Aid Payments
MINISTRY OF JUSTICE,LAA,15/Jan/2014 ,Crime Higher,LEGAL AID FUND - Programme Costs,LLOYDS PR LTD,133014589,"26,995.64",Crime Higher: Legal Aid Payments
MINISTRY OF JUSTICE,LAA,22/Jan/2014 ,Crime Higher,LEGAL AID FUND - Programme Costs,LLOYDS PR LTD,133107946,"54,497.60",Crime Higher: Legal Aid Payments
MINISTRY OF JUSTICE,LAA,29/Jan/2014 ,Crime Higher,LEGAL AID FUND - Programme Costs,M & N SOLICITORS,133213670,"60,345.26",Crime Higher: Legal Aid Payments
MINISTRY OF JUSTICE,LAA,08/Jan/2014 ,Crime Higher,LEGAL AID FUND - Programme Costs,MACAULEY SMITH & CO [ADVOCATE],132820607,"27,480.36",Crime Higher: Legal Aid Payments
MINISTRY OF JUSTICE,LAA,15/Jan/2014 ,Crime Higher,LEGAL AID FUND - Programme Costs,MACLAVERTY COOPER ATKINS,132954409,"54,739.85",Crime Higher: Legal Aid Payments
MINISTRY OF JUSTICE,LAA,08/Jan/2014 ,Crime Higher,LEGAL AID FUND - Programme Costs,MAGUIRES SOLICITORS LTD,132821053,"26,050.98",Crime Higher: Legal Aid Payments
MINISTRY OF JUSTICE,LAA,22/Jan/2014 ,Crime Higher,LEGAL AID FUND - Programme Costs,MAIDMENTS LTD,133107447,"30,578.57",Crime Higher: Legal Aid Payments
MINISTRY OF JUSTICE,LAA,29/Jan/2014 ,Crime Higher,LEGAL AID FUND - Programme Costs,MALCOLM R SWIFT QC,133271361,"40,523.33",Crime Higher: Legal Aid Payments
MINISTRY OF JUSTICE,LAA,29/Jan/2014 ,Crime Higher,LEGAL AID FUND - Programme Costs,MALIK & MALIK SOLICITORS,133167063,"70,175.40",Crime Higher: Legal Aid Payments
MINISTRY OF JUSTICE,LAA,22/Jan/2014 ,Crime Higher,LEGAL AID FUND - Programme Costs,MALLETTS SOLICITORS,132114484,"28,153.46",Crime Higher: Legal Aid Payments
MINISTRY OF JUSTICE,LAA,22/Jan/2014 ,Crime Higher,LEGAL AID FUND - Programme Costs,MARK RAINSFORD QC,133091152,"45,524.81",Crime Higher: Legal Aid Payments
MINISTRY OF JUSTICE,LAA,22/Jan/2014 ,Crime Higher,LEGAL AID FUND - Programme Costs,MARTIN J TAYLOR,133151739,"47,723.35",Crime Higher: Legal Aid Payments
MINISTRY OF JUSTICE,LAA,15/Jan/2014 ,Crime Higher,LEGAL AID FUND - Programme Costs,MARTIN L A HICKS QC,132978115,"43,424.16",Crime Higher: Legal Aid Payments
MINISTRY OF JUSTICE,LAA,29/Jan/2014 ,Crime Higher,LEGAL AID FUND - Programme Costs,MARTIN MURRAY & ASSOCIATES,133166327,"38,921.93",Crime Higher: Legal Aid Payments
MINISTRY OF JUSTICE,LAA,15/Jan/2014 ,Crime Higher,LEGAL AID FUND - Programme Costs,MARTIN RUTHERFORD,132930670,"47,442.08",Crime Higher: Legal Aid Payments
MINISTRY OF JUSTICE,LAA,15/Jan/2014 ,Crime Higher,LEGAL AID FUND - Programme Costs,MATTHEW D MORGAN,133014037,"34,958.59",Crime Higher: Legal Aid Payments
MINISTRY OF JUSTICE,LAA,29/Jan/2014 ,Crime Higher,LEGAL AID FUND - Programme Costs,MATTHEW S BUCKLAND,133197109,"47,391.60",Crime Higher: Legal Aid Payments
MINISTRY OF JUSTICE,LAA,08/Jan/2014 ,Crime Higher,LEGAL AID FUND - Programme Costs,MICHAEL CARROLL & CO,132797833,"37,292.22",Crime Higher: Legal Aid Payments
MINISTRY OF JUSTICE,LAA,09/Jan/2014 ,Crime Higher,LEGAL AID FUND - Programme Costs,MICHAEL J BROMPTON QC,132906500,"25,935.58",Crime Higher: Legal Aid Payments
MINISTRY OF JUSTICE,LAA,08/Jan/2014 ,Crime Higher,LEGAL AID FUND - Programme Costs,MIDDLEWEEKS,132879770,"41,052.47",Crime Higher: Legal Aid Payments
MINISTRY OF JUSTICE,LAA,29/Jan/2014 ,Crime Higher,LEGAL AID FUND - Programme Costs,MOORE & TIBBITS,133166320,"54,243.01",Crime Higher: Legal Aid Payments
MINISTRY OF JUSTICE,LAA,22/Jan/2014 ,Crime Higher,LEGAL AID FUND - Programme Costs,MORGAN ROSE,133045736,"26,151.08",Crime Higher: Legal Aid Payments
MINISTRY OF JUSTICE,LAA,22/Jan/2014 ,Crime Higher,LEGAL AID FUND - Programme Costs,MSB LAW LLP,133107585,"50,894.09",Crime Higher: Legal Aid Payments
MINISTRY OF JUSTICE,LAA,22/Jan/2014 ,Crime Higher,LEGAL AID FUND - Programme Costs,MWA SOLICITORS,133108031,"98,602.86",Crime Higher: Legal Aid Payments
MINISTRY OF JUSTICE,LAA,09/Jan/2014 ,Crime Higher,LEGAL AID FUND - Programme Costs,NATHANIEL D RUDOLF,132906649,"30,538.20",Crime Higher: Legal Aid Payments
MINISTRY OF JUSTICE,LAA,29/Jan/2014 ,Crime Higher,LEGAL AID FUND - Programme Costs,NEIL A HAWES QC,133195982,"34,763.16",Crime Higher: Legal Aid Payments
MINISTRY OF JUSTICE,LAA,08/Jan/2014 ,Crime Higher,LEGAL AID FUND - Programme Costs,NELSON GUEST & PARTNERS-ADVOCATE,132879813,"33,892.10",Crime Higher: Legal Aid Payments
MINISTRY OF JUSTICE,LAA,09/Jan/2014 ,Crime Higher,LEGAL AID FUND - Programme Costs,NEUMANS LLP,132919647,"51,026.77",Crime Higher: Legal Aid Payments
MINISTRY OF JUSTICE,LAA,29/Jan/2014 ,Crime Higher,LEGAL AID FUND - Programme Costs,NICOLA E J SHANNON,133272485,"39,259.92",Crime Higher: Legal Aid Payments
MINISTRY OF JUSTICE,LAA,15/Jan/2014 ,Crime Higher,LEGAL AID FUND - Programme Costs,NOBLE SOLICITORS,133014608,"40,867.29",Crime Higher: Legal Aid Payments
MINISTRY OF JUSTICE,LAA,09/Jan/2014 ,Crime Higher,LEGAL AID FUND - Programme Costs,NOBLE SOLICITORS-ADVOCATE,132930383,"63,801.02",Crime Higher: Legal Aid Payments
MINISTRY OF JUSTICE,LAA,08/Jan/2014 ,Crime Higher,LEGAL AID FUND - Programme Costs,OLIVER WEETCH,132839804,"45,462.66",Crime Higher: Legal Aid Payments
MINISTRY OF JUSTICE,LAA,06/Jan/2014 ,Crime Higher,LEGAL AID FUND - Programme Costs,OLLIERS,132545027,"26,969.52",Crime Higher: Legal Aid Payments
MINISTRY OF JUSTICE,LAA,08/Jan/2014 ,Crime Higher,LEGAL AID FUND - Programme Costs,OLLIERS,132880560,"29,878.93",Crime Higher: Legal Aid Payments
MINISTRY OF JUSTICE,LAA,06/Jan/2014 ,Crime Higher,LEGAL AID FUND - Programme Costs,OLLIERS,132717704,"36,470.46",Crime Higher: Legal Aid Payments
MINISTRY OF JUSTICE,LAA,15/Jan/2014 ,Crime Higher,LEGAL AID FUND - Programme Costs,PATTICHI HILL & CROQUES,132977789,"101,012.59",Crime Higher: Legal Aid Payments
MINISTRY OF JUSTICE,LAA,29/Jan/2014 ,Crime Higher,LEGAL AID FUND - Programme Costs,PAUL K LEWIS Q.C.,133233202,"28,412.63",Crime Higher: Legal Aid Payments
MINISTRY OF JUSTICE,LAA,15/Jan/2014 ,Crime Higher,LEGAL AID FUND - Programme Costs,PAUL R GREANEY,133013633,"37,586.05",Crime Higher: Legal Aid Payments
MINISTRY OF JUSTICE,LAA,08/Jan/2014 ,Crime Higher,LEGAL AID FUND - Programme Costs,PAUL S BOGAN,132808427,"38,928.00",Crime Higher: Legal Aid Payments
MINISTRY OF JUSTICE,LAA,29/Jan/2014 ,Crime Higher,LEGAL AID FUND - Programme Costs,PHILIP H R KING QC,133271129,"25,845.60",Crime Higher: Legal Aid Payments
MINISTRY OF JUSTICE,LAA,08/Jan/2014 ,Crime Higher,LEGAL AID FUND - Programme Costs,PILLAI & JONES,132781382,"48,143.35",Crime Higher: Legal Aid Payments
MINISTRY OF JUSTICE,LAA,09/Jan/2014 ,Crime Higher,LEGAL AID FUND - Programme Costs,POTTER  DERBY SOLICITORS,132906156,"63,310.99",Crime Higher: Legal Aid Payments
MINISTRY OF JUSTICE,LAA,29/Jan/2014 ,Crime Higher,LEGAL AID FUND - Programme Costs,QAMAR SOLICITORS,133166632,"30,023.15",Crime Higher: Legal Aid Payments
MINISTRY OF JUSTICE,LAA,22/Jan/2014 ,Crime Higher,LEGAL AID FUND - Programme Costs,QUINN MELVILLE,133097260,"28,709.26",Crime Higher: Legal Aid Payments
MINISTRY OF JUSTICE,LAA,08/Jan/2014 ,Crime Higher,LEGAL AID FUND - Programme Costs,QUINN MELVILLE,132798275,"32,415.60",Crime Higher: Legal Aid Payments
MINISTRY OF JUSTICE,LAA,29/Jan/2014 ,Crime Higher,LEGAL AID FUND - Programme Costs,QUINN MELVILLE,133200770,"37,833.95",Crime Higher: Legal Aid Payments
MINISTRY OF JUSTICE,LAA,08/Jan/2014 ,Crime Higher,LEGAL AID FUND - Programme Costs,QUINN MELVILLE,132797146,"38,240.56",Crime Higher: Legal Aid Payments
MINISTRY OF JUSTICE,LAA,08/Jan/2014 ,Crime Higher,LEGAL AID FUND - Programme Costs,QUINN MELVILLE,132797175,"38,240.56",Crime Higher: Legal Aid Payments
MINISTRY OF JUSTICE,LAA,15/Jan/2014 ,Crime Higher,LEGAL AID FUND - Programme Costs,RAHMAN RAVELLI SOLICTORS LTD,132977759,"41,847.58",Crime Higher: Legal Aid Payments
MINISTRY OF JUSTICE,LAA,15/Jan/2014 ,Crime Higher,LEGAL AID FUND - Programme Costs,RAJIV MENON,132977717,"68,627.04",Crime Higher: Legal Aid Payments
MINISTRY OF JUSTICE,LAA,22/Jan/2014 ,Crime Higher,LEGAL AID FUND - Programme Costs,RIAZ SOLICITORS,133107125,"64,262.32",Crime Higher: Legal Aid Payments
MINISTRY OF JUSTICE,LAA,22/Jan/2014 ,Crime Higher,LEGAL AID FUND - Programme Costs,RICHARD A BENSON QC,133143419,"28,955.36",Crime Higher: Legal Aid Payments
MINISTRY OF JUSTICE,LAA,22/Jan/2014 ,Crime Higher,LEGAL AID FUND - Programme Costs,RICHARD L SMITH Q.C.,133064334,"49,184.58",Crime Higher: Legal Aid Payments
MINISTRY OF JUSTICE,LAA,22/Jan/2014 ,Crime Higher,LEGAL AID FUND - Programme Costs,RICHARD NELSON SOLICITORS,133050678,"124,129.32",Crime Higher: Legal Aid Payments
MINISTRY OF JUSTICE,LAA,08/Jan/2014 ,Crime Higher,LEGAL AID FUND - Programme Costs,RMNJ SOLICITORS ***,132820264,"44,665.34",Crime Higher: Legal Aid Payments
MINISTRY OF JUSTICE,LAA,08/Jan/2014 ,Crime Higher,LEGAL AID FUND - Programme Costs,RODERICK I JAMES,132781758,"45,550.54",Crime Higher: Legal Aid Payments
MINISTRY OF JUSTICE,LAA,29/Jan/2014 ,Crime Higher,LEGAL AID FUND - Programme Costs,ROSS D TALBOTT,133213322,"25,517.09",Crime Higher: Legal Aid Payments
MINISTRY OF JUSTICE,LAA,15/Jan/2014 ,Crime Higher,LEGAL AID FUND - Programme Costs,ROWE SPARKES SOLICITORS LTD,133014137,"27,680.64",Crime Higher: Legal Aid Payments
MINISTRY OF JUSTICE,LAA,22/Jan/2014 ,Crime Higher,LEGAL AID FUND - Programme Costs,RUPERT J BOWERS,133143076,"31,108.49",Crime Higher: Legal Aid Payments
MINISTRY OF JUSTICE,LAA,29/Jan/2014 ,Crime Higher,LEGAL AID FUND - Programme Costs,RUSTEM GUARDIAN SOLICITORS,133189969,"26,974.55",Crime Higher: Legal Aid Payments
MINISTRY OF JUSTICE,LAA,08/Jan/2014 ,Crime Higher,LEGAL AID FUND - Programme Costs,S ORLANDO F POWNALL QC,132879772,"60,648.54",Crime Higher: Legal Aid Payments
MINISTRY OF JUSTICE,LAA,22/Jan/2014 ,Crime Higher,LEGAL AID FUND - Programme Costs,SALHAN  & CO LTD,133142859,"31,218.17",Crime Higher: Legal Aid Payments
MINISTRY OF JUSTICE,LAA,09/Jan/2014 ,Crime Higher,LEGAL AID FUND - Programme Costs,SAMUEL J ROSENBERG,132930838,"44,799.68",Crime Higher: Legal Aid Payments
MINISTRY OF JUSTICE,LAA,15/Jan/2014 ,Crime Higher,LEGAL AID FUND - Programme Costs,SAMUEL STEIN,133015527,"40,880.12",Crime Higher: Legal Aid Payments
MINISTRY OF JUSTICE,LAA,29/Jan/2014 ,Crime Higher,LEGAL AID FUND - Programme Costs,SARAH A FORSHAW QC,133272749,"36,246.00",Crime Higher: Legal Aid Payments
MINISTRY OF JUSTICE,LAA,08/Jan/2014 ,Crime Higher,LEGAL AID FUND - Programme Costs,SARAH A GRIFFIN,132867568,"50,211.28",Crime Higher: Legal Aid Payments
MINISTRY OF JUSTICE,LAA,09/Jan/2014 ,Crime Higher,LEGAL AID FUND - Programme Costs,SAUNDERS LAW LTD,132930786,"81,812.32",Crime Higher: Legal Aid Payments
MINISTRY OF JUSTICE,LAA,22/Jan/2014 ,Crime Higher,LEGAL AID FUND - Programme Costs,SBS SOLICITORS,133108042,"98,602.86",Crime Higher: Legal Aid Payments
MINISTRY OF JUSTICE,LAA,29/Jan/2014 ,Crime Higher,LEGAL AID FUND - Programme Costs,SHAIKH AYUB SOLICITORS,133167518,"64,355.58",Crime Higher: Legal Aid Payments
MINISTRY OF JUSTICE,LAA,08/Jan/2014 ,Crime Higher,LEGAL AID FUND - Programme Costs,SHAW GRAHAM KERSH,132781423,"48,143.35",Crime Higher: Legal Aid Payments
MINISTRY OF JUSTICE,LAA,15/Jan/2014 ,Crime Higher,LEGAL AID FUND - Programme Costs,SHEPHERD HARRIS LLP,132956077,"98,602.86",Crime Higher: Legal Aid Payments
MINISTRY OF JUSTICE,LAA,15/Jan/2014 ,Crime Higher,LEGAL AID FUND - Programme Costs,SILVERSMITH LLP (INCORPORATING HALLIWELL MCCORMACK ARCHER),132954280,"31,867.13",Crime Higher: Legal Aid Payments
MINISTRY OF JUSTICE,LAA,15/Jan/2014 ,Crime Higher,LEGAL AID FUND - Programme Costs,SIMON BETHEL SOLICITORS,132977735,"101,012.59",Crime Higher: Legal Aid Payments
MINISTRY OF JUSTICE,LAA,22/Jan/2014 ,Crime Higher,LEGAL AID FUND - Programme Costs,SMITH PARTNERSHIP,133097684,"39,186.77",Crime Higher: Legal Aid Payments
MINISTRY OF JUSTICE,LAA,29/Jan/2014 ,Crime Higher,LEGAL AID FUND - Programme Costs,SONN MACMILLAN WALKER LTD,133166707,"32,561.21",Crime Higher: Legal Aid Payments
MINISTRY OF JUSTICE,LAA,29/Jan/2014 ,Crime Higher,LEGAL AID FUND - Programme Costs,STEEL & SHAMASH,133189749,"35,116.70",Crime Higher: Legal Aid Payments
MINISTRY OF JUSTICE,LAA,15/Jan/2014 ,Crime Higher,LEGAL AID FUND - Programme Costs,STEEL & SHAMASH [ADVOCATE],132978015,"25,291.82",Crime Higher: Legal Aid Payments
MINISTRY OF JUSTICE,LAA,22/Jan/2014 ,Crime Higher,LEGAL AID FUND - Programme Costs,STEPHANIE WARD,133087448,"36,206.26",Crime Higher: Legal Aid Payments
MINISTRY OF JUSTICE,LAA,22/Jan/2014 ,Crime Higher,LEGAL AID FUND - Programme Costs,STEPHEN BURDON SOLICITORS,133106708,"30,095.22",Crime Higher: Legal Aid Payments
MINISTRY OF JUSTICE,LAA,15/Jan/2014 ,Crime Higher,LEGAL AID FUND - Programme Costs,STERNBERG REED SOLICITORS-ADVOCATE,133039606,"32,244.94",Crime Higher: Legal Aid Payments
MINISTRY OF JUSTICE,LAA,29/Jan/2014 ,Crime Higher,LEGAL AID FUND - Programme Costs,STOKOE PARTNERSHIP,133233968,"42,736.90",Crime Higher: Legal Aid Payments
MINISTRY OF JUSTICE,LAA,22/Jan/2014 ,Crime Higher,LEGAL AID FUND - Programme Costs,STOKOE PARTNERSHIP-ADVOCATE,133086541,"34,674.19",Crime Higher: Legal Aid Payments
MINISTRY OF JUSTICE,LAA,29/Jan/2014 ,Crime Higher,LEGAL AID FUND - Programme Costs,STUART A TRIMMER,133211987,"30,691.80",Crime Higher: Legal Aid Payments
MINISTRY OF JUSTICE,LAA,29/Jan/2014 ,Crime Higher,LEGAL AID FUND - Programme Costs,STUART MILLER SOLICITORS LTD,133189553,"45,933.20",Crime Higher: Legal Aid Payments
MINISTRY OF JUSTICE,LAA,08/Jan/2014 ,Crime Higher,LEGAL AID FUND - Programme Costs,STUART MILLER SOLICITORS LTD,132880151,"48,375.88",Crime Higher: Legal Aid Payments
MINISTRY OF JUSTICE,LAA,08/Jan/2014 ,Crime Higher,LEGAL AID FUND - Programme Costs,T V  EDWARDS LLP,132879791,"48,143.35",Crime Higher: Legal Aid Payments
MINISTRY OF JUSTICE,LAA,29/Jan/2014 ,Crime Higher,LEGAL AID FUND - Programme Costs,T V  EDWARDS LLP,133212610,"54,497.60",Crime Higher: Legal Aid Payments
MINISTRY OF JUSTICE,LAA,09/Jan/2014 ,Crime Higher,LEGAL AID FUND - Programme Costs,TANVEER A QURESHI,132930858,"47,442.08",Crime Higher: Legal Aid Payments
MINISTRY OF JUSTICE,LAA,15/Jan/2014 ,Crime Higher,LEGAL AID FUND - Programme Costs,TATES,133040739,"28,172.51",Crime Higher: Legal Aid Payments
MINISTRY OF JUSTICE,LAA,08/Jan/2014 ,Crime Higher,LEGAL AID FUND - Programme Costs,THE FIRST LAW PARTNERSHIP LTD,132781366,"37,905.32",Crime Higher: Legal Aid Payments
MINISTRY OF JUSTICE,LAA,22/Jan/2014 ,Crime Higher,LEGAL AID FUND - Programme Costs,THE FIRST LAW PARTNERSHIP LTD,133106990,"98,602.86",Crime Higher: Legal Aid Payments
MINISTRY OF JUSTICE,LAA,22/Jan/2014 ,Crime Higher,LEGAL AID FUND - Programme Costs,THE JOHNSON PARTNERSHIP,133063060,"35,415.86",Crime Higher: Legal Aid Payments
MINISTRY OF JUSTICE,LAA,29/Jan/2014 ,Crime Higher,LEGAL AID FUND - Programme Costs,THE JOHNSON PARTNERSHIP,133273098,"48,026.40",Crime Higher: Legal Aid Payments
MINISTRY OF JUSTICE,LAA,08/Jan/2014 ,Crime Higher,LEGAL AID FUND - Programme Costs,THOMAS HORTON LLP,132820303,"27,217.04",Crime Higher: Legal Aid Payments
MINISTRY OF JUSTICE,LAA,15/Jan/2014 ,Crime Higher,LEGAL AID FUND - Programme Costs,TIMOTHY D ROBERTS,133014157,"31,282.90",Crime Higher: Legal Aid Payments
MINISTRY OF JUSTICE,LAA,09/Jan/2014 ,Crime Higher,LEGAL AID FUND - Programme Costs,TIMOTHY J SPENCER,132906352,"37,785.83",Crime Higher: Legal Aid Payments
MINISTRY OF JUSTICE,LAA,22/Jan/2014 ,Crime Higher,LEGAL AID FUND - Programme Costs,TIMOTHY W H RAGGATT Q.C.,133142115,"31,382.87",Crime Higher: Legal Aid Payments
MINISTRY OF JUSTICE,LAA,22/Jan/2014 ,Crime Higher,LEGAL AID FUND - Programme Costs,TOSSWILL & CO,133106549,"33,325.99",Crime Higher: Legal Aid Payments
MINISTRY OF JUSTICE,LAA,22/Jan/2014 ,Crime Higher,LEGAL AID FUND - Programme Costs,TRACY J AYLING QC,133143104,"59,020.45",Crime Higher: Legal Aid Payments
MINISTRY OF JUSTICE,LAA,09/Jan/2014 ,Crime Higher,LEGAL AID FUND - Programme Costs,TUCKERS,132929905,"51,634.56",Crime Higher: Legal Aid Payments
MINISTRY OF JUSTICE,LAA,15/Jan/2014 ,Crime Higher,LEGAL AID FUND - Programme Costs,ULLAH LAW ASSOCIATES (SOLICITORS),133028495,"25,686.48",Crime Higher: Legal Aid Payments
MINISTRY OF JUSTICE,LAA,22/Jan/2014 ,Crime Higher,LEGAL AID FUND - Programme Costs,"VICTOR LISSACK, ROSCOE &  COLEMAN",133107176,"48,875.94",Crime Higher: Legal Aid Payments
MINISTRY OF JUSTICE,LAA,29/Jan/2014 ,Crime Higher,LEGAL AID FUND - Programme Costs,VICTORIA A MEADS,133272963,"29,222.09",Crime Higher: Legal Aid Payments
MINISTRY OF JUSTICE,LAA,15/Jan/2014 ,Crime Higher,LEGAL AID FUND - Programme Costs,WANNOPS LLP,132955945,"51,697.93",Crime Higher: Legal Aid Payments
MINISTRY OF JUSTICE,LAA,08/Jan/2014 ,Crime Higher,LEGAL AID FUND - Programme Costs,WEST MIDLANDS SOLICITORS,132797880,"26,955.30",Crime Higher: Legal Aid Payments
MINISTRY OF JUSTICE,LAA,15/Jan/2014 ,Crime Higher,LEGAL AID FUND - Programme Costs,WEST MIDLANDS SOLICITORS [ADVOCATE],132978904,"47,245.20",Crime Higher: Legal Aid Payments
MINISTRY OF JUSTICE,LAA,29/Jan/2014 ,Crime Higher,LEGAL AID FUND - Programme Costs,WHITWORTH & GREEN SOLICITORS LTD,133232918,"54,739.85",Crime Higher: Legal Aid Payments
MINISTRY OF JUSTICE,LAA,29/Jan/2014 ,Crime Higher,LEGAL AID FUND - Programme Costs,WILFORD SMITH & CO  LTD,133272071,"31,218.17",Crime Higher: Legal Aid Payments
MINISTRY OF JUSTICE,LAA,29/Jan/2014 ,Crime Lower,LEGAL AID FUND - Programme Costs,ABV SOLICITORS,133268956,"80,000.00",Crime Lower: Legal Aid Payments
MINISTRY OF JUSTICE,LAA,29/Jan/2014 ,Crime Lower,LEGAL AID FUND - Programme Costs,ACA LAW LTD,133269824,"42,063.00",Crime Lower: Legal Aid Payments
MINISTRY OF JUSTICE,LAA,29/Jan/2014 ,Crime Lower,LEGAL AID FUND - Programme Costs,ACHOM & PARTNERS,133270367,"27,837.00",Crime Lower: Legal Aid Payments
MINISTRY OF JUSTICE,LAA,29/Jan/2014 ,Crime Lower,LEGAL AID FUND - Programme Costs,AFG LAW,133269220,"26,300.00",Crime Lower: Legal Aid Payments
MINISTRY OF JUSTICE,LAA,29/Jan/2014 ,Crime Lower,LEGAL AID FUND - Programme Costs,ALBIN & CO LTD,133269403,"37,500.00",Crime Lower: Legal Aid Payments
MINISTRY OF JUSTICE,LAA,29/Jan/2014 ,Crime Lower,LEGAL AID FUND - Programme Costs,ALDERSON LAW LLP T/A A.D.,133269606,"33,300.00",Crime Lower: Legal Aid Payments
MINISTRY OF JUSTICE,LAA,29/Jan/2014 ,Crime Lower,LEGAL AID FUND - Programme Costs,ALEXANDER SOLICITORS LTD,133268833,"37,900.00",Crime Lower: Legal Aid Payments
MINISTRY OF JUSTICE,LAA,29/Jan/2014 ,Crime Lower,LEGAL AID FUND - Programme Costs,ALLEN HOOLE SOLICITORS,133269460,"31,800.00",Crime Lower: Legal Aid Payments
MINISTRY OF JUSTICE,LAA,29/Jan/2014 ,Crime Lower,LEGAL AID FUND - Programme Costs,ALLEN HOOLE SOLICITORS,133269441,"63,000.00",Crime Lower: Legal Aid Payments
MINISTRY OF JUSTICE,LAA,29/Jan/2014 ,Crime Lower,LEGAL AID FUND - Programme Costs,ALLETSONS LTD,133270142,"26,386.00",Crime Lower: Legal Aid Payments
MINISTRY OF JUSTICE,LAA,29/Jan/2014 ,Crime Lower,LEGAL AID FUND - Programme Costs,ANDREW KEENAN & CO,133269795,"26,731.00",Crime Lower: Legal Aid Payments
MINISTRY OF JUSTICE,LAA,29/Jan/2014 ,Crime Lower,LEGAL AID FUND - Programme Costs,APPLEBY HOPE & MATTHEWS,133269129,"34,200.00",Crime Lower: Legal Aid Payments
MINISTRY OF JUSTICE,LAA,29/Jan/2014 ,Crime Lower,LEGAL AID FUND - Programme Costs,B H MOHAMMED,133269514,"41,000.00",Crime Lower: Legal Aid Payments
MINISTRY OF JUSTICE,LAA,29/Jan/2014 ,Crime Lower,LEGAL AID FUND - Programme Costs,BAILEY NICHOLSON GRAYSON,133268899,"40,400.00",Crime Lower: Legal Aid Payments
MINISTRY OF JUSTICE,LAA,29/Jan/2014 ,Crime Lower,LEGAL AID FUND - Programme Costs,BAILEY NICHOLSON GRAYSON SOLICITORS,133268819,"37,100.00",Crime Lower: Legal Aid Payments
MINISTRY OF JUSTICE,LAA,29/Jan/2014 ,Crime Lower,LEGAL AID FUND - Programme Costs,BARRETT & NELLIGAN SOLICITORS LTD,133269304,"25,800.00",Crime Lower: Legal Aid Payments
MINISTRY OF JUSTICE,LAA,29/Jan/2014 ,Crime Lower,LEGAL AID FUND - Programme Costs,BARRICELLA HUGHES MARCHANT,133268866,"27,000.00",Crime Lower: Legal Aid Payments
MINISTRY OF JUSTICE,LAA,29/Jan/2014 ,Crime Lower,LEGAL AID FUND - Programme Costs,BAXTER BROWN MCARTHUR SOLICITORS,133268937,"55,400.00",Crime Lower: Legal Aid Payments
MINISTRY OF JUSTICE,LAA,29/Jan/2014 ,Crime Lower,LEGAL AID FUND - Programme Costs,BDH SOLICITORS,133269296,"30,500.00",Crime Lower: Legal Aid Payments
MINISTRY OF JUSTICE,LAA,29/Jan/2014 ,Crime Lower,LEGAL AID FUND - Programme Costs,BELMORES SOLICITORS LTD,133268856,"75,900.00",Crime Lower: Legal Aid Payments
MINISTRY OF JUSTICE,LAA,29/Jan/2014 ,Crime Lower,LEGAL AID FUND - Programme Costs,BERNARD CHILL & AXTELL,133269367,"30,000.00",Crime Lower: Legal Aid Payments
MINISTRY OF JUSTICE,LAA,29/Jan/2014 ,Crime Lower,LEGAL AID FUND - Programme Costs,BESWICKS SOLICITORS LLP,133269501,"68,600.00",Crime Lower: Legal Aid Payments
MINISTRY OF JUSTICE,LAA,29/Jan/2014 ,Crime Lower,LEGAL AID FUND - Programme Costs,BETTS & CO SOLICITORS,133270058,"30,971.00",Crime Lower: Legal Aid Payments
MINISTRY OF JUSTICE,LAA,29/Jan/2014 ,Crime Lower,LEGAL AID FUND - Programme Costs,BHATIA BEST LTD,133268764,"36,200.00",Crime Lower: Legal Aid Payments
MINISTRY OF JUSTICE,LAA,29/Jan/2014 ,Crime Lower,LEGAL AID FUND - Programme Costs,BHATIA BEST LTD,133268759,"97,800.00",Crime Lower: Legal Aid Payments
MINISTRY OF JUSTICE,LAA,29/Jan/2014 ,Crime Lower,LEGAL AID FUND - Programme Costs,BIRCHALL BLACKBURN SOLICITORS,133269245,"34,400.00",Crime Lower: Legal Aid Payments
MINISTRY OF JUSTICE,LAA,29/Jan/2014 ,Crime Lower,LEGAL AID FUND - Programme Costs,BIRD & CO SOLICITORS LLP,133268811,"34,300.00",Crime Lower: Legal Aid Payments
MINISTRY OF JUSTICE,LAA,29/Jan/2014 ,Crime Lower,LEGAL AID FUND - Programme Costs,BIRDS SOLICITORS LTD,133268934,"52,700.00",Crime Lower: Legal Aid Payments
MINISTRY OF JUSTICE,LAA,29/Jan/2014 ,Crime Lower,LEGAL AID FUND - Programme Costs,BISHOP & LIGHT SOLICITORS,133269357,"31,500.00",Crime Lower: Legal Aid Payments
MINISTRY OF JUSTICE,LAA,29/Jan/2014 ,Crime Lower,LEGAL AID FUND - Programme Costs,BJ & CO SOLICITORS LTD,133269076,"33,000.00",Crime Lower: Legal Aid Payments
MINISTRY OF JUSTICE,LAA,29/Jan/2014 ,Crime Lower,LEGAL AID FUND - Programme Costs,BLACKFORDS LLP,133269792,"50,292.00",Crime Lower: Legal Aid Payments
MINISTRY OF JUSTICE,LAA,29/Jan/2014 ,Crime Lower,LEGAL AID FUND - Programme Costs,BLACKWELLS,133269179,"31,000.00",Crime Lower: Legal Aid Payments
MINISTRY OF JUSTICE,LAA,29/Jan/2014 ,Crime Lower,LEGAL AID FUND - Programme Costs,BLAVO & COMPANY SOLICITORS LTD,133270218,"33,375.00",Crime Lower: Legal Aid Payments
MINISTRY OF JUSTICE,LAA,29/Jan/2014 ,Crime Lower,LEGAL AID FUND - Programme Costs,BOBBETTS MACKAN,133269437,"52,800.00",Crime Lower: Legal Aid Payments
MINISTRY OF JUSTICE,LAA,29/Jan/2014 ,Crime Lower,LEGAL AID FUND - Programme Costs,BOND JOSEPH,133270065,"52,442.00",Crime Lower: Legal Aid Payments
MINISTRY OF JUSTICE,LAA,29/Jan/2014 ,Crime Lower,LEGAL AID FUND - Programme Costs,BOOTS STARKE GOACHER SOLICITORS,133270079,"31,981.00",Crime Lower: Legal Aid Payments
MINISTRY OF JUSTICE,LAA,29/Jan/2014 ,Crime Lower,LEGAL AID FUND - Programme Costs,BOUSFIELD GASKIN MCGLOIN SOLICITORS,133269919,"27,461.00",Crime Lower: Legal Aid Payments
MINISTRY OF JUSTICE,LAA,29/Jan/2014 ,Crime Lower,LEGAL AID FUND - Programme Costs,BROCKBANK CURWEN CAIN & HALL,133269291,"26,600.00",Crime Lower: Legal Aid Payments
MINISTRY OF JUSTICE,LAA,29/Jan/2014 ,Crime Lower,LEGAL AID FUND - Programme Costs,BROOMHEAD & SAUL,133269432,"28,900.00",Crime Lower: Legal Aid Payments
MINISTRY OF JUSTICE,LAA,29/Jan/2014 ,Crime Lower,LEGAL AID FUND - Programme Costs,"BROWN,BEER,NIXON,MALLON",133269136,"31,400.00",Crime Lower: Legal Aid Payments
MINISTRY OF JUSTICE,LAA,29/Jan/2014 ,Crime Lower,LEGAL AID FUND - Programme Costs,BSB SOLICITORS,133268924,"25,300.00",Crime Lower: Legal Aid Payments
MINISTRY OF JUSTICE,LAA,29/Jan/2014 ,Crime Lower,LEGAL AID FUND - Programme Costs,BULLIVANT & PARTNERS LTD,133268902,"37,000.00",Crime Lower: Legal Aid Payments
MINISTRY OF JUSTICE,LAA,29/Jan/2014 ,Crime Lower,LEGAL AID FUND - Programme Costs,BURNLEY JONES BATE & CO,133268918,"39,700.00",Crime Lower: Legal Aid Payments
MINISTRY OF JUSTICE,LAA,29/Jan/2014 ,Crime Lower,LEGAL AID FUND - Programme Costs,BURTON COPELAND LLP,133270043,"50,128.00",Crime Lower: Legal Aid Payments
MINISTRY OF JUSTICE,LAA,29/Jan/2014 ,Crime Lower,LEGAL AID FUND - Programme Costs,CARLTON PLACE LAW,133269371,"27,500.00",Crime Lower: Legal Aid Payments
MINISTRY OF JUSTICE,LAA,29/Jan/2014 ,Crime Lower,LEGAL AID FUND - Programme Costs,CARR & CO,133269174,"28,400.00",Crime Lower: Legal Aid Payments
MINISTRY OF JUSTICE,LAA,29/Jan/2014 ,Crime Lower,LEGAL AID FUND - Programme Costs,CARRINGTONS SOLICITORS,133269703,"140,466.00",Crime Lower: Legal Aid Payments
MINISTRY OF JUSTICE,LAA,29/Jan/2014 ,Crime Lower,LEGAL AID FUND - Programme Costs,CARTER OSBORNE & CO,133269701,"27,663.00",Crime Lower: Legal Aid Payments
MINISTRY OF JUSTICE,LAA,29/Jan/2014 ,Crime Lower,LEGAL AID FUND - Programme Costs,CARTWRIGHT CLARK LTD,133270099,"49,033.00",Crime Lower: Legal Aid Payments
MINISTRY OF JUSTICE,LAA,29/Jan/2014 ,Crime Lower,LEGAL AID FUND - Programme Costs,CARTWRIGHT KING,133268806,"29,500.00",Crime Lower: Legal Aid Payments
MINISTRY OF JUSTICE,LAA,29/Jan/2014 ,Crime Lower,LEGAL AID FUND - Programme Costs,CARTWRIGHT KING SOLICITORS,133269711,"33,510.00",Crime Lower: Legal Aid Payments
MINISTRY OF JUSTICE,LAA,29/Jan/2014 ,Crime Lower,LEGAL AID FUND - Programme Costs,CARTWRIGHT KING SOLICITORS,133270256,"40,383.00",Crime Lower: Legal Aid Payments
MINISTRY OF JUSTICE,LAA,29/Jan/2014 ,Crime Lower,LEGAL AID FUND - Programme Costs,CARTWRIGHT KING SOLICITORS,133269708,"69,603.00",Crime Lower: Legal Aid Payments
MINISTRY OF JUSTICE,LAA,29/Jan/2014 ,Crime Lower,LEGAL AID FUND - Programme Costs,CHIVERS SOLICITORS LLP,133269181,"36,800.00",Crime Lower: Legal Aid Payments
MINISTRY OF JUSTICE,LAA,29/Jan/2014 ,Crime Lower,LEGAL AID FUND - Programme Costs,CHRIS SALTRESE,133269883,"36,206.00",Crime Lower: Legal Aid Payments
MINISTRY OF JUSTICE,LAA,29/Jan/2014 ,Crime Lower,LEGAL AID FUND - Programme Costs,CHURCHERS,133269372,"28,500.00",Crime Lower: Legal Aid Payments
MINISTRY OF JUSTICE,LAA,29/Jan/2014 ,Crime Lower,LEGAL AID FUND - Programme Costs,CJH GREENHILL COOPER SOLICITORS,133268805,"39,800.00",Crime Lower: Legal Aid Payments
MINISTRY OF JUSTICE,LAA,29/Jan/2014 ,Crime Lower,LEGAL AID FUND - Programme Costs,CLIFFORD JOHNSTON & CO,133269267,"25,900.00",Crime Lower: Legal Aid Payments
MINISTRY OF JUSTICE,LAA,29/Jan/2014 ,Crime Lower,LEGAL AID FUND - Programme Costs,CLIFFORD JOHNSTON & CO,133284649,"31,200.14",Crime Lower: Legal Aid Payments
MINISTRY OF JUSTICE,LAA,08/Jan/2014 ,Crime Lower,LEGAL AID FUND - Programme Costs,CLIVE REES & ASSOCIATES,132885691,"47,218.00",Crime Lower: Legal Aid Payments
MINISTRY OF JUSTICE,LAA,29/Jan/2014 ,Crime Lower,LEGAL AID FUND - Programme Costs,COBLEYS LLP,133269887,"25,496.00",Crime Lower: Legal Aid Payments
MINISTRY OF JUSTICE,LAA,15/Jan/2014 ,Crime Lower,LEGAL AID FUND - Programme Costs,COBLEYS LLP,133023000,"37,489.00",Crime Lower: Legal Aid Payments
MINISTRY OF JUSTICE,LAA,29/Jan/2014 ,Crime Lower,LEGAL AID FUND - Programme Costs,COLIN JONES SOLICITOR,133269611,"34,316.00",Crime Lower: Legal Aid Payments
MINISTRY OF JUSTICE,LAA,29/Jan/2014 ,Crime Lower,LEGAL AID FUND - Programme Costs,CONNOR ROSS-BROWN SOLICITORS,133269603,"53,000.00",Crime Lower: Legal Aid Payments
MINISTRY OF JUSTICE,LAA,29/Jan/2014 ,Crime Lower,LEGAL AID FUND - Programme Costs,COUSINS TYRER SOLICITORS,133269964,"31,162.00",Crime Lower: Legal Aid Payments
MINISTRY OF JUSTICE,LAA,29/Jan/2014 ,Crime Lower,LEGAL AID FUND - Programme Costs,CRIMINAL DEFENCE MILTON KEYNES LTD,133269382,"32,000.00",Crime Lower: Legal Aid Payments
MINISTRY OF JUSTICE,LAA,29/Jan/2014 ,Crime Lower,LEGAL AID FUND - Programme Costs,CRIMINAL DEFENCE SOLICITORS,133269021,"64,200.00",Crime Lower: Legal Aid Payments
MINISTRY OF JUSTICE,LAA,29/Jan/2014 ,Crime Lower,LEGAL AID FUND - Programme Costs,CROWE HUMBLE WESENCRAFT,133269123,"61,700.00",Crime Lower: Legal Aid Payments
MINISTRY OF JUSTICE,LAA,29/Jan/2014 ,Crime Lower,LEGAL AID FUND - Programme Costs,CYRIL MORRIS ARKWRIGHT,133269219,"28,000.00",Crime Lower: Legal Aid Payments
MINISTRY OF JUSTICE,LAA,29/Jan/2014 ,Crime Lower,LEGAL AID FUND - Programme Costs,DALTON HOLMES GRAY,133269851,"40,949.00",Crime Lower: Legal Aid Payments
MINISTRY OF JUSTICE,LAA,15/Jan/2014 ,Crime Lower,LEGAL AID FUND - Programme Costs,DARBYS,132220935,"26,700.00",Crime Lower: Legal Aid Payments
MINISTRY OF JUSTICE,LAA,29/Jan/2014 ,Crime Lower,LEGAL AID FUND - Programme Costs,DARRYL INGRAM & CO,133268973,"27,000.00",Crime Lower: Legal Aid Payments
MINISTRY OF JUSTICE,LAA,29/Jan/2014 ,Crime Lower,LEGAL AID FUND - Programme Costs,DARTON LAW LIMITED,133270401,"27,004.00",Crime Lower: Legal Aid Payments
MINISTRY OF JUSTICE,LAA,29/Jan/2014 ,Crime Lower,LEGAL AID FUND - Programme Costs,DAVID AKE & CO,133269963,"28,811.00",Crime Lower: Legal Aid Payments
MINISTRY OF JUSTICE,LAA,08/Jan/2014 ,Crime Lower,LEGAL AID FUND - Programme Costs,DAVID AKE & CO,132893791,"34,855.00",Crime Lower: Legal Aid Payments
MINISTRY OF JUSTICE,LAA,29/Jan/2014 ,Crime Lower,LEGAL AID FUND - Programme Costs,DAVID GRAY LLP,133269121,"27,000.00",Crime Lower: Legal Aid Payments
MINISTRY OF JUSTICE,LAA,29/Jan/2014 ,Crime Lower,LEGAL AID FUND - Programme Costs,DAVID PHILLIPS & PARTNERS,133269063,"30,100.00",Crime Lower: Legal Aid Payments
MINISTRY OF JUSTICE,LAA,29/Jan/2014 ,Crime Lower,LEGAL AID FUND - Programme Costs,DAVID PHILLIPS & PARTNERS,133268955,"48,900.00",Crime Lower: Legal Aid Payments
MINISTRY OF JUSTICE,LAA,29/Jan/2014 ,Crime Lower,LEGAL AID FUND - Programme Costs,DAVID RUBIE MITCHELL & CO,133268920,"33,800.00",Crime Lower: Legal Aid Payments
MINISTRY OF JUSTICE,LAA,29/Jan/2014 ,Crime Lower,LEGAL AID FUND - Programme Costs,DAVID SEDGWICK  SOLICITOR,133269614,"36,928.00",Crime Lower: Legal Aid Payments
MINISTRY OF JUSTICE,LAA,29/Jan/2014 ,Crime Lower,LEGAL AID FUND - Programme Costs,DENNINGS SOLICITORS LTD,133269500,"29,900.00",Crime Lower: Legal Aid Payments
MINISTRY OF JUSTICE,LAA,29/Jan/2014 ,Crime Lower,LEGAL AID FUND - Programme Costs,DJMS SOLICITORS LTD TA HANNAYS CRIME,133270473,"38,447.00",Crime Lower: Legal Aid Payments
MINISTRY OF JUSTICE,LAA,29/Jan/2014 ,Crime Lower,LEGAL AID FUND - Programme Costs,DJMS SOLICITORS LTD TA PETER THUBRON & CO,133269896,"39,544.00",Crime Lower: Legal Aid Payments
MINISTRY OF JUSTICE,LAA,29/Jan/2014 ,Crime Lower,LEGAL AID FUND - Programme Costs,DOBSONS,133268941,"48,000.00",Crime Lower: Legal Aid Payments
MINISTRY OF JUSTICE,LAA,29/Jan/2014 ,Crime Lower,LEGAL AID FUND - Programme Costs,DODDS SOLICITORS LLP,133268781,"33,400.00",Crime Lower: Legal Aid Payments
MINISTRY OF JUSTICE,LAA,29/Jan/2014 ,Crime Lower,LEGAL AID FUND - Programme Costs,DUNCAN LEWIS,133268984,"50,200.00",Crime Lower: Legal Aid Payments
MINISTRY OF JUSTICE,LAA,29/Jan/2014 ,Crime Lower,LEGAL AID FUND - Programme Costs,EBR ATTRIDGE,133268940,"26,100.00",Crime Lower: Legal Aid Payments
MINISTRY OF JUSTICE,LAA,29/Jan/2014 ,Crime Lower,LEGAL AID FUND - Programme Costs,EBR ATTRIDGE,133268932,"27,100.00",Crime Lower: Legal Aid Payments
MINISTRY OF JUSTICE,LAA,29/Jan/2014 ,Crime Lower,LEGAL AID FUND - Programme Costs,EBR ATTRIDGE,133268936,"34,200.00",Crime Lower: Legal Aid Payments
MINISTRY OF JUSTICE,LAA,29/Jan/2014 ,Crime Lower,LEGAL AID FUND - Programme Costs,EBR ATTRIDGE,133268927,"82,200.00",Crime Lower: Legal Aid Payments
MINISTRY OF JUSTICE,LAA,29/Jan/2014 ,Crime Lower,LEGAL AID FUND - Programme Costs,EDWARD FAIL BRADSHAW & WATERSON,133269866,"28,083.00",Crime Lower: Legal Aid Payments
MINISTRY OF JUSTICE,LAA,29/Jan/2014 ,Crime Lower,LEGAL AID FUND - Programme Costs,EDWARD HAYES LLP,133269577,"26,400.00",Crime Lower: Legal Aid Payments
MINISTRY OF JUSTICE,LAA,29/Jan/2014 ,Crime Lower,LEGAL AID FUND - Programme Costs,EDWARDS DUTHIE,133268908,"37,350.00",Crime Lower: Legal Aid Payments
MINISTRY OF JUSTICE,LAA,29/Jan/2014 ,Crime Lower,LEGAL AID FUND - Programme Costs,ERIC ROBINSON SOLICITORS,133269368,"34,600.00",Crime Lower: Legal Aid Payments
MINISTRY OF JUSTICE,LAA,29/Jan/2014 ,Crime Lower,LEGAL AID FUND - Programme Costs,FARADAYS SOLICITORS LTD,133268982,"29,200.00",Crime Lower: Legal Aid Payments
MINISTRY OF JUSTICE,LAA,29/Jan/2014 ,Crime Lower,LEGAL AID FUND - Programme Costs,FARLEYS SOLICITORS LLP,133269254,"32,900.00",Crime Lower: Legal Aid Payments
MINISTRY OF JUSTICE,LAA,29/Jan/2014 ,Crime Lower,LEGAL AID FUND - Programme Costs,FISHER COWE,133268857,"32,700.00",Crime Lower: Legal Aid Payments
MINISTRY OF JUSTICE,LAA,29/Jan/2014 ,Crime Lower,LEGAL AID FUND - Programme Costs,FMW LAW LTD,133268888,"53,900.00",Crime Lower: Legal Aid Payments
MINISTRY OF JUSTICE,LAA,29/Jan/2014 ,Crime Lower,LEGAL AID FUND - Programme Costs,FORBES SOLICITORS,133269283,"41,800.00",Crime Lower: Legal Aid Payments
MINISTRY OF JUSTICE,LAA,29/Jan/2014 ,Crime Lower,LEGAL AID FUND - Programme Costs,FORBES SOLICITORS,133269279,"43,200.00",Crime Lower: Legal Aid Payments
MINISTRY OF JUSTICE,LAA,29/Jan/2014 ,Crime Lower,LEGAL AID FUND - Programme Costs,FORBES SOLICITORS,133269284,"43,900.00",Crime Lower: Legal Aid Payments
MINISTRY OF JUSTICE,LAA,29/Jan/2014 ,Crime Lower,LEGAL AID FUND - Programme Costs,FRASER DAWBARNS LLP,133268855,"38,100.00",Crime Lower: Legal Aid Payments
MINISTRY OF JUSTICE,LAA,29/Jan/2014 ,Crime Lower,LEGAL AID FUND - Programme Costs,FREEMANS SOLICITORS.,133269012,"37,000.00",Crime Lower: Legal Aid Payments
MINISTRY OF JUSTICE,LAA,29/Jan/2014 ,Crime Lower,LEGAL AID FUND - Programme Costs,G T STEWART SOLICITORS,133269859,"31,794.00",Crime Lower: Legal Aid Payments
MINISTRY OF JUSTICE,LAA,29/Jan/2014 ,Crime Lower,LEGAL AID FUND - Programme Costs,G T STEWART SOLICITORS,133270305,"32,570.00",Crime Lower: Legal Aid Payments
MINISTRY OF JUSTICE,LAA,29/Jan/2014 ,Crime Lower,LEGAL AID FUND - Programme Costs,G T STEWART SOLICITORS,133270310,"33,626.00",Crime Lower: Legal Aid Payments
MINISTRY OF JUSTICE,LAA,29/Jan/2014 ,Crime Lower,LEGAL AID FUND - Programme Costs,GALBRAITH BRANLEY,133269815,"40,036.00",Crime Lower: Legal Aid Payments
MINISTRY OF JUSTICE,LAA,29/Jan/2014 ,Crime Lower,LEGAL AID FUND - Programme Costs,"GAMMON,PIERCY & GAIGER",133270090,"32,909.00",Crime Lower: Legal Aid Payments
MINISTRY OF JUSTICE,LAA,29/Jan/2014 ,Crime Lower,LEGAL AID FUND - Programme Costs,GANS & CO SOLICITORS LLP,133269843,"31,126.00",Crime Lower: Legal Aid Payments
MINISTRY OF JUSTICE,LAA,29/Jan/2014 ,Crime Lower,LEGAL AID FUND - Programme Costs,GEOFF WHITE & CO,133270068,"41,986.00",Crime Lower: Legal Aid Payments
MINISTRY OF JUSTICE,LAA,29/Jan/2014 ,Crime Lower,LEGAL AID FUND - Programme Costs,GEOFFREY FORRESTER & CO,133269113,"65,300.00",Crime Lower: Legal Aid Payments
MINISTRY OF JUSTICE,LAA,29/Jan/2014 ,Crime Lower,LEGAL AID FUND - Programme Costs,GEPP & SONS SOLICITORS,133268869,"50,300.00",Crime Lower: Legal Aid Payments
MINISTRY OF JUSTICE,LAA,29/Jan/2014 ,Crime Lower,LEGAL AID FUND - Programme Costs,GERALD ARMSTRONG,133269104,"26,000.00",Crime Lower: Legal Aid Payments
MINISTRY OF JUSTICE,LAA,29/Jan/2014 ,Crime Lower,LEGAL AID FUND - Programme Costs,GHP LEGAL,133268743,"35,700.00",Crime Lower: Legal Aid Payments
MINISTRY OF JUSTICE,LAA,29/Jan/2014 ,Crime Lower,LEGAL AID FUND - Programme Costs,GILL & BASSI SOLICITORS,133270363,"35,036.00",Crime Lower: Legal Aid Payments
MINISTRY OF JUSTICE,LAA,29/Jan/2014 ,Crime Lower,LEGAL AID FUND - Programme Costs,GOLDKORNS,133269028,"35,900.00",Crime Lower: Legal Aid Payments
MINISTRY OF JUSTICE,LAA,29/Jan/2014 ,Crime Lower,LEGAL AID FUND - Programme Costs,GOLDSTONES SOLICITORS LTD,133268726,"26,000.00",Crime Lower: Legal Aid Payments
MINISTRY OF JUSTICE,LAA,29/Jan/2014 ,Crime Lower,LEGAL AID FUND - Programme Costs,GRAHAM EVANS & PARTNERS,133268727,"29,500.00",Crime Lower: Legal Aid Payments
MINISTRY OF JUSTICE,LAA,29/Jan/2014 ,Crime Lower,LEGAL AID FUND - Programme Costs,GRAYSON WILLIS BENNETT,133269942,"36,725.00",Crime Lower: Legal Aid Payments
MINISTRY OF JUSTICE,LAA,29/Jan/2014 ,Crime Lower,LEGAL AID FUND - Programme Costs,GRIFFITHS & JOHN SOLICITORS,133268731,"32,000.00",Crime Lower: Legal Aid Payments
MINISTRY OF JUSTICE,LAA,29/Jan/2014 ,Crime Lower,LEGAL AID FUND - Programme Costs,GULLANDS,133269331,"35,000.00",Crime Lower: Legal Aid Payments
MINISTRY OF JUSTICE,LAA,29/Jan/2014 ,Crime Lower,LEGAL AID FUND - Programme Costs,GUNEY CLARK & RYAN LTD CO,133269832,"30,709.00",Crime Lower: Legal Aid Payments
MINISTRY OF JUSTICE,LAA,29/Jan/2014 ,Crime Lower,LEGAL AID FUND - Programme Costs,GURNEY HARDEN,133270059,"34,834.00",Crime Lower: Legal Aid Payments
MINISTRY OF JUSTICE,LAA,29/Jan/2014 ,Crime Lower,LEGAL AID FUND - Programme Costs,H P GOWER SOLICITORS,133270365,"38,023.00",Crime Lower: Legal Aid Payments
MINISTRY OF JUSTICE,LAA,29/Jan/2014 ,Crime Lower,LEGAL AID FUND - Programme Costs,HAL SOLICITORS,133268953,"28,300.00",Crime Lower: Legal Aid Payments
MINISTRY OF JUSTICE,LAA,15/Jan/2014 ,Crime Lower,LEGAL AID FUND - Programme Costs,HALLINAN BLACKBURN GITTINGS & NOTT,133022921,"31,000.00",Crime Lower: Legal Aid Payments
MINISTRY OF JUSTICE,LAA,29/Jan/2014 ,Crime Lower,LEGAL AID FUND - Programme Costs,HAMER CHILDS,133269529,"30,000.00",Crime Lower: Legal Aid Payments
MINISTRY OF JUSTICE,LAA,29/Jan/2014 ,Crime Lower,LEGAL AID FUND - Programme Costs,HANNE & CO,133268995,"29,900.00",Crime Lower: Legal Aid Payments
MINISTRY OF JUSTICE,LAA,29/Jan/2014 ,Crime Lower,LEGAL AID FUND - Programme Costs,HARRINGTONS LEGAL LLP,133269542,"30,000.00",Crime Lower: Legal Aid Payments
MINISTRY OF JUSTICE,LAA,29/Jan/2014 ,Crime Lower,LEGAL AID FUND - Programme Costs,HARRIS CUFFARO & NICHOLS,133268842,"73,300.00",Crime Lower: Legal Aid Payments
MINISTRY OF JUSTICE,LAA,29/Jan/2014 ,Crime Lower,LEGAL AID FUND - Programme Costs,HARRY BOODHOO & CO,133269270,"29,000.00",Crime Lower: Legal Aid Payments
MINISTRY OF JUSTICE,LAA,29/Jan/2014 ,Crime Lower,LEGAL AID FUND - Programme Costs,HARTHILLS,133269150,"35,100.00",Crime Lower: Legal Aid Payments
MINISTRY OF JUSTICE,LAA,29/Jan/2014 ,Crime Lower,LEGAL AID FUND - Programme Costs,HASKELL & CO,133270057,"51,498.00",Crime Lower: Legal Aid Payments
MINISTRY OF JUSTICE,LAA,29/Jan/2014 ,Crime Lower,LEGAL AID FUND - Programme Costs,HDH LAW,133269585,"40,800.00",Crime Lower: Legal Aid Payments
MINISTRY OF JUSTICE,LAA,29/Jan/2014 ,Crime Lower,LEGAL AID FUND - Programme Costs,HEALEY COLBON,133268837,"26,100.00",Crime Lower: Legal Aid Payments
MINISTRY OF JUSTICE,LAA,29/Jan/2014 ,Crime Lower,LEGAL AID FUND - Programme Costs,HEALEY COLBON,133268840,"31,900.00",Crime Lower: Legal Aid Payments
MINISTRY OF JUSTICE,LAA,29/Jan/2014 ,Crime Lower,LEGAL AID FUND - Programme Costs,HENNESSY & HAMMUDI,133269405,"50,000.00",Crime Lower: Legal Aid Payments
MINISTRY OF JUSTICE,LAA,29/Jan/2014 ,Crime Lower,LEGAL AID FUND - Programme Costs,HENRY HYAMS,133269200,"63,800.00",Crime Lower: Legal Aid Payments
MINISTRY OF JUSTICE,LAA,29/Jan/2014 ,Crime Lower,LEGAL AID FUND - Programme Costs,HENRY'S SOLICITORS LTD,133269324,"92,100.00",Crime Lower: Legal Aid Payments
MINISTRY OF JUSTICE,LAA,29/Jan/2014 ,Crime Lower,LEGAL AID FUND - Programme Costs,HENSCOTT SOLICITORS,133269817,"25,397.00",Crime Lower: Legal Aid Payments
MINISTRY OF JUSTICE,LAA,29/Jan/2014 ,Crime Lower,LEGAL AID FUND - Programme Costs,HINE SOLICITORS,133269381,"29,300.00",Crime Lower: Legal Aid Payments
MINISTRY OF JUSTICE,LAA,29/Jan/2014 ,Crime Lower,LEGAL AID FUND - Programme Costs,HINE SOLICITORS,133270318,"30,175.00",Crime Lower: Legal Aid Payments
MINISTRY OF JUSTICE,LAA,29/Jan/2014 ,Crime Lower,LEGAL AID FUND - Programme Costs,HINE SOLICITORS,133270316,"30,801.00",Crime Lower: Legal Aid Payments
MINISTRY OF JUSTICE,LAA,29/Jan/2014 ,Crime Lower,LEGAL AID FUND - Programme Costs,HINE SOLICITORS,133270313,"31,586.00",Crime Lower: Legal Aid Payments
MINISTRY OF JUSTICE,LAA,29/Jan/2014 ,Crime Lower,LEGAL AID FUND - Programme Costs,HINE SOLICITORS,133270314,"41,277.00",Crime Lower: Legal Aid Payments
MINISTRY OF JUSTICE,LAA,29/Jan/2014 ,Crime Lower,LEGAL AID FUND - Programme Costs,HINE SOLICITORS,133270315,"57,376.00",Crime Lower: Legal Aid Payments
MINISTRY OF JUSTICE,LAA,29/Jan/2014 ,Crime Lower,LEGAL AID FUND - Programme Costs,HINE SOLICITORS,133270317,"72,782.00",Crime Lower: Legal Aid Payments
MINISTRY OF JUSTICE,LAA,29/Jan/2014 ,Crime Lower,LEGAL AID FUND - Programme Costs,HODGE JONES & ALLEN LLP,133269844,"53,255.00",Crime Lower: Legal Aid Payments
MINISTRY OF JUSTICE,LAA,29/Jan/2014 ,Crime Lower,LEGAL AID FUND - Programme Costs,HODGSON COULTHARD & CO,133269902,"36,569.00",Crime Lower: Legal Aid Payments
MINISTRY OF JUSTICE,LAA,29/Jan/2014 ,Crime Lower,LEGAL AID FUND - Programme Costs,HORSMAN SOLICITORS LTD,133270061,"44,007.00",Crime Lower: Legal Aid Payments
MINISTRY OF JUSTICE,LAA,29/Jan/2014 ,Crime Lower,LEGAL AID FUND - Programme Costs,HOWARD & BYRNE SOLICITORS,133269172,"69,900.00",Crime Lower: Legal Aid Payments
MINISTRY OF JUSTICE,LAA,29/Jan/2014 ,Crime Lower,LEGAL AID FUND - Programme Costs,HOWELLS LLP,133269152,"70,000.00",Crime Lower: Legal Aid Payments
MINISTRY OF JUSTICE,LAA,29/Jan/2014 ,Crime Lower,LEGAL AID FUND - Programme Costs,HSCO SOLICITORS,133269722,"28,524.00",Crime Lower: Legal Aid Payments
MINISTRY OF JUSTICE,LAA,29/Jan/2014 ,Crime Lower,LEGAL AID FUND - Programme Costs,I B B SOLICITORS,133268951,"94,700.00",Crime Lower: Legal Aid Payments
MINISTRY OF JUSTICE,LAA,29/Jan/2014 ,Crime Lower,LEGAL AID FUND - Programme Costs,IAN HENERY LTD,133270206,"30,521.00",Crime Lower: Legal Aid Payments
MINISTRY OF JUSTICE,LAA,29/Jan/2014 ,Crime Lower,LEGAL AID FUND - Programme Costs,INGRAMS  SOLICITORS,133269214,"37,000.00",Crime Lower: Legal Aid Payments
MINISTRY OF JUSTICE,LAA,29/Jan/2014 ,Crime Lower,LEGAL AID FUND - Programme Costs,IRVINE THANVI NATAS SOLICITORS,133268916,"58,000.00",Crime Lower: Legal Aid Payments
MINISTRY OF JUSTICE,LAA,29/Jan/2014 ,Crime Lower,LEGAL AID FUND - Programme Costs,J C WROE & CO,133269400,"28,000.00",Crime Lower: Legal Aid Payments
MINISTRY OF JUSTICE,LAA,29/Jan/2014 ,Crime Lower,LEGAL AID FUND - Programme Costs,J D SPICER ZEB,133269807,"136,411.00",Crime Lower: Legal Aid Payments
MINISTRY OF JUSTICE,LAA,29/Jan/2014 ,Crime Lower,LEGAL AID FUND - Programme Costs,JACKSON & CANTER LLP,133270462,"60,749.00",Crime Lower: Legal Aid Payments
MINISTRY OF JUSTICE,LAA,29/Jan/2014 ,Crime Lower,LEGAL AID FUND - Programme Costs,JAMES MURRAY SOLICITORS,133269882,"27,180.00",Crime Lower: Legal Aid Payments
MINISTRY OF JUSTICE,LAA,29/Jan/2014 ,Crime Lower,LEGAL AID FUND - Programme Costs,JERMAN SAMUELS & PEARSON LLP,133268848,"49,100.00",Crime Lower: Legal Aid Payments
MINISTRY OF JUSTICE,LAA,29/Jan/2014 ,Crime Lower,LEGAL AID FUND - Programme Costs,JERMAN SAMUELS & PEARSON LLP,133268849,"54,600.00",Crime Lower: Legal Aid Payments
MINISTRY OF JUSTICE,LAA,29/Jan/2014 ,Crime Lower,LEGAL AID FUND - Programme Costs,JOHN DELANEY & CO SOLICITORS,133269204,"46,000.00",Crime Lower: Legal Aid Payments
MINISTRY OF JUSTICE,LAA,29/Jan/2014 ,Crime Lower,LEGAL AID FUND - Programme Costs,JOHN ROBINSON & CO,133269213,"36,500.00",Crime Lower: Legal Aid Payments
MINISTRY OF JUSTICE,LAA,29/Jan/2014 ,Crime Lower,LEGAL AID FUND - Programme Costs,JONAS ROY BLOOM,133269518,"44,400.00",Crime Lower: Legal Aid Payments
MINISTRY OF JUSTICE,LAA,29/Jan/2014 ,Crime Lower,LEGAL AID FUND - Programme Costs,JOSEPH HILL & CO,133268963,"36,600.00",Crime Lower: Legal Aid Payments
MINISTRY OF JUSTICE,LAA,29/Jan/2014 ,Crime Lower,LEGAL AID FUND - Programme Costs,JSP LAW LIMITED,133270362,"30,171.00",Crime Lower: Legal Aid Payments
MINISTRY OF JUSTICE,LAA,29/Jan/2014 ,Crime Lower,LEGAL AID FUND - Programme Costs,K LEGAL SOLICITORS,133270391,"48,831.00",Crime Lower: Legal Aid Payments
MINISTRY OF JUSTICE,LAA,29/Jan/2014 ,Crime Lower,LEGAL AID FUND - Programme Costs,KAIM TODNER SOLICITORS LIMITED,133269786,"33,991.00",Crime Lower: Legal Aid Payments
MINISTRY OF JUSTICE,LAA,29/Jan/2014 ,Crime Lower,LEGAL AID FUND - Programme Costs,KAIM TODNER SOLICITORS LIMITED,133269785,"68,971.00",Crime Lower: Legal Aid Payments
MINISTRY OF JUSTICE,LAA,29/Jan/2014 ,Crime Lower,LEGAL AID FUND - Programme Costs,KEANEY WHITEHEAD PARTNERSHIP,133269888,"30,831.00",Crime Lower: Legal Aid Payments
MINISTRY OF JUSTICE,LAA,29/Jan/2014 ,Crime Lower,LEGAL AID FUND - Programme Costs,KEMPS,133269987,"30,040.00",Crime Lower: Legal Aid Payments
MINISTRY OF JUSTICE,LAA,29/Jan/2014 ,Crime Lower,LEGAL AID FUND - Programme Costs,KEMPS,133269991,"35,220.00",Crime Lower: Legal Aid Payments
MINISTRY OF JUSTICE,LAA,29/Jan/2014 ,Crime Lower,LEGAL AID FUND - Programme Costs,KENT DEFENCE,133269570,"52,800.00",Crime Lower: Legal Aid Payments
MINISTRY OF JUSTICE,LAA,29/Jan/2014 ,Crime Lower,LEGAL AID FUND - Programme Costs,KHATTAK SOLICITORS,133269221,"29,100.00",Crime Lower: Legal Aid Payments
MINISTRY OF JUSTICE,LAA,29/Jan/2014 ,Crime Lower,LEGAL AID FUND - Programme Costs,KIRWANS,133269878,"40,922.00",Crime Lower: Legal Aid Payments
MINISTRY OF JUSTICE,LAA,29/Jan/2014 ,Crime Lower,LEGAL AID FUND - Programme Costs,KRISTINA HARRISON SOLICITORS,133270040,"26,025.00",Crime Lower: Legal Aid Payments
MINISTRY OF JUSTICE,LAA,29/Jan/2014 ,Crime Lower,LEGAL AID FUND - Programme Costs,LANSBURY WORTHINGTON,133268889,"84,900.00",Crime Lower: Legal Aid Payments
MINISTRY OF JUSTICE,LAA,29/Jan/2014 ,Crime Lower,LEGAL AID FUND - Programme Costs,LANYON BOWDLER SOLICITORS,133269483,"38,400.00",Crime Lower: Legal Aid Payments
MINISTRY OF JUSTICE,LAA,29/Jan/2014 ,Crime Lower,LEGAL AID FUND - Programme Costs,LAWRENCE & CO,133269018,"63,000.00",Crime Lower: Legal Aid Payments
MINISTRY OF JUSTICE,LAA,29/Jan/2014 ,Crime Lower,LEGAL AID FUND - Programme Costs,LAWRENCES,133269700,"25,572.00",Crime Lower: Legal Aid Payments
MINISTRY OF JUSTICE,LAA,29/Jan/2014 ,Crime Lower,LEGAL AID FUND - Programme Costs,LAWTONS,133269592,"76,200.00",Crime Lower: Legal Aid Payments
MINISTRY OF JUSTICE,LAA,29/Jan/2014 ,Crime Lower,LEGAL AID FUND - Programme Costs,LAWTONS SOLICITORS LTD,133268834,"35,300.00",Crime Lower: Legal Aid Payments
MINISTRY OF JUSTICE,LAA,29/Jan/2014 ,Crime Lower,LEGAL AID FUND - Programme Costs,LESLIE FRANKS SOLICITORS,133269847,"86,294.00",Crime Lower: Legal Aid Payments
MINISTRY OF JUSTICE,LAA,29/Jan/2014 ,Crime Lower,LEGAL AID FUND - Programme Costs,LEVALES SOLCITORS,133270342,"27,216.00",Crime Lower: Legal Aid Payments
MINISTRY OF JUSTICE,LAA,29/Jan/2014 ,Crime Lower,LEGAL AID FUND - Programme Costs,LEVY & CO SOLICITORS LLP,133268850,"26,500.00",Crime Lower: Legal Aid Payments
MINISTRY OF JUSTICE,LAA,29/Jan/2014 ,Crime Lower,LEGAL AID FUND - Programme Costs,LHD SOLICITORS LTD,133269242,"65,000.00",Crime Lower: Legal Aid Payments
MINISTRY OF JUSTICE,LAA,29/Jan/2014 ,Crime Lower,LEGAL AID FUND - Programme Costs,LLM SOLICITORS (LONDON) LTD,133270378,"38,560.00",Crime Lower: Legal Aid Payments
MINISTRY OF JUSTICE,LAA,29/Jan/2014 ,Crime Lower,LEGAL AID FUND - Programme Costs,LLOYDS PR LTD,133269723,"32,678.00",Crime Lower: Legal Aid Payments
MINISTRY OF JUSTICE,LAA,29/Jan/2014 ,Crime Lower,LEGAL AID FUND - Programme Costs,LUMB & MACGILL,133269178,"35,000.00",Crime Lower: Legal Aid Payments
MINISTRY OF JUSTICE,LAA,29/Jan/2014 ,Crime Lower,LEGAL AID FUND - Programme Costs,M K LAW SOLICITORS LTD,133270321,"68,868.00",Crime Lower: Legal Aid Payments
MINISTRY OF JUSTICE,LAA,29/Jan/2014 ,Crime Lower,LEGAL AID FUND - Programme Costs,MACKESYS SOLICITORS,133268996,"103,800.00",Crime Lower: Legal Aid Payments
MINISTRY OF JUSTICE,LAA,29/Jan/2014 ,Crime Lower,LEGAL AID FUND - Programme Costs,MANN & CO SOLICITORS,133269498,"34,000.00",Crime Lower: Legal Aid Payments
MINISTRY OF JUSTICE,LAA,29/Jan/2014 ,Crime Lower,LEGAL AID FUND - Programme Costs,MARTIN MURRAY & ASSOCIATES,133270110,"26,207.00",Crime Lower: Legal Aid Payments
MINISTRY OF JUSTICE,LAA,29/Jan/2014 ,Crime Lower,LEGAL AID FUND - Programme Costs,MARTIN MURRAY & ASSOCIATES,133269391,"109,100.00",Crime Lower: Legal Aid Payments
MINISTRY OF JUSTICE,LAA,29/Jan/2014 ,Crime Lower,LEGAL AID FUND - Programme Costs,MARTIN MURRAY & ASSOCIATES,133268948,"116,400.00",Crime Lower: Legal Aid Payments
MINISTRY OF JUSTICE,LAA,29/Jan/2014 ,Crime Lower,LEGAL AID FUND - Programme Costs,MARTYN HEWETT,133269343,"26,000.00",Crime Lower: Legal Aid Payments
MINISTRY OF JUSTICE,LAA,29/Jan/2014 ,Crime Lower,LEGAL AID FUND - Programme Costs,MCGANNS LAW LTD,133268789,"80,700.00",Crime Lower: Legal Aid Payments
MINISTRY OF JUSTICE,LAA,29/Jan/2014 ,Crime Lower,LEGAL AID FUND - Programme Costs,MCGRATH & CO SOLICITORS,133269517,"35,000.00",Crime Lower: Legal Aid Payments
MINISTRY OF JUSTICE,LAA,29/Jan/2014 ,Crime Lower,LEGAL AID FUND - Programme Costs,MCLARTYS SOLICITORS,133268976,"40,000.00",Crime Lower: Legal Aid Payments
MINISTRY OF JUSTICE,LAA,29/Jan/2014 ,Crime Lower,LEGAL AID FUND - Programme Costs,MCSORLEY LEWIS LAW LTD,133268732,"46,100.00",Crime Lower: Legal Aid Payments
MINISTRY OF JUSTICE,LAA,29/Jan/2014 ,Crime Lower,LEGAL AID FUND - Programme Costs,MIAN & CO,133270186,"30,988.00",Crime Lower: Legal Aid Payments
MINISTRY OF JUSTICE,LAA,29/Jan/2014 ,Crime Lower,LEGAL AID FUND - Programme Costs,MICHAEL PURDON,133269910,"45,473.00",Crime Lower: Legal Aid Payments
MINISTRY OF JUSTICE,LAA,29/Jan/2014 ,Crime Lower,LEGAL AID FUND - Programme Costs,MOHAMMED HUSSAIN SOLICITORS,133269187,"26,600.00",Crime Lower: Legal Aid Payments
MINISTRY OF JUSTICE,LAA,29/Jan/2014 ,Crime Lower,LEGAL AID FUND - Programme Costs,MORGAN CULLEN BALL LTD,133270459,"43,767.00",Crime Lower: Legal Aid Payments
MINISTRY OF JUSTICE,LAA,29/Jan/2014 ,Crime Lower,LEGAL AID FUND - Programme Costs,MOWBRAY WOODWARDS SOLICITORS,133269447,"47,900.00",Crime Lower: Legal Aid Payments
MINISTRY OF JUSTICE,LAA,29/Jan/2014 ,Crime Lower,LEGAL AID FUND - Programme Costs,MPR SOLICITORS LLP,133269037,"50,000.00",Crime Lower: Legal Aid Payments
MINISTRY OF JUSTICE,LAA,29/Jan/2014 ,Crime Lower,LEGAL AID FUND - Programme Costs,MURRAY HENNIGAN,133269601,"50,000.00",Crime Lower: Legal Aid Payments
MINISTRY OF JUSTICE,LAA,29/Jan/2014 ,Crime Lower,LEGAL AID FUND - Programme Costs,MURRAYS PARTNERSHIP,133269856,"38,296.00",Crime Lower: Legal Aid Payments
MINISTRY OF JUSTICE,LAA,29/Jan/2014 ,Crime Lower,LEGAL AID FUND - Programme Costs,MUSTOE SHORTER SOLICITORS & ADVOCATES LLP,133269464,"45,300.00",Crime Lower: Legal Aid Payments
MINISTRY OF JUSTICE,LAA,29/Jan/2014 ,Crime Lower,LEGAL AID FUND - Programme Costs,MWA SOLICITORS,133269346,"30,200.00",Crime Lower: Legal Aid Payments
MINISTRY OF JUSTICE,LAA,29/Jan/2014 ,Crime Lower,LEGAL AID FUND - Programme Costs,NEEDHAM POULIER & PARTNERS,133269869,"25,762.00",Crime Lower: Legal Aid Payments
MINISTRY OF JUSTICE,LAA,29/Jan/2014 ,Crime Lower,LEGAL AID FUND - Programme Costs,NEIL FOLEY & COMPANY,133269679,"26,014.00",Crime Lower: Legal Aid Payments
MINISTRY OF JUSTICE,LAA,29/Jan/2014 ,Crime Lower,LEGAL AID FUND - Programme Costs,NELSON GUEST & PARTNERS,133268959,"58,100.00",Crime Lower: Legal Aid Payments
MINISTRY OF JUSTICE,LAA,29/Jan/2014 ,Crime Lower,LEGAL AID FUND - Programme Costs,NOBLE SOLICITORS,133268829,"31,400.00",Crime Lower: Legal Aid Payments
MINISTRY OF JUSTICE,LAA,29/Jan/2014 ,Crime Lower,LEGAL AID FUND - Programme Costs,NOBLE SOLICITORS,133268827,"44,700.00",Crime Lower: Legal Aid Payments
MINISTRY OF JUSTICE,LAA,29/Jan/2014 ,Crime Lower,LEGAL AID FUND - Programme Costs,NOBLE SOLICITORS,133268839,"73,200.00",Crime Lower: Legal Aid Payments
MINISTRY OF JUSTICE,LAA,29/Jan/2014 ,Crime Lower,LEGAL AID FUND - Programme Costs,NORRIE WAITE & SLATER,133269154,"39,100.00",Crime Lower: Legal Aid Payments
MINISTRY OF JUSTICE,LAA,29/Jan/2014 ,Crime Lower,LEGAL AID FUND - Programme Costs,NUMBER ONE LAW LLP,133270217,"44,632.00",Crime Lower: Legal Aid Payments
MINISTRY OF JUSTICE,LAA,29/Jan/2014 ,Crime Lower,LEGAL AID FUND - Programme Costs,NUNN RICKARD SOLICITOR ADVOCATES,133269452,"27,700.00",Crime Lower: Legal Aid Payments
MINISTRY OF JUSTICE,LAA,29/Jan/2014 ,Crime Lower,LEGAL AID FUND - Programme Costs,OBW PERERA LTD,133268873,"29,000.00",Crime Lower: Legal Aid Payments
MINISTRY OF JUSTICE,LAA,08/Jan/2014 ,Crime Lower,LEGAL AID FUND - Programme Costs,O'GARRAS SOLICITORS,132885157,"46,356.96",Crime Lower: Legal Aid Payments
MINISTRY OF JUSTICE,LAA,29/Jan/2014 ,Crime Lower,LEGAL AID FUND - Programme Costs,OLIVER D'SA SOLICITORS,133269689,"73,131.00",Crime Lower: Legal Aid Payments
MINISTRY OF JUSTICE,LAA,29/Jan/2014 ,Crime Lower,LEGAL AID FUND - Programme Costs,OLLIERS,133270007,"46,544.00",Crime Lower: Legal Aid Payments
MINISTRY OF JUSTICE,LAA,06/Jan/2014 ,Crime Lower,LEGAL AID FUND - Programme Costs,OLLIERS,132753538,"49,173.00",Crime Lower: Legal Aid Payments
MINISTRY OF JUSTICE,LAA,29/Jan/2014 ,Crime Lower,LEGAL AID FUND - Programme Costs,"O'NEILL, WRIGHT & NASH",133270230,"33,599.00",Crime Lower: Legal Aid Payments
MINISTRY OF JUSTICE,LAA,29/Jan/2014 ,Crime Lower,LEGAL AID FUND - Programme Costs,O'REILLYS SOLICITORS LTD,133269321,"30,000.00",Crime Lower: Legal Aid Payments
MINISTRY OF JUSTICE,LAA,29/Jan/2014 ,Crime Lower,LEGAL AID FUND - Programme Costs,OSLERS SOLICITORS,133268868,"52,300.00",Crime Lower: Legal Aid Payments
MINISTRY OF JUSTICE,LAA,29/Jan/2014 ,Crime Lower,LEGAL AID FUND - Programme Costs,OWEN NASH & CO,133269538,"40,000.00",Crime Lower: Legal Aid Payments
MINISTRY OF JUSTICE,LAA,29/Jan/2014 ,Crime Lower,LEGAL AID FUND - Programme Costs,PALMERS CRIMINAL DEFENCE SOLICITORS,133269344,"30,000.00",Crime Lower: Legal Aid Payments
MINISTRY OF JUSTICE,LAA,29/Jan/2014 ,Crime Lower,LEGAL AID FUND - Programme Costs,PARDOES LLP,133269430,"27,800.00",Crime Lower: Legal Aid Payments
MINISTRY OF JUSTICE,LAA,29/Jan/2014 ,Crime Lower,LEGAL AID FUND - Programme Costs,PAUL CROWLEY & CO SOLICITORS LTD,133269072,"27,000.00",Crime Lower: Legal Aid Payments
MINISTRY OF JUSTICE,LAA,29/Jan/2014 ,Crime Lower,LEGAL AID FUND - Programme Costs,PAUL ROBINSON & CO,133268871,"27,900.00",Crime Lower: Legal Aid Payments
MINISTRY OF JUSTICE,LAA,29/Jan/2014 ,Crime Lower,LEGAL AID FUND - Programme Costs,PEACH GREY & CO,133269370,"25,000.00",Crime Lower: Legal Aid Payments
MINISTRY OF JUSTICE,LAA,29/Jan/2014 ,Crime Lower,LEGAL AID FUND - Programme Costs,PEARSON CAULFIELD,133269914,"32,542.00",Crime Lower: Legal Aid Payments
MINISTRY OF JUSTICE,LAA,29/Jan/2014 ,Crime Lower,LEGAL AID FUND - Programme Costs,PETHERBRIDGE BASSRA SOLICITORS,133269954,"34,597.00",Crime Lower: Legal Aid Payments
MINISTRY OF JUSTICE,LAA,29/Jan/2014 ,Crime Lower,LEGAL AID FUND - Programme Costs,POWELL SPENCER AND PARTNERS,133268919,"86,300.00",Crime Lower: Legal Aid Payments
MINISTRY OF JUSTICE,LAA,29/Jan/2014 ,Crime Lower,LEGAL AID FUND - Programme Costs,PURCELL PARKER,133269519,"98,300.00",Crime Lower: Legal Aid Payments
MINISTRY OF JUSTICE,LAA,29/Jan/2014 ,Crime Lower,LEGAL AID FUND - Programme Costs,QUALITYSOLICITORS J W HUGHES & CO,133268711,"25,400.00",Crime Lower: Legal Aid Payments
MINISTRY OF JUSTICE,LAA,29/Jan/2014 ,Crime Lower,LEGAL AID FUND - Programme Costs,QUALITYSOLICITORS KNIGHT POLSON,133269373,"25,800.00",Crime Lower: Legal Aid Payments
MINISTRY OF JUSTICE,LAA,29/Jan/2014 ,Crime Lower,LEGAL AID FUND - Programme Costs,RED KITE LAW LLP,133268715,"27,800.00",Crime Lower: Legal Aid Payments
MINISTRY OF JUSTICE,LAA,29/Jan/2014 ,Crime Lower,LEGAL AID FUND - Programme Costs,REEDS SOLICITORS LTD,133270460,"58,980.00",Crime Lower: Legal Aid Payments
MINISTRY OF JUSTICE,LAA,29/Jan/2014 ,Crime Lower,LEGAL AID FUND - Programme Costs,REEDS SOLICITORS LTD,133270114,"79,664.00",Crime Lower: Legal Aid Payments
MINISTRY OF JUSTICE,LAA,29/Jan/2014 ,Crime Lower,LEGAL AID FUND - Programme Costs,REEVES & CO SOLICITORS,133270060,"58,510.00",Crime Lower: Legal Aid Payments
MINISTRY OF JUSTICE,LAA,29/Jan/2014 ,Crime Lower,LEGAL AID FUND - Programme Costs,RICHARD BODY & CO,133269341,"31,000.00",Crime Lower: Legal Aid Payments
MINISTRY OF JUSTICE,LAA,29/Jan/2014 ,Crime Lower,LEGAL AID FUND - Programme Costs,RICHARD HASWELL SOLICITORS LLP,133269908,"32,062.00",Crime Lower: Legal Aid Payments
MINISTRY OF JUSTICE,LAA,29/Jan/2014 ,Crime Lower,LEGAL AID FUND - Programme Costs,RILEY HAYES & CO,133269563,"32,000.00",Crime Lower: Legal Aid Payments
MINISTRY OF JUSTICE,LAA,29/Jan/2014 ,Crime Lower,LEGAL AID FUND - Programme Costs,RMNJ SOLICITORS ***,133269059,"59,800.00",Crime Lower: Legal Aid Payments
MINISTRY OF JUSTICE,LAA,29/Jan/2014 ,Crime Lower,LEGAL AID FUND - Programme Costs,ROBERT LIZAR SOLICITORS,133269319,"38,400.00",Crime Lower: Legal Aid Payments
MINISTRY OF JUSTICE,LAA,29/Jan/2014 ,Crime Lower,LEGAL AID FUND - Programme Costs,ROBERTSON'S SOLICITORS,133269170,"42,000.00",Crime Lower: Legal Aid Payments
MINISTRY OF JUSTICE,LAA,29/Jan/2014 ,Crime Lower,LEGAL AID FUND - Programme Costs,RODNEY WARREN & CO,133269335,"38,400.00",Crime Lower: Legal Aid Payments
MINISTRY OF JUSTICE,LAA,29/Jan/2014 ,Crime Lower,LEGAL AID FUND - Programme Costs,RONALD FLETCHER BAKER LLP,133269827,"27,823.00",Crime Lower: Legal Aid Payments
MINISTRY OF JUSTICE,LAA,29/Jan/2014 ,Crime Lower,LEGAL AID FUND - Programme Costs,ROSS SOLICITORS LTD,133269467,"41,700.00",Crime Lower: Legal Aid Payments
MINISTRY OF JUSTICE,LAA,29/Jan/2014 ,Crime Lower,LEGAL AID FUND - Programme Costs,ROWE SPARKES SOLICITORS LTD,133269375,"48,500.00",Crime Lower: Legal Aid Payments
MINISTRY OF JUSTICE,LAA,29/Jan/2014 ,Crime Lower,LEGAL AID FUND - Programme Costs,ROY FOREMAN & CO SOLICITORS,133269197,"50,400.00",Crime Lower: Legal Aid Payments
MINISTRY OF JUSTICE,LAA,29/Jan/2014 ,Crime Lower,LEGAL AID FUND - Programme Costs,RUSSELL & RUSSELL SOLICITORS,133269979,"46,678.00",Crime Lower: Legal Aid Payments
MINISTRY OF JUSTICE,LAA,29/Jan/2014 ,Crime Lower,LEGAL AID FUND - Programme Costs,S A LAW CHAMBERS SOLICITORS,133268901,"50,800.00",Crime Lower: Legal Aid Payments
MINISTRY OF JUSTICE,LAA,29/Jan/2014 ,Crime Lower,LEGAL AID FUND - Programme Costs,SAKHI LEGAL SERVICES LTD,133269694,"30,713.00",Crime Lower: Legal Aid Payments
MINISTRY OF JUSTICE,LAA,29/Jan/2014 ,Crime Lower,LEGAL AID FUND - Programme Costs,SANSBURY DOUGLAS,133269579,"39,000.00",Crime Lower: Legal Aid Payments
MINISTRY OF JUSTICE,LAA,29/Jan/2014 ,Crime Lower,LEGAL AID FUND - Programme Costs,SAUNDERS LAW LTD,133269013,"25,700.00",Crime Lower: Legal Aid Payments
MINISTRY OF JUSTICE,LAA,29/Jan/2014 ,Crime Lower,LEGAL AID FUND - Programme Costs,SCOTT-MONCRIEFF & ASSOCIATES LLP,133269000,"74,300.00",Crime Lower: Legal Aid Payments
MINISTRY OF JUSTICE,LAA,29/Jan/2014 ,Crime Lower,LEGAL AID FUND - Programme Costs,SELBY DIXON SOLICITORS,133270117,"25,331.00",Crime Lower: Legal Aid Payments
MINISTRY OF JUSTICE,LAA,29/Jan/2014 ,Crime Lower,LEGAL AID FUND - Programme Costs,SHARMA LAW SOLICITORS,133270394,"42,251.00",Crime Lower: Legal Aid Payments
MINISTRY OF JUSTICE,LAA,29/Jan/2014 ,Crime Lower,LEGAL AID FUND - Programme Costs,SHAW GRAHAM KERSH,133269020,"34,600.00",Crime Lower: Legal Aid Payments
MINISTRY OF JUSTICE,LAA,29/Jan/2014 ,Crime Lower,LEGAL AID FUND - Programme Costs,SHELLEY & CO,133269764,"25,673.00",Crime Lower: Legal Aid Payments
MINISTRY OF JUSTICE,LAA,29/Jan/2014 ,Crime Lower,LEGAL AID FUND - Programme Costs,SHEPHERD REYNOLDS SOLICITORS LTD,133270045,"29,318.00",Crime Lower: Legal Aid Payments
MINISTRY OF JUSTICE,LAA,29/Jan/2014 ,Crime Lower,LEGAL AID FUND - Programme Costs,SINGLETON WINN SAUNDERS,133269134,"28,700.00",Crime Lower: Legal Aid Payments
MINISTRY OF JUSTICE,LAA,29/Jan/2014 ,Crime Lower,LEGAL AID FUND - Programme Costs,SJ LAW SOLICITORS,133269816,"80,237.00",Crime Lower: Legal Aid Payments
MINISTRY OF JUSTICE,LAA,29/Jan/2014 ,Crime Lower,LEGAL AID FUND - Programme Costs,SMITH PARTNERSHIP,133269527,"30,600.00",Crime Lower: Legal Aid Payments
MINISTRY OF JUSTICE,LAA,29/Jan/2014 ,Crime Lower,LEGAL AID FUND - Programme Costs,SMITH PARTNERSHIP,133268801,"37,000.00",Crime Lower: Legal Aid Payments
MINISTRY OF JUSTICE,LAA,29/Jan/2014 ,Crime Lower,LEGAL AID FUND - Programme Costs,SMITH PARTNERSHIP,133269526,"38,600.00",Crime Lower: Legal Aid Payments
MINISTRY OF JUSTICE,LAA,29/Jan/2014 ,Crime Lower,LEGAL AID FUND - Programme Costs,SMITH PARTNERSHIP,133268804,"54,200.00",Crime Lower: Legal Aid Payments
MINISTRY OF JUSTICE,LAA,29/Jan/2014 ,Crime Lower,LEGAL AID FUND - Programme Costs,SONN MACMILLAN WALKER LTD,133268895,"61,000.00",Crime Lower: Legal Aid Payments
MINISTRY OF JUSTICE,LAA,29/Jan/2014 ,Crime Lower,LEGAL AID FUND - Programme Costs,STEEL & SHAMASH,133269043,"36,900.00",Crime Lower: Legal Aid Payments
MINISTRY OF JUSTICE,LAA,29/Jan/2014 ,Crime Lower,LEGAL AID FUND - Programme Costs,STEELE FORD & NEWTON,133269281,"31,000.00",Crime Lower: Legal Aid Payments
MINISTRY OF JUSTICE,LAA,29/Jan/2014 ,Crime Lower,LEGAL AID FUND - Programme Costs,STEPHEN BURDON SOLICITORS,133268795,"33,000.00",Crime Lower: Legal Aid Payments
MINISTRY OF JUSTICE,LAA,29/Jan/2014 ,Crime Lower,LEGAL AID FUND - Programme Costs,STEPHEN RIMMER LLP,133269339,"51,900.00",Crime Lower: Legal Aid Payments
MINISTRY OF JUSTICE,LAA,29/Jan/2014 ,Crime Lower,LEGAL AID FUND - Programme Costs,STEPHENSONS SOLICITORS LLP,133269234,"46,500.00",Crime Lower: Legal Aid Payments
MINISTRY OF JUSTICE,LAA,29/Jan/2014 ,Crime Lower,LEGAL AID FUND - Programme Costs,STERNBERG REED SOLICITORS,133268987,"55,000.00",Crime Lower: Legal Aid Payments
MINISTRY OF JUSTICE,LAA,29/Jan/2014 ,Crime Lower,LEGAL AID FUND - Programme Costs,STEVENS,133269505,"78,400.00",Crime Lower: Legal Aid Payments
MINISTRY OF JUSTICE,LAA,29/Jan/2014 ,Crime Lower,LEGAL AID FUND - Programme Costs,STEVENS SOLICITORS,133269511,"34,100.00",Crime Lower: Legal Aid Payments
MINISTRY OF JUSTICE,LAA,29/Jan/2014 ,Crime Lower,LEGAL AID FUND - Programme Costs,STEVENS SOLICITORS,133269507,"54,700.00",Crime Lower: Legal Aid Payments
MINISTRY OF JUSTICE,LAA,29/Jan/2014 ,Crime Lower,LEGAL AID FUND - Programme Costs,STEVENS SOLICITORS,133269504,"66,500.00",Crime Lower: Legal Aid Payments
MINISTRY OF JUSTICE,LAA,29/Jan/2014 ,Crime Lower,LEGAL AID FUND - Programme Costs,STEWART BEGUM SOLICITORS LLP,133270381,"26,507.00",Crime Lower: Legal Aid Payments
MINISTRY OF JUSTICE,LAA,29/Jan/2014 ,Crime Lower,LEGAL AID FUND - Programme Costs,STOCK MORAN & SWALWELL,133269232,"35,900.00",Crime Lower: Legal Aid Payments
MINISTRY OF JUSTICE,LAA,29/Jan/2014 ,Crime Lower,LEGAL AID FUND - Programme Costs,STRAW & PEARCE,133268767,"26,000.00",Crime Lower: Legal Aid Payments
MINISTRY OF JUSTICE,LAA,29/Jan/2014 ,Crime Lower,LEGAL AID FUND - Programme Costs,STUART MILLER SOLICITORS LTD,133269845,"95,691.00",Crime Lower: Legal Aid Payments
MINISTRY OF JUSTICE,LAA,29/Jan/2014 ,Crime Lower,LEGAL AID FUND - Programme Costs,SUSSEX DEFENCE SOLICITORS,133269364,"45,000.00",Crime Lower: Legal Aid Payments
MINISTRY OF JUSTICE,LAA,29/Jan/2014 ,Crime Lower,LEGAL AID FUND - Programme Costs,SVS SOLICITORS,133270100,"28,696.00",Crime Lower: Legal Aid Payments
MINISTRY OF JUSTICE,LAA,29/Jan/2014 ,Crime Lower,LEGAL AID FUND - Programme Costs,SWAIN & CO SOLICITORS LLP,133268906,"40,000.00",Crime Lower: Legal Aid Payments
MINISTRY OF JUSTICE,LAA,29/Jan/2014 ,Crime Lower,LEGAL AID FUND - Programme Costs,SWAIN & CO SOLICITORS LLP,133269053,"43,400.00",Crime Lower: Legal Aid Payments
MINISTRY OF JUSTICE,LAA,29/Jan/2014 ,Crime Lower,LEGAL AID FUND - Programme Costs,SWAIN & CO SOLICITORS LLP,133269369,"60,300.00",Crime Lower: Legal Aid Payments
MINISTRY OF JUSTICE,LAA,29/Jan/2014 ,Crime Lower,LEGAL AID FUND - Programme Costs,SWITALSKI'S LLP,133269923,"26,019.00",Crime Lower: Legal Aid Payments
MINISTRY OF JUSTICE,LAA,09/Jan/2014 ,Crime Lower,LEGAL AID FUND - Programme Costs,SWITALSKI'S LLP,132885181,"31,972.00",Crime Lower: Legal Aid Payments
MINISTRY OF JUSTICE,LAA,29/Jan/2014 ,Crime Lower,LEGAL AID FUND - Programme Costs,T J LEGAL SERVICES LTD,133269490,"35,700.00",Crime Lower: Legal Aid Payments
MINISTRY OF JUSTICE,LAA,29/Jan/2014 ,Crime Lower,LEGAL AID FUND - Programme Costs,T S LAW LTD,133268988,"30,000.00",Crime Lower: Legal Aid Payments
MINISTRY OF JUSTICE,LAA,29/Jan/2014 ,Crime Lower,LEGAL AID FUND - Programme Costs,T S LAW LTD,133269600,"30,200.00",Crime Lower: Legal Aid Payments
MINISTRY OF JUSTICE,LAA,29/Jan/2014 ,Crime Lower,LEGAL AID FUND - Programme Costs,T V  EDWARDS LLP,133268986,"161,500.00",Crime Lower: Legal Aid Payments
MINISTRY OF JUSTICE,LAA,29/Jan/2014 ,Crime Lower,LEGAL AID FUND - Programme Costs,TAIT FARRIER GRAHAM,133269130,"33,600.00",Crime Lower: Legal Aid Payments
MINISTRY OF JUSTICE,LAA,29/Jan/2014 ,Crime Lower,LEGAL AID FUND - Programme Costs,TAIT FARRIER GRAHAM,133269135,"37,400.00",Crime Lower: Legal Aid Payments
MINISTRY OF JUSTICE,LAA,29/Jan/2014 ,Crime Lower,LEGAL AID FUND - Programme Costs,TATES,133269201,"40,600.00",Crime Lower: Legal Aid Payments
MINISTRY OF JUSTICE,LAA,29/Jan/2014 ,Crime Lower,LEGAL AID FUND - Programme Costs,TAYLOR GOODCHILD LTD,133269137,"30,700.00",Crime Lower: Legal Aid Payments
MINISTRY OF JUSTICE,LAA,29/Jan/2014 ,Crime Lower,LEGAL AID FUND - Programme Costs,TAYLOR HALDANE BARLEX LLP,133269758,"27,149.00",Crime Lower: Legal Aid Payments
MINISTRY OF JUSTICE,LAA,29/Jan/2014 ,Crime Lower,LEGAL AID FUND - Programme Costs,TAYLOR HALDANE BARLEX LLP,133269757,"34,072.00",Crime Lower: Legal Aid Payments
MINISTRY OF JUSTICE,LAA,29/Jan/2014 ,Crime Lower,LEGAL AID FUND - Programme Costs,TAYLOR STREET SOLICITORS LLP,133269348,"110,000.00",Crime Lower: Legal Aid Payments
MINISTRY OF JUSTICE,LAA,29/Jan/2014 ,Crime Lower,LEGAL AID FUND - Programme Costs,THE CASTLE PARTNERSHIP,133269352,"45,000.00",Crime Lower: Legal Aid Payments
MINISTRY OF JUSTICE,LAA,29/Jan/2014 ,Crime Lower,LEGAL AID FUND - Programme Costs,THE FIRST LAW PARTNERSHIP LTD,133269595,"25,000.00",Crime Lower: Legal Aid Payments
MINISTRY OF JUSTICE,LAA,29/Jan/2014 ,Crime Lower,LEGAL AID FUND - Programme Costs,THE FIRST LAW PARTNERSHIP LTD,133268787,"31,000.00",Crime Lower: Legal Aid Payments
MINISTRY OF JUSTICE,LAA,29/Jan/2014 ,Crime Lower,LEGAL AID FUND - Programme Costs,THE FIRST LAW PARTNERSHIP LTD,133268790,"31,000.00",Crime Lower: Legal Aid Payments
MINISTRY OF JUSTICE,LAA,29/Jan/2014 ,Crime Lower,LEGAL AID FUND - Programme Costs,THE FIRST LAW PARTNERSHIP LTD,133268836,"52,500.00",Crime Lower: Legal Aid Payments
MINISTRY OF JUSTICE,LAA,29/Jan/2014 ,Crime Lower,LEGAL AID FUND - Programme Costs,THE GRECH GOODEN PARTNERSHIP,133269665,"37,225.00",Crime Lower: Legal Aid Payments
MINISTRY OF JUSTICE,LAA,29/Jan/2014 ,Crime Lower,LEGAL AID FUND - Programme Costs,THE JOHNSON PARTNERSHIP,133269610,"26,000.00",Crime Lower: Legal Aid Payments
MINISTRY OF JUSTICE,LAA,29/Jan/2014 ,Crime Lower,LEGAL AID FUND - Programme Costs,THE JOHNSON PARTNERSHIP,133269584,"34,500.00",Crime Lower: Legal Aid Payments
MINISTRY OF JUSTICE,LAA,29/Jan/2014 ,Crime Lower,LEGAL AID FUND - Programme Costs,THE JOHNSON PARTNERSHIP,133268791,"41,200.00",Crime Lower: Legal Aid Payments
MINISTRY OF JUSTICE,LAA,29/Jan/2014 ,Crime Lower,LEGAL AID FUND - Programme Costs,THE JOHNSON PARTNERSHIP,133268784,"240,000.00",Crime Lower: Legal Aid Payments
MINISTRY OF JUSTICE,LAA,29/Jan/2014 ,Crime Lower,LEGAL AID FUND - Programme Costs,THE JOHNSON PARTNERSHIP INC:SARAH MARGIOTTA,133268788,"36,600.00",Crime Lower: Legal Aid Payments
MINISTRY OF JUSTICE,LAA,29/Jan/2014 ,Crime Lower,LEGAL AID FUND - Programme Costs,THE OAKES PARTNERSHIP,133269260,"26,500.00",Crime Lower: Legal Aid Payments
MINISTRY OF JUSTICE,LAA,29/Jan/2014 ,Crime Lower,LEGAL AID FUND - Programme Costs,THE PURKISS PRACTICE,133269353,"32,000.00",Crime Lower: Legal Aid Payments
MINISTRY OF JUSTICE,LAA,29/Jan/2014 ,Crime Lower,LEGAL AID FUND - Programme Costs,THOMAS BOYD WHYTE,133269805,"72,930.00",Crime Lower: Legal Aid Payments
MINISTRY OF JUSTICE,LAA,29/Jan/2014 ,Crime Lower,LEGAL AID FUND - Programme Costs,TILLY BAILEY & IRVINE LLP,133269125,"38,900.00",Crime Lower: Legal Aid Payments
MINISTRY OF JUSTICE,LAA,29/Jan/2014 ,Crime Lower,LEGAL AID FUND - Programme Costs,TRANTERS CRIMINAL LAW PRACTICE,133269315,"39,700.00",Crime Lower: Legal Aid Payments
MINISTRY OF JUSTICE,LAA,29/Jan/2014 ,Crime Lower,LEGAL AID FUND - Programme Costs,TUCKERS,133269016,"105,000.00",Crime Lower: Legal Aid Payments
MINISTRY OF JUSTICE,LAA,29/Jan/2014 ,Crime Lower,LEGAL AID FUND - Programme Costs,TUCKERS [MANCHESTER],133269314,"100,000.00",Crime Lower: Legal Aid Payments
MINISTRY OF JUSTICE,LAA,29/Jan/2014 ,Crime Lower,LEGAL AID FUND - Programme Costs,TUCKERS SOLICITORS,133269520,"43,200.00",Crime Lower: Legal Aid Payments
MINISTRY OF JUSTICE,LAA,29/Jan/2014 ,Crime Lower,LEGAL AID FUND - Programme Costs,USMANI KING LTD,133269731,"44,848.00",Crime Lower: Legal Aid Payments
MINISTRY OF JUSTICE,LAA,29/Jan/2014 ,Crime Lower,LEGAL AID FUND - Programme Costs,VEJA & CO LTD,133268949,"25,900.00",Crime Lower: Legal Aid Payments
MINISTRY OF JUSTICE,LAA,29/Jan/2014 ,Crime Lower,LEGAL AID FUND - Programme Costs,VHS FLETCHERS,133268796,"28,500.00",Crime Lower: Legal Aid Payments
MINISTRY OF JUSTICE,LAA,29/Jan/2014 ,Crime Lower,LEGAL AID FUND - Programme Costs,VHS FLETCHERS,133268794,"58,000.00",Crime Lower: Legal Aid Payments
MINISTRY OF JUSTICE,LAA,29/Jan/2014 ,Crime Lower,LEGAL AID FUND - Programme Costs,VYMAN SOLICITORS LIMITED,133270049,"25,097.00",Crime Lower: Legal Aid Payments
MINISTRY OF JUSTICE,LAA,29/Jan/2014 ,Crime Lower,LEGAL AID FUND - Programme Costs,WAINWRIGHT & CUMMINS LLP,133269047,"52,600.00",Crime Lower: Legal Aid Payments
MINISTRY OF JUSTICE,LAA,29/Jan/2014 ,Crime Lower,LEGAL AID FUND - Programme Costs,WALDRONS SOLICITORS LTD T/A WALRRONS SOLICITORS,133270292,"27,674.00",Crime Lower: Legal Aid Payments
MINISTRY OF JUSTICE,LAA,29/Jan/2014 ,Crime Lower,LEGAL AID FUND - Programme Costs,WALKER LAHIVE,133270134,"35,916.00",Crime Lower: Legal Aid Payments
MINISTRY OF JUSTICE,LAA,29/Jan/2014 ,Crime Lower,LEGAL AID FUND - Programme Costs,WALTERS & PLASKITT-INC LESLIE DODD,133269508,"29,600.00",Crime Lower: Legal Aid Payments
MINISTRY OF JUSTICE,LAA,29/Jan/2014 ,Crime Lower,LEGAL AID FUND - Programme Costs,WANNOPS LLP,133269363,"29,900.00",Crime Lower: Legal Aid Payments
MINISTRY OF JUSTICE,LAA,29/Jan/2014 ,Crime Lower,LEGAL AID FUND - Programme Costs,WATSON WOODHOUSE SOLICITORS LLP,133269095,"48,000.00",Crime Lower: Legal Aid Payments
MINISTRY OF JUSTICE,LAA,29/Jan/2014 ,Crime Lower,LEGAL AID FUND - Programme Costs,WELLS BURCOMBE LLP,133270323,"44,610.00",Crime Lower: Legal Aid Payments
MINISTRY OF JUSTICE,LAA,29/Jan/2014 ,Crime Lower,LEGAL AID FUND - Programme Costs,WELLS BURCOMBE LLP,133269726,"57,185.00",Crime Lower: Legal Aid Payments
MINISTRY OF JUSTICE,LAA,29/Jan/2014 ,Crime Lower,LEGAL AID FUND - Programme Costs,WESSEX SOLICITORS CHAMBERS LTD,133269574,"75,000.00",Crime Lower: Legal Aid Payments
MINISTRY OF JUSTICE,LAA,29/Jan/2014 ,Crime Lower,LEGAL AID FUND - Programme Costs,WESTGARTHS,133269906,"29,794.00",Crime Lower: Legal Aid Payments
MINISTRY OF JUSTICE,LAA,29/Jan/2014 ,Crime Lower,LEGAL AID FUND - Programme Costs,WILLIAMSON SOLICITORS LTD,133269211,"38,400.00",Crime Lower: Legal Aid Payments
MINISTRY OF JUSTICE,LAA,29/Jan/2014 ,Crime Lower,LEGAL AID FUND - Programme Costs,WILSON DEVONALD LTD,133268730,"41,900.00",Crime Lower: Legal Aid Payments
MINISTRY OF JUSTICE,LAA,29/Jan/2014 ,Crime Lower,LEGAL AID FUND - Programme Costs,YARWOOD & STUBLEY,133269096,"28,200.00",Crime Lower: Legal Aid Payments
MINISTRY OF JUSTICE,LAA,29/Jan/2014 ,Legal Help,LEGAL AID FUND - Programme Costs,ALASTAIR BATEMAN & CO,133268336,"25,529.00",Legal Help: Legal Aid Payments
MINISTRY OF JUSTICE,LAA,29/Jan/2014 ,Legal Help,LEGAL AID FUND - Programme Costs,BARNES HARRILD & DYER,133268393,"42,693.00",Legal Help: Legal Aid Payments
MINISTRY OF JUSTICE,LAA,29/Jan/2014 ,Legal Help,LEGAL AID FUND - Programme Costs,BINDMANS LLP,133267788,"26,600.00",Legal Help: Legal Aid Payments
MINISTRY OF JUSTICE,LAA,29/Jan/2014 ,Legal Help,LEGAL AID FUND - Programme Costs,BIRNBERG PEIRCE & PARTNERS,133267789,"32,500.00",Legal Help: Legal Aid Payments
MINISTRY OF JUSTICE,LAA,29/Jan/2014 ,Legal Help,LEGAL AID FUND - Programme Costs,BLAVO & CO SOLICITORS LTD,133197949,"169,775.00",Legal Help: Legal Aid Payments
MINISTRY OF JUSTICE,LAA,29/Jan/2014 ,Legal Help,LEGAL AID FUND - Programme Costs,BLAVO & CO SOLICITORS LTD,133197944,"173,011.00",Legal Help: Legal Aid Payments
MINISTRY OF JUSTICE,LAA,29/Jan/2014 ,Legal Help,LEGAL AID FUND - Programme Costs,BLAVO & CO SOLICITORS LTD,133197414,"484,421.00",Legal Help: Legal Aid Payments
MINISTRY OF JUSTICE,LAA,29/Jan/2014 ,Legal Help,LEGAL AID FUND - Programme Costs,BRIGHTON HOUSING TRUST,133197962,"48,419.00",Legal Help: Legal Aid Payments
MINISTRY OF JUSTICE,LAA,29/Jan/2014 ,Legal Help,LEGAL AID FUND - Programme Costs,BURKE NIAZI LTD,133197958,"110,900.00",Legal Help: Legal Aid Payments
MINISTRY OF JUSTICE,LAA,29/Jan/2014 ,Legal Help,LEGAL AID FUND - Programme Costs,BUTLER & CO,133267490,"36,500.00",Legal Help: Legal Aid Payments
MINISTRY OF JUSTICE,LAA,29/Jan/2014 ,Legal Help,LEGAL AID FUND - Programme Costs,CARTWRIGHT KING SOLICITORS,133268547,"62,352.00",Legal Help: Legal Aid Payments
MINISTRY OF JUSTICE,LAA,29/Jan/2014 ,Legal Help,LEGAL AID FUND - Programme Costs,CLIFFORD JOHNSTON & CO,133267865,"30,100.00",Legal Help: Legal Aid Payments
MINISTRY OF JUSTICE,LAA,29/Jan/2014 ,Legal Help,LEGAL AID FUND - Programme Costs,COLIN JONES SOLICITORS INC MALLIA & CO,133268275,"26,771.00",Legal Help: Legal Aid Payments
MINISTRY OF JUSTICE,LAA,29/Jan/2014 ,Legal Help,LEGAL AID FUND - Programme Costs,CVC SOLICITORS,133282679,"34,368.81",Legal Help: Legal Aid Payments
MINISTRY OF JUSTICE,LAA,29/Jan/2014 ,Legal Help,LEGAL AID FUND - Programme Costs,DAVID GRAY LLP,133268512,"33,710.00",Legal Help: Legal Aid Payments
MINISTRY OF JUSTICE,LAA,15/Jan/2014 ,Legal Help,LEGAL AID FUND - Programme Costs,DIRECT HELP & ADVICE LTD,133002868,"26,031.92",Legal Help: Legal Aid Payments
MINISTRY OF JUSTICE,LAA,09/Jan/2014 ,Legal Help,LEGAL AID FUND - Programme Costs,DUNCAN LEWIS,132885115,"83,000.00",Legal Help: Legal Aid Payments
MINISTRY OF JUSTICE,LAA,29/Jan/2014 ,Legal Help,LEGAL AID FUND - Programme Costs,DUNCAN LEWIS,133197915,"268,400.00",Legal Help: Legal Aid Payments
MINISTRY OF JUSTICE,LAA,29/Jan/2014 ,Legal Help,LEGAL AID FUND - Programme Costs,DUNCAN LEWIS,133197905,"450,000.00",Legal Help: Legal Aid Payments
MINISTRY OF JUSTICE,LAA,29/Jan/2014 ,Legal Help,LEGAL AID FUND - Programme Costs,FADIGA & CO LTD INC HARDING MITCHELL SOLICITORS,133268388,"49,137.00",Legal Help: Legal Aid Payments
MINISTRY OF JUSTICE,LAA,29/Jan/2014 ,Legal Help,LEGAL AID FUND - Programme Costs,FISHER MEREDITH LLP,133267752,"64,100.00",Legal Help: Legal Aid Payments
MINISTRY OF JUSTICE,LAA,29/Jan/2014 ,Legal Help,LEGAL AID FUND - Programme Costs,FOSTER & FOSTER,133197973,"38,525.00",Legal Help: Legal Aid Payments
MINISTRY OF JUSTICE,LAA,29/Jan/2014 ,Legal Help,LEGAL AID FUND - Programme Costs,FOUNTAIN SOLICITORS LTD,133267414,"32,300.00",Legal Help: Legal Aid Payments
MINISTRY OF JUSTICE,LAA,29/Jan/2014 ,Legal Help,LEGAL AID FUND - Programme Costs,GLEDHILL SOLICITORS,133268172,"31,514.00",Legal Help: Legal Aid Payments
MINISTRY OF JUSTICE,LAA,29/Jan/2014 ,Legal Help,LEGAL AID FUND - Programme Costs,GRAHAME STOWE BATESON,133268355,"25,849.00",Legal Help: Legal Aid Payments
MINISTRY OF JUSTICE,LAA,29/Jan/2014 ,Legal Help,LEGAL AID FUND - Programme Costs,GREATER MANCHESTER IMMIGRATION AID UNIT,133268600,"27,050.00",Legal Help: Legal Aid Payments
MINISTRY OF JUSTICE,LAA,29/Jan/2014 ,Legal Help,LEGAL AID FUND - Programme Costs,GUILE NICHOLAS-INC DONALD GALBRAITH & CO,133267773,"53,400.00",Legal Help: Legal Aid Payments
MINISTRY OF JUSTICE,LAA,29/Jan/2014 ,Legal Help,LEGAL AID FUND - Programme Costs,HADAWAY & HADAWAY SOLICITORS,133267942,"31,700.00",Legal Help: Legal Aid Payments
MINISTRY OF JUSTICE,LAA,29/Jan/2014 ,Legal Help,LEGAL AID FUND - Programme Costs,HALLIDAY REEVES LAW FIRM,133268511,"37,592.00",Legal Help: Legal Aid Payments
MINISTRY OF JUSTICE,LAA,29/Jan/2014 ,Legal Help,LEGAL AID FUND - Programme Costs,HASAN SOLICITORS,133267419,"26,300.00",Legal Help: Legal Aid Payments
MINISTRY OF JUSTICE,LAA,29/Jan/2014 ,Legal Help,LEGAL AID FUND - Programme Costs,HODGE JONES & ALLEN LLP,133268430,"25,350.00",Legal Help: Legal Aid Payments
MINISTRY OF JUSTICE,LAA,29/Jan/2014 ,Legal Help,LEGAL AID FUND - Programme Costs,HOWE & CO,133268446,"81,414.00",Legal Help: Legal Aid Payments
MINISTRY OF JUSTICE,LAA,29/Jan/2014 ,Legal Help,LEGAL AID FUND - Programme Costs,HOWELLS LLP,133267655,"50,000.00",Legal Help: Legal Aid Payments
MINISTRY OF JUSTICE,LAA,29/Jan/2014 ,Legal Help,LEGAL AID FUND - Programme Costs,IRIS LAW FIRM LLP T/A ( 'IRIS LAW FIRM' ),133198078,"29,576.00",Legal Help: Legal Aid Payments
MINISTRY OF JUSTICE,LAA,29/Jan/2014 ,Legal Help,LEGAL AID FUND - Programme Costs,IRVING & CO,133268429,"48,473.00",Legal Help: Legal Aid Payments
MINISTRY OF JUSTICE,LAA,29/Jan/2014 ,Legal Help,LEGAL AID FUND - Programme Costs,JACKSON & CANTER LLP,133197953,"124,200.00",Legal Help: Legal Aid Payments
MINISTRY OF JUSTICE,LAA,29/Jan/2014 ,Legal Help,LEGAL AID FUND - Programme Costs,JOHN FOWLERS LLP,133267581,"35,600.00",Legal Help: Legal Aid Payments
MINISTRY OF JUSTICE,LAA,29/Jan/2014 ,Legal Help,LEGAL AID FUND - Programme Costs,KESAR & CO SOLICITORS,133198072,"29,845.00",Legal Help: Legal Aid Payments
MINISTRY OF JUSTICE,LAA,29/Jan/2014 ,Legal Help,LEGAL AID FUND - Programme Costs,LAWANA & CO,133267741,"61,800.00",Legal Help: Legal Aid Payments
MINISTRY OF JUSTICE,LAA,29/Jan/2014 ,Legal Help,LEGAL AID FUND - Programme Costs,LAWRENCE LUPIN SOLICITORS LTD,133268403,"74,384.00",Legal Help: Legal Aid Payments
MINISTRY OF JUSTICE,LAA,29/Jan/2014 ,Legal Help,LEGAL AID FUND - Programme Costs,LISA MARIE MCNULTY SOLICITOR,133268471,"29,461.00",Legal Help: Legal Aid Payments
MINISTRY OF JUSTICE,LAA,29/Jan/2014 ,Legal Help,LEGAL AID FUND - Programme Costs,LUQMANI THOMPSON & PARTNERS,133267738,"55,200.00",Legal Help: Legal Aid Payments
MINISTRY OF JUSTICE,LAA,29/Jan/2014 ,Legal Help,LEGAL AID FUND - Programme Costs,M H LEGAL,133267982,"43,000.00",Legal Help: Legal Aid Payments
MINISTRY OF JUSTICE,LAA,29/Jan/2014 ,Legal Help,LEGAL AID FUND - Programme Costs,NIEKO SOLICITORS,133198067,"35,856.00",Legal Help: Legal Aid Payments
MINISTRY OF JUSTICE,LAA,29/Jan/2014 ,Legal Help,LEGAL AID FUND - Programme Costs,NOBLE SOLICITORS,133197990,"36,136.00",Legal Help: Legal Aid Payments
MINISTRY OF JUSTICE,LAA,29/Jan/2014 ,Legal Help,LEGAL AID FUND - Programme Costs,O'DONNELLS SOLICITORS,133268470,"36,536.00",Legal Help: Legal Aid Payments
MINISTRY OF JUSTICE,LAA,29/Jan/2014 ,Legal Help,LEGAL AID FUND - Programme Costs,OSBORNES SOLICITORS LLP,133267748,"27,800.00",Legal Help: Legal Aid Payments
MINISTRY OF JUSTICE,LAA,29/Jan/2014 ,Legal Help,LEGAL AID FUND - Programme Costs,PARAGON LAW LTD,133268018,"55,000.00",Legal Help: Legal Aid Payments
MINISTRY OF JUSTICE,LAA,29/Jan/2014 ,Legal Help,LEGAL AID FUND - Programme Costs,PARKER RHODES HICKMOTTS,133267659,"61,500.00",Legal Help: Legal Aid Payments
MINISTRY OF JUSTICE,LAA,29/Jan/2014 ,Legal Help,LEGAL AID FUND - Programme Costs,PETER EDWARDS LAW LTD,133267720,"59,200.00",Legal Help: Legal Aid Payments
MINISTRY OF JUSTICE,LAA,29/Jan/2014 ,Legal Help,LEGAL AID FUND - Programme Costs,QUALITY SOLICITORS CMHT ***,133267412,"72,100.00",Legal Help: Legal Aid Payments
MINISTRY OF JUSTICE,LAA,29/Jan/2014 ,Legal Help,LEGAL AID FUND - Programme Costs,RMNJ SOLICITORS ***,133268365,"34,303.00",Legal Help: Legal Aid Payments
MINISTRY OF JUSTICE,LAA,29/Jan/2014 ,Legal Help,LEGAL AID FUND - Programme Costs,SCOTT-MONCRIEFF & ASSOCIATES LLP,133267786,"33,500.00",Legal Help: Legal Aid Payments
MINISTRY OF JUSTICE,LAA,15/Jan/2014 ,Legal Help,LEGAL AID FUND - Programme Costs,SHELTER-HELPLINE,133003994,"35,349.06",Legal Help: Legal Aid Payments
MINISTRY OF JUSTICE,LAA,29/Jan/2014 ,Legal Help,LEGAL AID FUND - Programme Costs,SRIHARANS,133268445,"26,695.00",Legal Help: Legal Aid Payments
MINISTRY OF JUSTICE,LAA,15/Jan/2014 ,Legal Help,LEGAL AID FUND - Programme Costs,STEPHENSONS SOLICITORS LLP,132998508,"26,187.50",Legal Help: Legal Aid Payments
MINISTRY OF JUSTICE,LAA,29/Jan/2014 ,Legal Help,LEGAL AID FUND - Programme Costs,SULTAN LLOYD SOLICITORS LTD,133267422,"40,000.00",Legal Help: Legal Aid Payments
MINISTRY OF JUSTICE,LAA,29/Jan/2014 ,Legal Help,LEGAL AID FUND - Programme Costs,SUTOVIC & HARTIGAN,133267798,"25,000.00",Legal Help: Legal Aid Payments
MINISTRY OF JUSTICE,LAA,29/Jan/2014 ,Legal Help,LEGAL AID FUND - Programme Costs,SWAIN & CO SOLICITORS LLP,133268044,"41,300.00",Legal Help: Legal Aid Payments
MINISTRY OF JUSTICE,LAA,29/Jan/2014 ,Legal Help,LEGAL AID FUND - Programme Costs,SWITALSKI'S LLP,133267681,"60,000.00",Legal Help: Legal Aid Payments
MINISTRY OF JUSTICE,LAA,29/Jan/2014 ,Legal Help,LEGAL AID FUND - Programme Costs,THALIWAL  BRIDGE,133268524,"40,297.00",Legal Help: Legal Aid Payments
MINISTRY OF JUSTICE,LAA,29/Jan/2014 ,Legal Help,LEGAL AID FUND - Programme Costs,THOMPSON & CO,133267753,"55,200.00",Legal Help: Legal Aid Payments
MINISTRY OF JUSTICE,LAA,29/Jan/2014 ,Legal Help,LEGAL AID FUND - Programme Costs,TROTT & GENTRY LLP,133268412,"25,484.00",Legal Help: Legal Aid Payments
MINISTRY OF JUSTICE,LAA,29/Jan/2014 ,Legal Help,LEGAL AID FUND - Programme Costs,TRP SOLICITORS LTD,133267423,"26,600.00",Legal Help: Legal Aid Payments
MINISTRY OF JUSTICE,LAA,15/Jan/2014 ,Legal Help,LEGAL AID FUND - Programme Costs,TY ARIAN LTD,133003588,"26,101.10",Legal Help: Legal Aid Payments
MINISTRY OF JUSTICE,LAA,15/Jan/2014 ,Legal Help,LEGAL AID FUND - Programme Costs,TY ARIAN LTD,133003887,"47,977.30",Legal Help: Legal Aid Payments
MINISTRY OF JUSTICE,LAA,29/Jan/2014 ,Legal Help,LEGAL AID FUND - Programme Costs,WILSON SOLICITORS LLP,133197925,"239,000.00",Legal Help: Legal Aid Payments
MINISTRY OF JUSTICE,LAA,14/Jan/2014 ,Offline,LEGAL AID FUND - Programme Costs,AB MACKENZIE SOLICITORS,132599825,"35,116.70",Payment of Solicitor Bills for Legal Aid
MINISTRY OF JUSTICE,LAA,14/Jan/2014 ,Offline,LEGAL AID FUND - Programme Costs,ACHOM & PARTNERS,132753898,"28,248.00",Payment of Solicitor Bills for Legal Aid
MINISTRY OF JUSTICE,LAA,14/Jan/2014 ,Offline,LEGAL AID FUND - Programme Costs,ALBIN & CO LTD,132752933,"37,500.00",Payment of Solicitor Bills for Legal Aid
MINISTRY OF JUSTICE,LAA,14/Jan/2014 ,Offline,LEGAL AID FUND - Programme Costs,ALDERSON LAW LLP T/A A.D.,132753136,"33,300.00",Payment of Solicitor Bills for Legal Aid
MINISTRY OF JUSTICE,LAA,14/Jan/2014 ,Offline,LEGAL AID FUND - Programme Costs,ALLETSONS LTD,132704503,"51,906.62",Payment of Solicitor Bills for Legal Aid
MINISTRY OF JUSTICE,LAA,14/Jan/2014 ,Offline,LEGAL AID FUND - Programme Costs,ALTAF SOLICITORS LTD,132820212,"64,318.27",Payment of Solicitor Bills for Legal Aid
MINISTRY OF JUSTICE,LAA,14/Jan/2014 ,Offline,LEGAL AID FUND - Programme Costs,ANGELA PORTER SOLCITORS,132753647,"25,100.00",Payment of Solicitor Bills for Legal Aid
MINISTRY OF JUSTICE,LAA,14/Jan/2014 ,Offline,LEGAL AID FUND - Programme Costs,ASHMANS SOLICITORS,132839898,"98,612.18",Payment of Solicitor Bills for Legal Aid
MINISTRY OF JUSTICE,LAA,14/Jan/2014 ,Offline,LEGAL AID FUND - Programme Costs,BAXENDALE VANZIE SOLICITORS LTD,132622763,"39,013.92",Payment of Solicitor Bills for Legal Aid
MINISTRY OF JUSTICE,LAA,14/Jan/2014 ,Offline,LEGAL AID FUND - Programme Costs,BLAVO & CO SOLICITORS LTD,132753753,"25,718.00",Payment of Solicitor Bills for Legal Aid
MINISTRY OF JUSTICE,LAA,14/Jan/2014 ,Offline,LEGAL AID FUND - Programme Costs,BLAVO & CO SOLICITORS LTD,132742495,"171,281.00",Payment of Solicitor Bills for Legal Aid
MINISTRY OF JUSTICE,LAA,14/Jan/2014 ,Offline,LEGAL AID FUND - Programme Costs,BLAVO & CO SOLICITORS LTD,132742489,"240,436.00",Payment of Solicitor Bills for Legal Aid
MINISTRY OF JUSTICE,LAA,14/Jan/2014 ,Offline,LEGAL AID FUND - Programme Costs,BLAVO & CO SOLICITORS LTD,132742506,"456,684.00",Payment of Solicitor Bills for Legal Aid
MINISTRY OF JUSTICE,LAA,14/Jan/2014 ,Offline,LEGAL AID FUND - Programme Costs,BLAVO & COMPANY SOLICITORS LTD,132839742,"27,692.70",Payment of Solicitor Bills for Legal Aid
MINISTRY OF JUSTICE,LAA,14/Jan/2014 ,Offline,LEGAL AID FUND - Programme Costs,BLAVO & COMPANY SOLICITORS LTD,132753744,"35,465.00",Payment of Solicitor Bills for Legal Aid
MINISTRY OF JUSTICE,LAA,14/Jan/2014 ,Offline,LEGAL AID FUND - Programme Costs,BOUSFIELD GASKIN MCGLOIN SOLICITORS,132753451,"28,947.00",Payment of Solicitor Bills for Legal Aid
MINISTRY OF JUSTICE,LAA,14/Jan/2014 ,Offline,LEGAL AID FUND - Programme Costs,BRENDAN FLEMING SOLICITORS,132404437,"61,780.04",Payment of Solicitor Bills for Legal Aid
MINISTRY OF JUSTICE,LAA,14/Jan/2014 ,Offline,LEGAL AID FUND - Programme Costs,BRIGHTON HOUSING TRUST,132744330,"168,748.00",Payment of Solicitor Bills for Legal Aid
MINISTRY OF JUSTICE,LAA,14/Jan/2014 ,Offline,LEGAL AID FUND - Programme Costs,CARRINGTONS SOLICITORS,132753229,"159,364.00",Payment of Solicitor Bills for Legal Aid
MINISTRY OF JUSTICE,LAA,14/Jan/2014 ,Offline,LEGAL AID FUND - Programme Costs,CARTER MOORE SOLICITORS LTD,132782369,"27,487.51",Payment of Solicitor Bills for Legal Aid
MINISTRY OF JUSTICE,LAA,14/Jan/2014 ,Offline,LEGAL AID FUND - Programme Costs,CARTER MOORE SOLICITORS LTD,132753540,"28,840.00",Payment of Solicitor Bills for Legal Aid
MINISTRY OF JUSTICE,LAA,14/Jan/2014 ,Offline,LEGAL AID FUND - Programme Costs,CARTER MOORE SOLICITORS LTD,132668451,"41,878.48",Payment of Solicitor Bills for Legal Aid
MINISTRY OF JUSTICE,LAA,14/Jan/2014 ,Offline,LEGAL AID FUND - Programme Costs,CHILD LAW PARTNERSHIP,132462896,"33,945.48",Payment of Solicitor Bills for Legal Aid
MINISTRY OF JUSTICE,LAA,14/Jan/2014 ,Offline,LEGAL AID FUND - Programme Costs,CONNOR ROSS-BROWN SOLICITORS,132753133,"53,000.00",Payment of Solicitor Bills for Legal Aid
MINISTRY OF JUSTICE,LAA,14/Jan/2014 ,Offline,LEGAL AID FUND - Programme Costs,DEBORAH BAXTER & CO,132604722,"28,606.30",Payment of Solicitor Bills for Legal Aid
MINISTRY OF JUSTICE,LAA,14/Jan/2014 ,Offline,LEGAL AID FUND - Programme Costs,DRISCOLL YOUNG SOLICITORS LIMITED,132753160,"36,211.00",Payment of Solicitor Bills for Legal Aid
MINISTRY OF JUSTICE,LAA,14/Jan/2014 ,Offline,LEGAL AID FUND - Programme Costs,ERIC ROBINSON SOLICITORS,132752898,"34,600.00",Payment of Solicitor Bills for Legal Aid
MINISTRY OF JUSTICE,LAA,14/Jan/2014 ,Offline,LEGAL AID FUND - Programme Costs,FARLEYS SOLICITORS LLP,132752779,"32,900.00",Payment of Solicitor Bills for Legal Aid
MINISTRY OF JUSTICE,LAA,14/Jan/2014 ,Offline,LEGAL AID FUND - Programme Costs,FISHER MEREDITH LLP,127009391,"25,061.94",Payment of Solicitor Bills for Legal Aid
MINISTRY OF JUSTICE,LAA,14/Jan/2014 ,Offline,LEGAL AID FUND - Programme Costs,FISHER MEREDITH LLP,132751228,"64,100.00",Payment of Solicitor Bills for Legal Aid
MINISTRY OF JUSTICE,LAA,14/Jan/2014 ,Offline,LEGAL AID FUND - Programme Costs,FOOT ANSTEY LLP,132829505,"25,943.95",Payment of Solicitor Bills for Legal Aid
MINISTRY OF JUSTICE,LAA,14/Jan/2014 ,Offline,LEGAL AID FUND - Programme Costs,GARDEN CITY SOLICITORS,132862046,"25,212.01",Payment of Solicitor Bills for Legal Aid
MINISTRY OF JUSTICE,LAA,14/Jan/2014 ,Offline,LEGAL AID FUND - Programme Costs,GARDEN CITY SOLICITORS,132480622,"27,755.73",Payment of Solicitor Bills for Legal Aid
MINISTRY OF JUSTICE,LAA,14/Jan/2014 ,Offline,LEGAL AID FUND - Programme Costs,GOLDKORNS,132752545,"35,900.00",Payment of Solicitor Bills for Legal Aid
MINISTRY OF JUSTICE,LAA,14/Jan/2014 ,Offline,LEGAL AID FUND - Programme Costs,GOLDKORNS,132600152,"44,272.34",Payment of Solicitor Bills for Legal Aid
MINISTRY OF JUSTICE,LAA,14/Jan/2014 ,Offline,LEGAL AID FUND - Programme Costs,GRIFFITHS & JOHN SOLICITORS,132752243,"32,000.00",Payment of Solicitor Bills for Legal Aid
MINISTRY OF JUSTICE,LAA,14/Jan/2014 ,Offline,LEGAL AID FUND - Programme Costs,HINE SOLICITORS,132753845,"27,616.00",Payment of Solicitor Bills for Legal Aid
MINISTRY OF JUSTICE,LAA,14/Jan/2014 ,Offline,LEGAL AID FUND - Programme Costs,HINE SOLICITORS,132753838,"27,855.00",Payment of Solicitor Bills for Legal Aid
MINISTRY OF JUSTICE,LAA,14/Jan/2014 ,Offline,LEGAL AID FUND - Programme Costs,HINE SOLICITORS,132752912,"29,300.00",Payment of Solicitor Bills for Legal Aid
MINISTRY OF JUSTICE,LAA,14/Jan/2014 ,Offline,LEGAL AID FUND - Programme Costs,HINE SOLICITORS,132753843,"39,683.00",Payment of Solicitor Bills for Legal Aid
MINISTRY OF JUSTICE,LAA,14/Jan/2014 ,Offline,LEGAL AID FUND - Programme Costs,HINE SOLICITORS,132753840,"52,285.00",Payment of Solicitor Bills for Legal Aid
MINISTRY OF JUSTICE,LAA,14/Jan/2014 ,Offline,LEGAL AID FUND - Programme Costs,HINE SOLICITORS,132753841,"81,869.00",Payment of Solicitor Bills for Legal Aid
MINISTRY OF JUSTICE,LAA,14/Jan/2014 ,Offline,LEGAL AID FUND - Programme Costs,HINE SOLICITORS,132753844,"82,792.00",Payment of Solicitor Bills for Legal Aid
MINISTRY OF JUSTICE,LAA,14/Jan/2014 ,Offline,LEGAL AID FUND - Programme Costs,HINE SOLICITORS,132753842,"83,287.00",Payment of Solicitor Bills for Legal Aid
MINISTRY OF JUSTICE,LAA,14/Jan/2014 ,Offline,LEGAL AID FUND - Programme Costs,IAN HENERY LTD,132753733,"26,481.00",Payment of Solicitor Bills for Legal Aid
MINISTRY OF JUSTICE,LAA,14/Jan/2014 ,Offline,LEGAL AID FUND - Programme Costs,IMRAN KHAN & PARTNERS,132647223,"40,022.47",Payment of Solicitor Bills for Legal Aid
MINISTRY OF JUSTICE,LAA,14/Jan/2014 ,Offline,LEGAL AID FUND - Programme Costs,INGRAMS  SOLICITORS,132752739,"41,800.00",Payment of Solicitor Bills for Legal Aid
MINISTRY OF JUSTICE,LAA,14/Jan/2014 ,Offline,LEGAL AID FUND - Programme Costs,J D SPICER ZEB,132782043,"34,496.11",Payment of Solicitor Bills for Legal Aid
MINISTRY OF JUSTICE,LAA,14/Jan/2014 ,Offline,LEGAL AID FUND - Programme Costs,J D SPICER ZEB,132753335,"253,548.00",Payment of Solicitor Bills for Legal Aid
MINISTRY OF JUSTICE,LAA,14/Jan/2014 ,Offline,LEGAL AID FUND - Programme Costs,JACKSON & CANTER LLP,132753993,"80,402.00",Payment of Solicitor Bills for Legal Aid
MINISTRY OF JUSTICE,LAA,14/Jan/2014 ,Offline,LEGAL AID FUND - Programme Costs,JANE CROSS QC,132787046,"36,036.00",Payment of Solicitor Bills for Legal Aid
MINISTRY OF JUSTICE,LAA,14/Jan/2014 ,Offline,LEGAL AID FUND - Programme Costs,JSP LAW LIMITED,132753892,"34,452.00",Payment of Solicitor Bills for Legal Aid
MINISTRY OF JUSTICE,LAA,14/Jan/2014 ,Offline,LEGAL AID FUND - Programme Costs,JSP LAW LIMITED,132623487,"37,905.32",Payment of Solicitor Bills for Legal Aid
MINISTRY OF JUSTICE,LAA,14/Jan/2014 ,Offline,LEGAL AID FUND - Programme Costs,JWP LEGAL LTD,132678255,"31,782.65",Payment of Solicitor Bills for Legal Aid
MINISTRY OF JUSTICE,LAA,14/Jan/2014 ,Offline,LEGAL AID FUND - Programme Costs,KEITH PARK SOLICITORS,132782055,"31,867.13",Payment of Solicitor Bills for Legal Aid
MINISTRY OF JUSTICE,LAA,14/Jan/2014 ,Offline,LEGAL AID FUND - Programme Costs,KIRWANS,132753412,"43,212.00",Payment of Solicitor Bills for Legal Aid
MINISTRY OF JUSTICE,LAA,14/Jan/2014 ,Offline,LEGAL AID FUND - Programme Costs,LBM LAW LTD,132753950,"30,851.00",Payment of Solicitor Bills for Legal Aid
MINISTRY OF JUSTICE,LAA,14/Jan/2014 ,Offline,LEGAL AID FUND - Programme Costs,LHD SOLICITORS LTD,132752768,"65,000.00",Payment of Solicitor Bills for Legal Aid
MINISTRY OF JUSTICE,LAA,14/Jan/2014 ,Offline,LEGAL AID FUND - Programme Costs,LLM SOLICITORS (LONDON) LTD,132753911,"42,565.00",Payment of Solicitor Bills for Legal Aid
MINISTRY OF JUSTICE,LAA,14/Jan/2014 ,Offline,LEGAL AID FUND - Programme Costs,M B LAW LTD,132716835,"54,497.60",Payment of Solicitor Bills for Legal Aid
MINISTRY OF JUSTICE,LAA,14/Jan/2014 ,Offline,LEGAL AID FUND - Programme Costs,MARTYN PROWEL,132819037,"41,300.65",Payment of Solicitor Bills for Legal Aid
MINISTRY OF JUSTICE,LAA,14/Jan/2014 ,Offline,LEGAL AID FUND - Programme Costs,MUSTOE SHORTER SOLICITORS & ADVOCATES LLP,132752997,"45,300.00",Payment of Solicitor Bills for Legal Aid
MINISTRY OF JUSTICE,LAA,14/Jan/2014 ,Offline,LEGAL AID FUND - Programme Costs,NEEDHAM POULIER & PARTNERS,132753402,"27,120.00",Payment of Solicitor Bills for Legal Aid
MINISTRY OF JUSTICE,LAA,14/Jan/2014 ,Offline,LEGAL AID FUND - Programme Costs,NICHOLA J CAFFERKEY,132611990,"29,689.19",Payment of Solicitor Bills for Legal Aid
MINISTRY OF JUSTICE,LAA,14/Jan/2014 ,Offline,LEGAL AID FUND - Programme Costs,NIEKO SOLICITORS,132741773,"28,310.00",Payment of Solicitor Bills for Legal Aid
MINISTRY OF JUSTICE,LAA,14/Jan/2014 ,Offline,LEGAL AID FUND - Programme Costs,"O'NEILL, WRIGHT & NASH",132753756,"44,441.00",Payment of Solicitor Bills for Legal Aid
MINISTRY OF JUSTICE,LAA,14/Jan/2014 ,Offline,LEGAL AID FUND - Programme Costs,PARDOES LLP,132752960,"27,800.00",Payment of Solicitor Bills for Legal Aid
MINISTRY OF JUSTICE,LAA,14/Jan/2014 ,Offline,LEGAL AID FUND - Programme Costs,PARKER RHODES HICKMOTTS,132751140,"61,500.00",Payment of Solicitor Bills for Legal Aid
MINISTRY OF JUSTICE,LAA,14/Jan/2014 ,Offline,LEGAL AID FUND - Programme Costs,PAUL A HOPKINS QC,132586298,"38,258.40",Payment of Solicitor Bills for Legal Aid
MINISTRY OF JUSTICE,LAA,14/Jan/2014 ,Offline,LEGAL AID FUND - Programme Costs,PETERS & CO SOLICITORS,132751034,"52,000.00",Payment of Solicitor Bills for Legal Aid
MINISTRY OF JUSTICE,LAA,14/Jan/2014 ,Offline,LEGAL AID FUND - Programme Costs,PHILIP & ROBERT HOWARD,132717117,"64,262.32",Payment of Solicitor Bills for Legal Aid
MINISTRY OF JUSTICE,LAA,14/Jan/2014 ,Offline,LEGAL AID FUND - Programme Costs,QAMAR SOLICITORS,132753485,"25,905.00",Payment of Solicitor Bills for Legal Aid
MINISTRY OF JUSTICE,LAA,14/Jan/2014 ,Offline,LEGAL AID FUND - Programme Costs,RICHARD BODY & CO,132752870,"31,000.00",Payment of Solicitor Bills for Legal Aid
MINISTRY OF JUSTICE,LAA,14/Jan/2014 ,Offline,LEGAL AID FUND - Programme Costs,ROWE SPARKES SOLICITORS LTD,132752905,"48,500.00",Payment of Solicitor Bills for Legal Aid
MINISTRY OF JUSTICE,LAA,14/Jan/2014 ,Offline,LEGAL AID FUND - Programme Costs,SINCLAIRSLAW SOLICITORS,132751756,"26,565.00",Payment of Solicitor Bills for Legal Aid
MINISTRY OF JUSTICE,LAA,14/Jan/2014 ,Offline,LEGAL AID FUND - Programme Costs,SJ LAW SOLICITORS,132599680,"28,962.07",Payment of Solicitor Bills for Legal Aid
MINISTRY OF JUSTICE,LAA,14/Jan/2014 ,Offline,LEGAL AID FUND - Programme Costs,SJ LAW SOLICITORS,132781409,"48,875.94",Payment of Solicitor Bills for Legal Aid
MINISTRY OF JUSTICE,LAA,14/Jan/2014 ,Offline,LEGAL AID FUND - Programme Costs,SJ LAW SOLICITORS,132753344,"72,365.00",Payment of Solicitor Bills for Legal Aid
MINISTRY OF JUSTICE,LAA,14/Jan/2014 ,Offline,LEGAL AID FUND - Programme Costs,SLATER & GORDON (UK) LLP,132709487,"28,428.80",Payment of Solicitor Bills for Legal Aid
MINISTRY OF JUSTICE,LAA,14/Jan/2014 ,Offline,LEGAL AID FUND - Programme Costs,SLATER & GORDON (UK) LLP,132645839,"32,509.10",Payment of Solicitor Bills for Legal Aid
MINISTRY OF JUSTICE,LAA,14/Jan/2014 ,Offline,LEGAL AID FUND - Programme Costs,SONN MACMILLAN WALKER LTD,132752408,"61,000.00",Payment of Solicitor Bills for Legal Aid
MINISTRY OF JUSTICE,LAA,14/Jan/2014 ,Offline,LEGAL AID FUND - Programme Costs,STUART FULLER,132883935,"26,321.26",Payment of Solicitor Bills for Legal Aid
MINISTRY OF JUSTICE,LAA,14/Jan/2014 ,Offline,LEGAL AID FUND - Programme Costs,SUSSEX DEFENCE SOLICITORS,132752894,"45,000.00",Payment of Solicitor Bills for Legal Aid
MINISTRY OF JUSTICE,LAA,14/Jan/2014 ,Offline,LEGAL AID FUND - Programme Costs,THE GRECH GOODEN PARTNERSHIP,132753193,"61,556.00",Payment of Solicitor Bills for Legal Aid
MINISTRY OF JUSTICE,LAA,14/Jan/2014 ,Offline,LEGAL AID FUND - Programme Costs,VHS FLETCHERS,132752308,"28,500.00",Payment of Solicitor Bills for Legal Aid
MINISTRY OF JUSTICE,LAA,14/Jan/2014 ,Offline,LEGAL AID FUND - Programme Costs,VHS FLETCHERS,132752305,"58,000.00",Payment of Solicitor Bills for Legal Aid
MINISTRY OF JUSTICE,LAA,14/Jan/2014 ,Offline,LEGAL AID FUND - Programme Costs,VICKERS CHISMAN & WISHLADE,132752615,"73,100.00",Payment of Solicitor Bills for Legal Aid
MINISTRY OF JUSTICE,LAA,14/Jan/2014 ,Offline,LEGAL AID FUND - Programme Costs,WALTERS & PLASKITT-INC LESLIE DODD,132753040,"29,600.00",Payment of Solicitor Bills for Legal Aid
MINISTRY OF JUSTICE,LAA,14/Jan/2014 ,Offline,LEGAL AID FUND - Programme Costs,WANSBROUGHS,132753689,"26,853.00",Payment of Solicitor Bills for Legal Aid
MINISTRY OF JUSTICE,LAA,14/Jan/2014 ,Offline,LEGAL AID FUND - Programme Costs,WILLIAM J EVANS,132565226,"36,502.54",Payment of Solicitor Bills for Legal Aid
MINISTRY OF JUSTICE,LAA,14/Jan/2014 ,Offline,LEGAL AID FUND - Programme Costs,WILLIAMSON SOLICITORS LTD,132752736,"38,400.00",Payment of Solicitor Bills for Legal Aid
MINISTRY OF JUSTICE,LAA,14/Jan/2014 ,Offline,LEGAL AID FUND - Programme Costs,YARWOOD & STUBLEY,132752617,"28,200.00",Payment of Solicitor Bills for Legal Aid
MINISTRY OF JUSTICE,LAA,14/Jan/2014 ,Offline,LEGAL AID FUND - Programme Costs,YARWOOD & STUBLEY,132599384,"39,010.92",Payment of Solicitor Bills for Legal Aid
